Ref No,Fund Type,Dept,Cost Centre Description    ,Description    ,Creditor Name    ,GL Code Net Amount,Payment date        
2,Revenue,CAHD,Bed Purchasing - South,Permanent Residential,.,1589.20, 25-Oct-2016
3,Revenue,CAHD,Bed Purchasing - North,Permanent Nursing,.,2729.20, 25-Oct-2016
4,Revenue,CAHD,Bed Purchasing - South,Permanent Nursing,.,9564.75, 25-Oct-2016
5,Revenue,CAHD,Bed Purchasing - South,Permanent Nursing,.,2943.00, 25-Oct-2016
6,Revenue,CAHD,South Glos Users in South Glos Homes,Permanent Nursing,.,2031.25, 25-Oct-2016
7,Revenue,CAHD,South Glos Users in South Glos Homes,Permanent Nursing,.,625.00, 25-Oct-2016
8,Revenue,CAHD,Bed Purchasing - North,Permanent Nursing,.,2753.20, 25-Oct-2016
9,Revenue,CAHD,South Glos Users in South Glos Homes,Permanent Nursing,.,625.00, 25-Oct-2016
10,Revenue,CAHD,Bed Purchasing - South,Permanent Nursing,.,2729.20, 25-Oct-2016
11,Revenue,CAHD,South Glos Users in South Glos Homes,Permanent Nursing,.,625.00, 25-Oct-2016
12,Revenue,CAHD,Bed Purchasing - South,Permanent Nursing,.,2586.08, 25-Oct-2016
13,Revenue,CAHD,Bed Purchasing - South,Permanent Nursing,.,2401.36, 25-Oct-2016
14,Revenue,CAHD,Bed Purchasing - North,Permanent Nursing,.,4184.12, 25-Oct-2016
15,Revenue,CAHD,South Glos Users in South Glos Homes,Permanent Nursing,.,647.32, 25-Oct-2016
16,Revenue,CAHD,South Glos Users in South Glos Homes,Permanent Nursing,.,625.00, 25-Oct-2016
17,Revenue,CAHD,South Glos Users in South Glos Homes,Permanent Nursing,.,625.00, 25-Oct-2016
18,Revenue,CAHD,Bed Purchasing - North,Permanent Nursing,.,3352.00, 25-Oct-2016
19,Revenue,CAHD,Bed Purchasing - Southmead Hospital,Permanent Nursing,.,3252.20, 25-Oct-2016
20,Revenue,CAHD,Bed Purchasing - Southmead Hospital,Permanent Nursing,.,2206.85, 25-Oct-2016
21,Revenue,CAHD,Bed Purchasing - Elderly S117- North,Permanent Nursing,.,3000.00, 25-Oct-2016
22,Revenue,CAHD,South Glos Users in South Glos Homes,Permanent Nursing,.,625.00, 25-Oct-2016
23,Revenue,CAHD,South Glos Users in South Glos Homes,Permanent Nursing,.,625.00, 25-Oct-2016
24,Revenue,CAHD,South Glos Users in South Glos Homes,Permanent Nursing,.,1852.68, 25-Oct-2016
25,Revenue,CAHD,South Glos Users in South Glos Homes,Permanent Nursing,.,625.00, 25-Oct-2016
26,Revenue,CAHD,South Glos Users in South Glos Homes,Permanent Nursing,.,2008.93, 25-Oct-2016
27,Revenue,CAHD,South Glos Users in South Glos Homes,Permanent Nursing,.,625.00, 25-Oct-2016
28,Revenue,CAHD,South Glos Users in South Glos Homes,Permanent Nursing,.,1517.86, 25-Oct-2016
29,Revenue,CAHD,South Glos Users in South Glos Homes,Permanent Nursing,.,625.00, 25-Oct-2016
30,Revenue,CAHD,Bed Purchasing - North,Permanent Nursing,.,2718.60, 25-Oct-2016
31,Revenue,CAHD,South Glos Users in South Glos Homes,Permanent Nursing,.,625.00, 25-Oct-2016
32,Revenue,CAHD,Bed Purchasing - North,Permanent Nursing,.,2432.44, 25-Oct-2016
33,Revenue,CAHD,South Glos Users in South Glos Homes,Permanent Nursing,.,625.00, 25-Oct-2016
34,Revenue,CAHD,Bed Purchasing - North,Permanent Nursing,.,2644.88, 25-Oct-2016
35,Revenue,CAHD,South Glos Users in South Glos Homes,Permanent Nursing,.,625.00, 25-Oct-2016
36,Revenue,CAHD,18-25 Year Olds,Permanent Residential,1 St Georges House,13663.04, 25-Oct-2016
37,Revenue,CAHD,Home Care - Elderly - North,Supported Living,2430 The Quadrant,5041.76, 25-Oct-2016
38,Revenue,CAHD,Home Care - Elderly - North,Supported Living,2430 The Quadrant,5041.76, 25-Oct-2016
39,Revenue,CAHD,Home Care - Elderly - South,Day Care / Social Activities,3 Trees Community Support Ltd,91.60, 05-Oct-2016
40,Revenue,CAHD,Home Care - Elderly - North,Day Care / Social Activities,3 Trees Community Support Ltd,1676.28, 05-Oct-2016
41,Revenue,CAHD,Home Care - Elderly - North,Other Small Contracts,3 Trees Community Support Ltd,696.16, 05-Oct-2016
42,Revenue,CAHD,Home Care - Elderly - North,Supported Living,3 Trees Community Support Ltd,8591.64, 05-Oct-2016
43,Revenue,CAHD,Home Care - Elderly - South,Day Care / Social Activities,3 Trees Community Support Ltd,91.60, 11-Oct-2016
44,Revenue,CAHD,Home Care - Elderly - North,Day Care / Social Activities,3 Trees Community Support Ltd,1671.70, 11-Oct-2016
45,Revenue,CAHD,Home Care - Elderly - North,Other Small Contracts,3 Trees Community Support Ltd,700.74, 11-Oct-2016
46,Revenue,CAHD,Home Care - Elderly - North,Supported Living,3 Trees Community Support Ltd,8653.06, 11-Oct-2016
47,Revenue,CAHD,Home Care - Elderly - South,Day Care / Social Activities,3 Trees Community Support Ltd,91.60, 19-Oct-2016
48,Revenue,CAHD,Home Care - Elderly - North,Day Care / Social Activities,3 Trees Community Support Ltd,1680.86, 19-Oct-2016
49,Revenue,CAHD,Home Care - Elderly - North,Other Small Contracts,3 Trees Community Support Ltd,696.16, 19-Oct-2016
50,Revenue,CAHD,Home Care - Elderly - North,Supported Living,3 Trees Community Support Ltd,8290.39, 19-Oct-2016
51,Revenue,CAHD,Home Care - Elderly - South,Day Care / Social Activities,3 Trees Community Support Ltd,91.60, 25-Oct-2016
52,Revenue,CAHD,Home Care - Elderly - North,Day Care / Social Activities,3 Trees Community Support Ltd,1351.10, 25-Oct-2016
53,Revenue,CAHD,Home Care - Elderly - North,Other Small Contracts,3 Trees Community Support Ltd,696.16, 25-Oct-2016
54,Revenue,CAHD,Home Care - Elderly - North,Supported Living,3 Trees Community Support Ltd,8618.81, 25-Oct-2016
55,Revenue,CAHD,Home Care - Elderly - North,Supported Living,3 Trees Community Support Ltd,2707.64, 04-Oct-2016
56,Revenue,CAHD,Home Care - Elderly - North,Supported Living,3 Trees Community Support Ltd,3012.71, 04-Oct-2016
57,Revenue,CAHD,Home Care - Elderly - North,Supported Living,3 Trees Community Support Ltd,2436.79, 04-Oct-2016
58,Revenue,CAHD,Home Care - Elderly - North,Supported Living,3 Trees Community Support Ltd,3346.02, 04-Oct-2016
59,Revenue,CAHD,Home Care - Elderly - North,Supported Living,3 Trees Community Support Ltd,2745.26, 04-Oct-2016
60,Revenue,CAHD,Home Care - Elderly - North,Supported Living,3 Trees Community Support Ltd,2746.12, 04-Oct-2016
61,Revenue,CAHD,Bed Purchasing - South,Permanent Residential,5Th Floor Harlech Court,16462.84, 25-Oct-2016
62,Revenue,CAHD,18-25 Year Olds,Permanent Residential,5Th Floor Harlech Court,14031.44, 25-Oct-2016
63,Revenue,CAHD,18-25 Year Olds,Permanent Residential,5Th Floor Harlech Court,14309.60, 25-Oct-2016
64,Revenue,CAHD,18-25 Year Olds,Permanent Residential,5Th Floor Harlech Court,12561.64, 25-Oct-2016
65,Revenue,CAHD,Bed Purchasing - North,Permanent Residential,5Th Floor Harlech Court,15666.92, 25-Oct-2016
66,Revenue,CAHD,Bed Purchasing - North,Permanent Residential,5Th Floor Harlech Court,19367.24, 25-Oct-2016
67,Revenue,CAHD,Bed Purchasing - North,Permanent Residential,5Th Floor Harlech Court,13923.28, 25-Oct-2016
68,Revenue,CAHD,Jointly Funded H&SC Packages,Permanent Residential,5Th Floor Harlech Court,3078.96, 25-Oct-2016
69,Revenue,CAHD,18-25 Year Olds,Permanent Residential,5Th Floor Harlech Court,16146.32, 25-Oct-2016
70,Revenue,CAHD,Bed Purchasing - South,Permanent Residential,5Th Floor Harlech Court,9535.64, 25-Oct-2016
71,Revenue,CAHD,Bed purchasing - S28A Under 65 - South,Permanent Residential,5Th Floor Harlech Court,9950.84, 25-Oct-2016
72,Revenue,CAHD,Bed Purchasing - South,Permanent Residential,5Th Floor Harlech Court,10497.68, 25-Oct-2016
73,Revenue,CAHD,Bed Purchasing - North,Permanent Nursing,ABI Development Limited,7147.00, 25-Oct-2016
74,Revenue,CAHD,Training - Adult Services,Training Expenses,Acorn Health & Safety Limited,465.00, 04-Oct-2016
75,Revenue,CAHD,Training - Adult Services,Training Expenses,Acorn Health & Safety Limited,465.00, 18-Oct-2016
76,Revenue,CAHD,Training - Adult Services,Training Expenses,Acorn Health & Safety Limited,465.00, 24-Oct-2016
77,Revenue,CAHD,Home Care - Elderly - North,Day Care / Social Activities,Age Concern,624.05, 25-Oct-2016
78,Revenue,CAHD,Home Care - Elderly - South,Other Small Contracts,Agincare UK Limited,437.92, 14-Oct-2016
79,Revenue,CAHD,Home Care - Elderly - North,Other Small Contracts,Agincare UK Limited,1192.55, 14-Oct-2016
80,Revenue,CAHD,Home Care - Elderly - South,Other Small Contracts,Agincare UK Limited,461.38, 14-Oct-2016
81,Revenue,CAHD,Home Care - Elderly - North,Other Small Contracts,Agincare UK Limited,1192.55, 14-Oct-2016
82,Revenue,CAHD,Home Care - Elderly - South,Other Small Contracts,Agincare UK Limited,695.98, 14-Oct-2016
83,Revenue,CAHD,Home Care - Elderly - North,Other Small Contracts,Agincare UK Limited,1192.55, 14-Oct-2016
84,Revenue,CAHD,Home Care - Elderly - South,Other Small Contracts,Agincare UK Limited,868.02, 14-Oct-2016
85,Revenue,CAHD,Home Care - Elderly - North,Other Small Contracts,Agincare UK Limited,1200.37, 14-Oct-2016
86,Revenue,CAHD,Prison Assessments & Costs,Other Supplies & Services,Agincare UK Limited,4981.34, 26-Oct-2016
87,Revenue,CAHD,Home Care - Elderly - North,Other Small Contracts,Agincare UK Nutfield,1876.80, 17-Oct-2016
88,Revenue,CAHD,Home Care - Elderly - North,Day Care / Social Activities,Agincare UK Nutfield,152.49, 14-Oct-2016
89,Revenue,CAHD,Home Care - Elderly - North,Other Small Contracts,Agincare UK Nutfield,1915.90, 14-Oct-2016
90,Revenue,CAHD,Home Care - Elderly - North,Day Care / Social Activities,Agincare UK Nutfield,156.40, 14-Oct-2016
91,Revenue,CAHD,Home Care - Elderly - North,Other Small Contracts,Agincare UK Nutfield,1845.52, 14-Oct-2016
92,Revenue,CAHD,Home Care - Elderly - North,Day Care / Social Activities,Agincare UK Nutfield,148.58, 14-Oct-2016
93,Revenue,CAHD,Home Care - Elderly - North,Other Small Contracts,Agincare UK Nutfield,1806.42, 14-Oct-2016
94,Revenue,CAHD,Home Care - Elderly - North,Day Care / Social Activities,Agincare UK Nutfield,39.10, 14-Oct-2016
95,Revenue,CAHD,Home Care - Elderly - North,Other Small Contracts,Agincare UK Nutfield,1845.52, 14-Oct-2016
96,Revenue,CAHD,Home care - Elderly MH - South,Other Small Contracts,Agincare UK Nutfield,54.74, 14-Oct-2016
97,Revenue,CAHD,Home Care - Elderly - South,Supported Living,Alexandra Homes (Bristol) Limited,977.50, 18-Oct-2016
98,Revenue,CAHD,Home Care - Elderly - South,Supported Living,Alexandra Homes (Bristol) Limited,1219.00, 18-Oct-2016
99,Revenue,CAHD,Home Care - Elderly - South,Supported Living,Alexandra Homes (Bristol) Limited,1046.50, 18-Oct-2016
100,Revenue,CAHD,Home Care - Elderly - South,Supported Living,Alexandra Homes (Bristol) Limited,1150.00, 14-Oct-2016
101,Revenue,CAHD,Home Care - Elderly - South,Other Small Contracts,AliMo Care Ltd,1556.08, 05-Oct-2016
102,Revenue,CAHD,Home Care - Elderly - South,Other Small Contracts,AliMo Care Ltd,1530.64, 12-Oct-2016
103,Revenue,CAHD,Home Care - Elderly - South,Other Small Contracts,AliMo Care Ltd,1568.80, 20-Oct-2016
104,Revenue,CAHD,Home Care - Elderly - South,Other Small Contracts,AliMo Care Ltd,1547.60, 26-Oct-2016
105,Revenue,CAHD,Bed Purchasing - South,Permanent Nursing,Ambleside Nusing Home,1576.08, 25-Oct-2016
106,Revenue,CAHD,Bed Purchasing - Southmead Hospital,Permanent Nursing,Amerind Grove Nursing Home,1950.64, 25-Oct-2016
107,Revenue,CAHD,Bed Purchasing - Southmead Hospital,Permanent Nursing,Amerind Grove Nursing Home,1711.28, 25-Oct-2016
108,Revenue,CAHD,Woodleaze,Premises Maintenance by Contractor,Apre Surfacing Limited,3128.00, 28-Oct-2016
109,Revenue,CAHD,Direct Payments - Phys Dis - North,Grants to Voluntary Bodies,Aquarium Card Management Solutions Ltd,2240.00, 31-Oct-2016
110,Revenue,CAHD,Bed Purchasing - North,Permanent Residential,Ark Care Homes Ltd,10494.48, 25-Oct-2016
111,Revenue,CAHD,S117 Placements PCT,Permanent Residential,Ash View House,7148.68, 25-Oct-2016
112,Revenue,CAHD,18-25 Year Olds,Permanent Residential,Ash View House,6315.92, 25-Oct-2016
113,Revenue,CAHD,Section 117 Placements MH Younger,Permanent Residential,Ash View House,4658.52, 25-Oct-2016
114,Revenue,CAHD,Jointly Funded H&SC Packages,Permanent Residential,Ash View House,1996.52, 25-Oct-2016
115,Revenue,CAHD,Bed purchasing - Elderly S117 - South,Permanent Residential,Ash View House,6331.72, 25-Oct-2016
116,Revenue,CAHD,Bed Purchasing - North,Permanent Residential,Aspects 2 Limited,6441.16, 25-Oct-2016
117,Revenue,CAHD,Bed Purchasing - South,Permanent Residential,Autism Specialised Care Homes,5755.24, 25-Oct-2016
118,Revenue,CAHD,Learning Difficulties Development Fund,Other L.A.'s - General,Avon Valley Railway Company Limited,6000.00, 07-Oct-2016
119,Revenue,CAHD,Purchase of RAC places,Other L.A.'s - General,Bath & North East Somerset Council,5282.92, 17-Oct-2016
120,Revenue,CAHD,Purchase of RAC places,Other L.A.'s - General,Bath & North East Somerset Council,5583.50, 17-Oct-2016
121,Revenue,CAHD,Purchase of RAC places,Other L.A.'s - General,Bath & North East Somerset Council,1902.40, 17-Oct-2016
122,Revenue,CAHD,Bed Purchasing - Southmead Hospital,Permanent Nursing,Bayview Nursing & Residential Home,1503.96, 25-Oct-2016
123,Revenue,CAHD,South Glos Users in South Glos Homes,Permanent Nursing,Beaufort Grange Care Home,625.00, 25-Oct-2016
124,Revenue,CAHD,South Glos Users in South Glos Homes,Permanent Nursing,Beaufort Grange Care Home,625.00, 25-Oct-2016
125,Revenue,CAHD,South Glos Users in South Glos Homes,Permanent Nursing,Beaufort Grange Care Home,625.00, 25-Oct-2016
126,Revenue,CAHD,South Glos Users in South Glos Homes,Permanent Nursing,Beaufort Grange Care Home,625.00, 25-Oct-2016
127,Revenue,CAHD,South Glos Users in South Glos Homes,Permanent Nursing,Beaufort Grange Care Home,625.00, 25-Oct-2016
128,Revenue,CAHD,South Glos Users in South Glos Homes,Permanent Nursing,Beaufort Grange Care Home,625.00, 25-Oct-2016
129,Revenue,CAHD,South Glos Users in South Glos Homes,Permanent Nursing,Beaufort Grange Care Home,625.00, 25-Oct-2016
130,Revenue,CAHD,South Glos Users in South Glos Homes,Permanent Nursing,Beaufort Grange Care Home,625.00, 25-Oct-2016
131,Revenue,CAHD,South Glos Users in South Glos Homes,Permanent Nursing,Beaufort Grange Care Home,625.00, 25-Oct-2016
132,Revenue,CAHD,South Glos Users in South Glos Homes,Permanent Nursing,Beaufort Grange Care Home,625.00, 25-Oct-2016
133,Revenue,CAHD,South Glos Users in South Glos Homes,Permanent Nursing,Beaufort Grange Care Home,625.00, 25-Oct-2016
134,Revenue,CAHD,South Glos Users in South Glos Homes,Permanent Nursing,Beaufort Grange Care Home,625.00, 25-Oct-2016
135,Revenue,CAHD,South Glos Users in South Glos Homes,Permanent Nursing,Beaufort Grange Care Home,625.00, 25-Oct-2016
136,Revenue,CAHD,South Glos Users in South Glos Homes,Permanent Nursing,Beaufort Grange Care Home,625.00, 25-Oct-2016
137,Revenue,CAHD,South Glos Users in South Glos Homes,Permanent Nursing,Beaufort Grange Care Home,625.00, 25-Oct-2016
138,Revenue,CAHD,Bed Purchasing - Elderly S117- North,Permanent Nursing,Beaufort Grange Care Home,4411.20, 25-Oct-2016
139,Revenue,CAHD,South Glos Users in South Glos Homes,Permanent Nursing,Beaufort Grange Care Home,625.00, 25-Oct-2016
140,Revenue,CAHD,South Glos Users in South Glos Homes,Permanent Nursing,Beaufort Grange Care Home,625.00, 25-Oct-2016
141,Revenue,CAHD,Bed Purchasing - Elderly S117- North,Permanent Nursing,Beaufort Grange Care Home,4613.92, 25-Oct-2016
142,Revenue,CAHD,South Glos Users in South Glos Homes,Permanent Nursing,Beaufort Grange Care Home,625.00, 25-Oct-2016
143,Revenue,CAHD,South Glos Users in South Glos Homes,Permanent Nursing,Beaufort Grange Care Home,625.00, 25-Oct-2016
144,Revenue,CAHD,South Glos Users in South Glos Homes,Permanent Nursing,Beaufort Grange Care Home,625.00, 25-Oct-2016
145,Revenue,CAHD,South Glos Users in South Glos Homes,Permanent Nursing,Beaufort Grange Care Home,625.00, 25-Oct-2016
146,Revenue,CAHD,South Glos Users in South Glos Homes,Permanent Nursing,Beaufort Grange Care Home,625.00, 25-Oct-2016
147,Revenue,CAHD,South Glos Users in South Glos Homes,Permanent Nursing,Beaufort Grange Care Home,625.00, 25-Oct-2016
148,Revenue,CAHD,South Glos Users in South Glos Homes,Permanent Nursing,Beaufort Grange Care Home,625.00, 25-Oct-2016
149,Revenue,CAHD,South Glos Users in South Glos Homes,Permanent Nursing,Beaufort Grange Care Home,625.00, 25-Oct-2016
150,Revenue,CAHD,Bed Purchasing - North,Permanent Residential,Beaufort House,1705.40, 25-Oct-2016
151,Revenue,CAHD,Bed Purchasing - North,Permanent Residential,Beaufort House,2432.64, 25-Oct-2016
152,Revenue,CAHD,Bed Purchasing - South,Permanent Residential,Beaufort House,1501.64, 25-Oct-2016
153,Revenue,CAHD,Bed Purchasing - Southmead Hospital,Permanent Residential,Beaufort House,1302.12, 25-Oct-2016
154,Revenue,CAHD,Bed Purchasing - North,Permanent Residential,Beaufort House,1846.64, 25-Oct-2016
155,Revenue,CAHD,Bed Purchasing - North,Permanent Residential,Beaufort House,1483.64, 25-Oct-2016
156,Revenue,CAHD,Bed Purchasing - North,Permanent Residential,Beaufort House,11173.14, 25-Oct-2016
157,Revenue,CAHD,Bed Purchasing - North,Permanent Residential,Beaufort House,2031.48, 25-Oct-2016
158,Revenue,CAHD,Bed Purchasing - Southmead Hospital,Permanent Residential,Beaufort House,1857.20, 25-Oct-2016
159,Revenue,CAHD,Bed Purchasing - South,Permanent Residential,Bedrock Lodge,3182.48, 25-Oct-2016
160,Revenue,CAHD,Bed Purchasing - South,Permanent Residential,Bedrock Lodge,3036.56, 25-Oct-2016
161,Revenue,CAHD,Section 117 Placements MH Younger,Permanent Residential,Bedrock Lodge,1925.00, 25-Oct-2016
162,Revenue,CAHD,South Glos Users in South Glos Homes,Permanent Nursing,Beech House,625.00, 25-Oct-2016
163,Revenue,CAHD,Bed Purchasing - South,Permanent Residential,Beech House,2001.20, 25-Oct-2016
164,Revenue,CAHD,South Glos Users in South Glos Homes,Permanent Nursing,Beech House,625.00, 25-Oct-2016
165,Revenue,CAHD,South Glos Users in South Glos Homes,Permanent Nursing,Beech House,625.00, 25-Oct-2016
166,Revenue,CAHD,South Glos Users in South Glos Homes,Permanent Nursing,Beech House,625.00, 25-Oct-2016
167,Revenue,CAHD,Bed purchasing - Elderly MH - North,Permanent Nursing,Beech House,4368.16, 25-Oct-2016
168,Revenue,CAHD,Bed purchasing - Elderly MH - North,Permanent Nursing,Beech House,1853.16, 25-Oct-2016
169,Revenue,CAHD,South Glos Users in South Glos Homes,Permanent Nursing,Beech House,625.00, 25-Oct-2016
170,Revenue,CAHD,South Glos Users in South Glos Homes,Permanent Nursing,Beech House,625.00, 25-Oct-2016
171,Revenue,CAHD,South Glos Users in South Glos Homes,Permanent Nursing,Beech House,625.00, 25-Oct-2016
172,Revenue,CAHD,South Glos Users in South Glos Homes,Permanent Nursing,Beech House,625.00, 25-Oct-2016
173,Revenue,CAHD,Bed Purchasing - North,Permanent Nursing,Beech House,2172.00, 25-Oct-2016
174,Revenue,CAHD,South Glos Users in South Glos Homes,Permanent Nursing,Beech House,625.00, 25-Oct-2016
175,Revenue,CAHD,Bed Purchasing - North,Permanent Residential,Beech House,2001.20, 25-Oct-2016
176,Revenue,CAHD,South Glos Users in South Glos Homes,Permanent Nursing,Beech House,625.00, 25-Oct-2016
177,Revenue,CAHD,South Glos Users in South Glos Homes,Permanent Nursing,Beech House,625.00, 25-Oct-2016
178,Revenue,CAHD,South Glos Users in South Glos Homes,Permanent Nursing,Beech House,625.00, 25-Oct-2016
179,Revenue,CAHD,South Glos Users in South Glos Homes,Permanent Nursing,Beech House,625.00, 25-Oct-2016
180,Revenue,CAHD,South Glos Users in South Glos Homes,Permanent Nursing,Beech House,625.00, 25-Oct-2016
181,Revenue,CAHD,South Glos Users in South Glos Homes,Permanent Nursing,Beech House,625.00, 25-Oct-2016
182,Revenue,CAHD,South Glos Users in South Glos Homes,Permanent Nursing,Beech House,625.00, 25-Oct-2016
183,Revenue,CAHD,South Glos Users in South Glos Homes,Permanent Nursing,Beech House,625.00, 25-Oct-2016
184,Revenue,CAHD,South Glos Users in South Glos Homes,Permanent Nursing,Beech House,625.00, 25-Oct-2016
185,Revenue,CAHD,South Glos Users in South Glos Homes,Permanent Nursing,Beech House,625.00, 25-Oct-2016
186,Revenue,CAHD,South Glos Users in South Glos Homes,Permanent Nursing,Beech House,625.00, 25-Oct-2016
187,Revenue,CAHD,South Glos Users in South Glos Homes,Permanent Nursing,Beech House,625.00, 25-Oct-2016
188,Revenue,CAHD,South Glos Users in South Glos Homes,Permanent Nursing,Beech House,625.00, 25-Oct-2016
189,Revenue,CAHD,Bed Purchasing - North,Permanent Nursing,Beech House,1094.80, 25-Oct-2016
190,Revenue,CAHD,South Glos Users in South Glos Homes,Permanent Nursing,Beech House,625.00, 25-Oct-2016
191,Revenue,CAHD,South Glos Users in South Glos Homes,Permanent Nursing,Beech House,625.00, 25-Oct-2016
192,Revenue,CAHD,South Glos Users in South Glos Homes,Permanent Nursing,Beech House,625.00, 25-Oct-2016
193,Revenue,CAHD,South Glos Users in South Glos Homes,Permanent Nursing,Beech House,625.00, 25-Oct-2016
194,Revenue,CAHD,South Glos Users in South Glos Homes,Permanent Nursing,Beech House,625.00, 25-Oct-2016
195,Revenue,CAHD,South Glos Users in South Glos Homes,Permanent Nursing,Beech House,691.96, 25-Oct-2016
196,Revenue,CAHD,South Glos Users in South Glos Homes,Permanent Nursing,Beech House,625.00, 25-Oct-2016
197,Revenue,CAHD,Home Care - Elderly - North,Other Small Contracts,Bibby Factors Bristol Limited,8497.58, 07-Oct-2016
198,Revenue,CAHD,Home Care - Elderly - North,Other Small Contracts,Bibby Factors Bristol Limited,8565.04, 14-Oct-2016
199,Revenue,CAHD,Home Care - Elderly - North,Other Small Contracts,Bibby Factors Bristol Limited,8731.54, 21-Oct-2016
200,Revenue,CAHD,Home Care - Elderly - North,Other Small Contracts,Bibby Factors Bristol Limited,8368.46, 28-Oct-2016
201,Revenue,CAHD,Bed Purchasing - North,Permanent Nursing,Blossom Field,2402.12, 25-Oct-2016
202,Revenue,CAHD,South Glos Users in South Glos Homes,Permanent Nursing,Blossom Field,625.00, 25-Oct-2016
203,Revenue,CAHD,Bed Purchasing - North,Permanent Nursing,Blossom Field,2438.72, 25-Oct-2016
204,Revenue,CAHD,South Glos Users in South Glos Homes,Permanent Nursing,Blossom Field,625.00, 25-Oct-2016
205,Revenue,CAHD,Bed Purchasing - Elderly S117- North,Permanent Nursing,Blossom Field,2040.00, 25-Oct-2016
206,Revenue,CAHD,South Glos Users in South Glos Homes,Permanent Nursing,Blossom Field,625.00, 25-Oct-2016
207,Revenue,CAHD,South Glos Users in South Glos Homes,Permanent Nursing,Blossom Field,625.00, 25-Oct-2016
208,Revenue,CAHD,Bed Purchasing - Southmead Hospital,Permanent Nursing,Blossom Field,4063.04, 25-Oct-2016
209,Revenue,CAHD,South Glos Users in South Glos Homes,Permanent Nursing,Blossom Field,625.00, 25-Oct-2016
210,Revenue,CAHD,South Glos Users in South Glos Homes,Permanent Nursing,Blossom Field,625.00, 25-Oct-2016
211,Revenue,CAHD,Bed Purchasing - North,Permanent Nursing,Blossom Field,2447.92, 25-Oct-2016
212,Revenue,CAHD,South Glos Users in South Glos Homes,Permanent Nursing,Blossom Field,625.00, 25-Oct-2016
213,Revenue,CAHD,South Glos Users in South Glos Homes,Permanent Nursing,Blossom Field,625.00, 25-Oct-2016
214,Revenue,CAHD,South Glos Users in South Glos Homes,Permanent Nursing,Blossom Field,625.00, 25-Oct-2016
215,Revenue,CAHD,South Glos Users in South Glos Homes,Permanent Nursing,Blossom Field,625.00, 25-Oct-2016
216,Revenue,CAHD,South Glos Users in South Glos Homes,Permanent Nursing,Blossom Field,625.00, 25-Oct-2016
217,Revenue,CAHD,South Glos Users in South Glos Homes,Permanent Nursing,Blossom Field,625.00, 25-Oct-2016
218,Revenue,CAHD,Bed purchasing - Elderly S117 - South,Permanent Nursing,Blossom Field,14400.00, 25-Oct-2016
219,Revenue,CAHD,Bed purchasing - Elderly S117 - South,Permanent Nursing,Blossom Field,4459.84, 25-Oct-2016
220,Revenue,CAHD,South Glos Users in South Glos Homes,Permanent Nursing,Blossom Field,625.00, 25-Oct-2016
221,Revenue,CAHD,South Glos Users in South Glos Homes,Permanent Nursing,Blossom Field,625.00, 25-Oct-2016
222,Revenue,CAHD,South Glos Users in South Glos Homes,Permanent Nursing,Blossom Field,625.00, 25-Oct-2016
223,Revenue,CAHD,South Glos Users in South Glos Homes,Permanent Nursing,Blossom Field,625.00, 25-Oct-2016
224,Revenue,CAHD,Bed purchasing - Elderly S117 - South,Permanent Nursing,Blossom Field,4411.20, 25-Oct-2016
225,Revenue,CAHD,South Glos Users in South Glos Homes,Permanent Nursing,Blossom Field,625.00, 25-Oct-2016
226,Revenue,CAHD,South Glos Users in South Glos Homes,Permanent Nursing,Blossom Field,625.00, 25-Oct-2016
227,Revenue,CAHD,South Glos Users in South Glos Homes,Permanent Nursing,Blossom Field,625.00, 25-Oct-2016
228,Revenue,CAHD,South Glos Users in South Glos Homes,Permanent Nursing,Blossom Field,625.00, 25-Oct-2016
229,Revenue,CAHD,South Glos Users in South Glos Homes,Permanent Nursing,Blossom Field,625.00, 25-Oct-2016
230,Revenue,CAHD,South Glos Users in South Glos Homes,Permanent Nursing,Blossom Field,625.00, 25-Oct-2016
231,Revenue,CAHD,South Glos Users in South Glos Homes,Permanent Nursing,Blossom Field,625.00, 25-Oct-2016
232,Revenue,CAHD,South Glos Users in South Glos Homes,Permanent Nursing,Blossom Field,625.00, 25-Oct-2016
233,Revenue,CAHD,South Glos Users in South Glos Homes,Permanent Nursing,Blossom Field,625.00, 25-Oct-2016
234,Revenue,CAHD,South Glos Users in South Glos Homes,Permanent Nursing,Blossom Field,625.00, 25-Oct-2016
235,Revenue,CAHD,South Glos Users in South Glos Homes,Permanent Nursing,Blossom Field,625.00, 25-Oct-2016
236,Revenue,CAHD,Bed Purchasing - North,Permanent Nursing,Blossom Field,2835.56, 25-Oct-2016
237,Revenue,CAHD,South Glos Users in South Glos Homes,Permanent Nursing,Blossom Field,625.00, 25-Oct-2016
238,Revenue,CAHD,Bed Purchasing - North,Permanent Nursing,Blossom Field,2806.52, 25-Oct-2016
239,Revenue,CAHD,South Glos Users in South Glos Homes,Permanent Nursing,Blossom Field,625.00, 25-Oct-2016
240,Revenue,CAHD,South Glos Users in South Glos Homes,Permanent Nursing,Blossom Field,625.00, 25-Oct-2016
241,Revenue,CAHD,South Glos Users in South Glos Homes,Permanent Nursing,Blossom Field,625.00, 25-Oct-2016
242,Revenue,CAHD,South Glos Users in South Glos Homes,Permanent Nursing,Blossom Field,625.00, 25-Oct-2016
243,Revenue,CAHD,South Glos Users in South Glos Homes,Permanent Nursing,Blossom Fields,625.00, 20-Oct-2016
244,Revenue,CAHD,South Glos Users in South Glos Homes,Permanent Nursing,Blossom Fields,625.00, 20-Oct-2016
245,Revenue,CAHD,South Glos Users in South Glos Homes,Permanent Nursing,Blossom Fields,625.00, 20-Oct-2016
246,Revenue,CAHD,Bed Purchasing - North,Permanent Nursing,Blossom Fields,1860.16, 20-Oct-2016
247,Revenue,CAHD,Bed Purchasing - Southmead Hospital,Permanent Nursing,Blossom Fields,2129.20, 20-Oct-2016
248,Revenue,CAHD,Bed Purchasing - North,Permanent Nursing,Blossom Fields,2652.00, 20-Oct-2016
249,Revenue,CAHD,Home Care - Elderly - South,Other Small Contracts,Bluebird Care (South Gloucestershire),602.40, 11-Oct-2016
250,Revenue,CAHD,Home Care - Elderly - North,Other Small Contracts,Bluebird Care (South Gloucestershire),2058.97, 11-Oct-2016
251,Revenue,CAHD,Home Care - Elderly - South,Other Small Contracts,Bluebird Care (South Gloucestershire),597.38, 11-Oct-2016
252,Revenue,CAHD,Home Care - Elderly - North,Other Small Contracts,Bluebird Care (South Gloucestershire),2079.05, 11-Oct-2016
253,Revenue,CAHD,Home Care - Elderly - South,Other Small Contracts,Bluebird Care (South Gloucestershire),597.38, 12-Oct-2016
254,Revenue,CAHD,Home Care - Elderly - North,Other Small Contracts,Bluebird Care (South Gloucestershire),1943.51, 12-Oct-2016
255,Revenue,CAHD,Home Care - Elderly - South,Other Small Contracts,Bluebird Care (South Gloucestershire),592.36, 11-Oct-2016
256,Revenue,CAHD,Home Care - Elderly - North,Other Small Contracts,Bluebird Care (South Gloucestershire),2111.40, 11-Oct-2016
257,Revenue,CAHD,Bed purchasing - S28A Under 65 - South,Permanent Residential,Bradbury House,4391.28, 25-Oct-2016
258,Revenue,CAHD,Bed Purchasing - South,Permanent Residential,Bradbury House,7945.92, 25-Oct-2016
259,Revenue,CAHD,Bed purchasing - S28A Under 65 - South,Permanent Residential,Bradbury House,6534.72, 25-Oct-2016
260,Revenue,CAHD,18-25 Year Olds,Permanent Residential,Bradbury House,8981.52, 25-Oct-2016
261,Revenue,CAHD,Bed purchasing - Elderly S117 - South,Permanent Residential,Bradbury House,8462.56, 25-Oct-2016
262,Revenue,CAHD,Jointly Funded H&SC Packages,Permanent Residential,Bradbury House,3144.08, 25-Oct-2016
263,Revenue,CAHD,South Glos Users in South Glos Homes,Permanent Nursing,Brandon Trust,5742.71, 25-Oct-2016
264,Revenue,CAHD,South Glos Users in South Glos Homes,Permanent Nursing,Brandon Trust,625.00, 25-Oct-2016
265,Revenue,CAHD,South Glos Users in South Glos Homes,Permanent Nursing,Brandon Trust,625.00, 25-Oct-2016
266,Revenue,CAHD,Bed Purchasing - South,Permanent Nursing,Brandon Trust,5239.96, 25-Oct-2016
267,Revenue,CAHD,South Glos Users in South Glos Homes,Permanent Nursing,Brandon Trust,625.00, 25-Oct-2016
268,Revenue,CAHD,Bed Purchasing - South,Permanent Residential,Brandon Trust,10525.96, 25-Oct-2016
269,Revenue,CAHD,Bed Purchasing - South,Permanent Residential,Brandon Trust,4174.12, 25-Oct-2016
270,Revenue,CAHD,Bed Purchasing - Southmead Hospital,Permanent Nursing,Brandon Trust,4615.24, 25-Oct-2016
271,Revenue,CAHD,South Glos Users in South Glos Homes,Permanent Nursing,Brandon Trust,625.00, 25-Oct-2016
272,Revenue,CAHD,Bed Purchasing - South,Permanent Nursing,Brandon Trust,5166.12, 25-Oct-2016
273,Revenue,CAHD,South Glos Users in South Glos Homes,Permanent Nursing,Brandon Trust,625.00, 25-Oct-2016
274,Revenue,CAHD,Bed purchasing - S28A Under 65 - South,Permanent Nursing,Brandon Trust,5574.32, 25-Oct-2016
275,Revenue,CAHD,South Glos Users in South Glos Homes,Permanent Nursing,Brandon Trust,625.00, 25-Oct-2016
276,Revenue,CAHD,Bed purchasing - S28A Under 65 - South,Permanent Residential,Brandon Trust,4539.64, 25-Oct-2016
277,Revenue,CAHD,Bed Purchasing - LD S28A- Over 65- South,Permanent Nursing,Brandon Trust,5251.12, 25-Oct-2016
278,Revenue,CAHD,South Glos Users in South Glos Homes,Permanent Nursing,Brandon Trust,625.00, 25-Oct-2016
279,Revenue,CAHD,Bed Purchasing - LD S28A- Over 65- South,Permanent Nursing,Brandon Trust,4964.92, 25-Oct-2016
280,Revenue,CAHD,South Glos Users in South Glos Homes,Permanent Nursing,Brandon Trust,625.00, 25-Oct-2016
281,Revenue,CAHD,Bed Purchasing - South,Permanent Residential,Brandon Trust,3308.08, 25-Oct-2016
282,Revenue,CAHD,Bed purchasing - S28A Under 65 - South,Permanent Residential,Brandon Trust,5335.92, 25-Oct-2016
283,Revenue,CAHD,Bed purchasing - S28A Under 65 - South,Permanent Residential,Brandon Trust,5392.96, 25-Oct-2016
284,Revenue,CAHD,South Glos Users in South Glos Homes,Permanent Nursing,Brandon Trust,625.00, 25-Oct-2016
285,Revenue,CAHD,Bed purchasing - S28A Under 65 - South,Permanent Nursing,Brandon Trust,5496.12, 25-Oct-2016
286,Revenue,CAHD,South Glos Users in South Glos Homes,Permanent Nursing,Brandon Trust,625.00, 25-Oct-2016
287,Revenue,CAHD,Bed purchasing -S28A  Under 65 - North,Permanent Nursing,Brandon Trust,5007.44, 25-Oct-2016
288,Revenue,CAHD,Bed purchasing - S28A Under 65 - South,Permanent Residential,Brandon Trust,5392.96, 25-Oct-2016
289,Revenue,CAHD,Bed Purchasing - LD S28A- Over 65- South,Permanent Residential,Brandon Trust,4849.92, 25-Oct-2016
290,Revenue,CAHD,Social Lettings Agency,Fees - General,Individual,11.41, 03-Oct-2016
291,Revenue,CAHD,Social Lettings Agency,Other Supplies & Services,Individual,746.54, 03-Oct-2016
292,Revenue,CAHD,Tenancy Start Up Scheme,Other Supplies & Services,Individual,631.00, 18-Oct-2016
293,Revenue,CAHD,Tenancy Start Up Scheme,Other Supplies & Services,Individual,1312.00, 19-Oct-2016
294,Revenue,CAHD,Bed Purchasing - Southmead Hospital,Permanent Residential,Bridge House Care Home,1901.20, 25-Oct-2016
295,Revenue,CAHD,Bed Purchasing - North,Permanent Residential,Bridge House Care Home,1257.32, 25-Oct-2016
296,Revenue,CAHD,Bed purchasing - Elderly S117 - South,Respite Planned - Residential,Bridge House Care Home,2392.00, 25-Oct-2016
297,Revenue,CAHD,Bed Purchasing - North,Permanent Residential,Bridge House Care Home,1089.80, 25-Oct-2016
298,Revenue,CAHD,Bed Purchasing - North,Permanent Residential,Bridge House Care Home,1550.80, 25-Oct-2016
299,Revenue,CAHD,Bed Purchasing - North,Permanent Residential,Bridgwater Court,10192.44, 25-Oct-2016
300,Revenue,CAHD,Bed Purchasing - South,Permanent Residential,Brightbow,2131.88, 25-Oct-2016
301,Revenue,CAHD,MH Purchasing - Younger,Permanent Residential,Brightbow,1519.76, 25-Oct-2016
302,Revenue,CAHD,Home Care - Elderly - South,Day Care / Social Activities,Bristol Houses UK Limited,1208.97, 07-Oct-2016
303,Revenue,CAHD,Home Care - Elderly - South,Day Care / Social Activities,Bristol Houses UK Limited,1113.21, 14-Oct-2016
304,Revenue,CAHD,Home Care - Elderly - North,Day Care / Social Activities,Bristol Houses UK Limited,766.08, 14-Oct-2016
305,Revenue,CAHD,Supporting People Programme,Grants to Voluntary Bodies,Bristol Missing Link,1464.83, 06-Oct-2016
306,Revenue,CAHD,Alexandra Way,Water Charges,Bristol Wessex Billing Services Limited,735.64, 28-Oct-2016
307,Revenue,CAHD,Home Care - Elderly - North,Day Care / Social Activities,Britannia House,937.28, 25-Oct-2016
308,Revenue,CAHD,Home Care - Elderly - North,Day Care / Social Activities,Britannia House,702.96, 25-Oct-2016
309,Revenue,CAHD,Home Care - Elderly - North,Day Care / Social Activities,Britannia House,702.96, 25-Oct-2016
310,Revenue,CAHD,Home Care - Elderly - North,Day Care / Social Activities,Britannia House,937.28, 25-Oct-2016
311,Revenue,CAHD,Home Care - Elderly - North,Day Care / Social Activities,Britannia House,644.38, 25-Oct-2016
312,Revenue,CAHD,Home Care - Elderly - South,Day Care / Social Activities,Britannia House,937.28, 25-Oct-2016
313,Revenue,CAHD,Home Care - Elderly - South,Day Care / Social Activities,Britannia House,702.96, 25-Oct-2016
314,Revenue,CAHD,Home Care - Elderly - South,Day Care / Social Activities,Britannia House,702.96, 25-Oct-2016
315,Revenue,CAHD,Home Care - Elderly - North,Private & Voluntary Home Care,Brunelcare,23822.65, 03-Oct-2016
316,Revenue,CAHD,Home Care - Elderly - North,Private & Voluntary Home Care,Brunelcare,23822.65, 10-Oct-2016
317,Revenue,CAHD,Home Care - Elderly - North,Private & Voluntary Home Care,Brunelcare,23822.65, 17-Oct-2016
318,Revenue,CAHD,Home Care - Elderly - North,Private & Voluntary Home Care,Brunelcare,23822.65, 24-Oct-2016
319,Revenue,CAHD,Home Care - Elderly - North,Private & Voluntary Home Care,Brunelcare,23822.65, 31-Oct-2016
320,Revenue,CAHD,Bed Purchasing - South,Permanent Nursing,Brunelcare,1895.57, 18-Oct-2016
321,Revenue,CAHD,South Glos Users in South Glos Homes,Permanent Nursing,Brunelcare,669.64, 18-Oct-2016
322,Revenue,CAHD,Bed Purchasing - Elderly S117- North,Permanent Nursing,Brunelcare,3077.14, 18-Oct-2016
323,Revenue,CAHD,South Glos Users in South Glos Homes,Permanent Nursing,Brunelcare,669.64, 18-Oct-2016
324,Revenue,CAHD,Bed Purchasing - South,Permanent Nursing,Brunelcare,2277.64, 18-Oct-2016
325,Revenue,CAHD,Bed Purchasing - Elderly S117- North,Permanent Nursing,Brunelcare,3077.14, 18-Oct-2016
326,Revenue,CAHD,South Glos Users in South Glos Homes,Permanent Nursing,Brunelcare,669.64, 18-Oct-2016
327,Revenue,CAHD,Bed Purchasing - Southmead Hospital,Permanent Nursing,Brunelcare,1397.49, 18-Oct-2016
328,Revenue,CAHD,South Glos Users in South Glos Homes,Permanent Nursing,Brunelcare,669.64, 18-Oct-2016
329,Revenue,CAHD,Bed Purchasing - South,Permanent Nursing,Brunelcare,2517.00, 18-Oct-2016
330,Revenue,CAHD,South Glos Users in South Glos Homes,Permanent Nursing,Brunelcare,669.64, 18-Oct-2016
331,Revenue,CAHD,Bed Purchasing - South,Permanent Nursing,Brunelcare,2331.69, 18-Oct-2016
332,Revenue,CAHD,South Glos Users in South Glos Homes,Permanent Nursing,Brunelcare,669.64, 18-Oct-2016
333,Revenue,CAHD,Bed purchasing - Elderly S117 - South,Permanent Nursing,Brunelcare,3077.14, 18-Oct-2016
334,Revenue,CAHD,South Glos Users in South Glos Homes,Permanent Nursing,Brunelcare,669.64, 18-Oct-2016
335,Revenue,CAHD,Bed Purchasing - North,Permanent Nursing,Brunelcare,2448.17, 18-Oct-2016
336,Revenue,CAHD,South Glos Users in South Glos Homes,Permanent Nursing,Brunelcare,669.64, 18-Oct-2016
337,Revenue,CAHD,Bed Purchasing - Southmead Hospital,Permanent Nursing,Brunelcare,2351.70, 18-Oct-2016
338,Revenue,CAHD,South Glos Users in South Glos Homes,Permanent Nursing,Brunelcare,669.64, 18-Oct-2016
339,Revenue,CAHD,Bed Purchasing - North,Permanent Nursing,Brunelcare,2470.37, 18-Oct-2016
340,Revenue,CAHD,South Glos Users in South Glos Homes,Permanent Nursing,Brunelcare,669.64, 18-Oct-2016
341,Revenue,CAHD,Bed Purchasing - North,Permanent Nursing,Brunelcare,2517.00, 18-Oct-2016
342,Revenue,CAHD,South Glos Users in South Glos Homes,Permanent Nursing,Brunelcare,669.64, 18-Oct-2016
343,Revenue,CAHD,Bed Purchasing - Southmead Hospital,Permanent Nursing,Brunelcare,2517.00, 18-Oct-2016
344,Revenue,CAHD,South Glos Users in South Glos Homes,Permanent Nursing,Brunelcare,669.64, 18-Oct-2016
345,Revenue,CAHD,Bed Purchasing - Southmead Hospital,Permanent Nursing,Brunelcare,2430.34, 18-Oct-2016
346,Revenue,CAHD,South Glos Users in South Glos Homes,Permanent Nursing,Brunelcare,669.64, 18-Oct-2016
347,Revenue,CAHD,Bed Purchasing - Elderly S117- North,Permanent Nursing,Brunelcare,3077.14, 18-Oct-2016
348,Revenue,CAHD,Bed Purchasing - South,Respite Planned - Nursing,Brunelcare,512.86, 18-Oct-2016
349,Revenue,CAHD,Bed Purchasing - South,Respite Planned - Nursing,Brunelcare,1333.43, 18-Oct-2016
350,Revenue,CAHD,Bed Purchasing - North,Respite Planned - Nursing,Brunelcare,1230.86, 18-Oct-2016
351,Revenue,CAHD,Bed Purchasing - South,Respite Planned - Nursing,Brunelcare,820.57, 18-Oct-2016
352,Revenue,CAHD,Pathway 2 - (Interim Beds),Permanent Nursing,Brunelcare,15407.00, 05-Oct-2016
353,Revenue,CAHD,Home Care - Elderly - South,Other Small Contracts,Brunelcare,2568.47, 19-Oct-2016
354,Revenue,CAHD,Home Care - Elderly - North,Other Small Contracts,Brunelcare,1491.64, 19-Oct-2016
355,Revenue,CAHD,Home Care - Elderly - South,Other Small Contracts,Brunelcare,2367.35, 19-Oct-2016
356,Revenue,CAHD,Home Care - Elderly - North,Other Small Contracts,Brunelcare,1479.07, 19-Oct-2016
357,Revenue,CAHD,Home Care - Elderly - South,Other Small Contracts,Brunelcare,2405.06, 19-Oct-2016
358,Revenue,CAHD,Home Care - Elderly - North,Other Small Contracts,Brunelcare,1495.83, 19-Oct-2016
359,Revenue,CAHD,Home Care - Elderly - South,Other Small Contracts,Brunelcare,2338.02, 19-Oct-2016
360,Revenue,CAHD,Home Care - Elderly - North,Other Small Contracts,Brunelcare,1319.85, 19-Oct-2016
361,Revenue,CAHD,Pathway 1 - Re-Ablement Home Care,Other Small Contracts,Brunelcare,68893.92, 12-Oct-2016
362,Revenue,CAHD,Woodleaze,Agency Staff (Admin/Support Staff) Pay,BS Project Services Limited,497.99, 13-Oct-2016
363,Revenue,CAHD,Woodleaze,Agency Staff (Admin/Support Staff) Pay,BS Project Services Limited,665.20, 26-Oct-2016
364,Revenue,CAHD,Bed Purchasing - North,Permanent Nursing,Bupa Care Services  Bridge House,1740.00, 25-Oct-2016
365,Revenue,CAHD,Jointly Funded H&SC Packages,Permanent Nursing,Bupa Care Services  Bridge House,4344.04, 25-Oct-2016
366,Revenue,CAHD,South Glos Users in all other LA Homes,Permanent Nursing,Bupa Care Services  Bridge House,856.20, 25-Oct-2016
367,Revenue,CAHD,Woodleaze,Premises Maintenance by Contractor,BWS Security Systems Limited,450.00, 24-Oct-2016
368,Revenue,CAHD,Bed Purchasing - Elderly S117- North,Permanent Residential,Cameo House,3400.00, 25-Oct-2016
369,Revenue,CAHD,Home Care - Elderly - North,Day Care / Social Activities,Camphill Communities Thornbury Limited,976.00, 06-Oct-2016
370,Revenue,CAHD,Home Care - Elderly - North,Other Small Contracts,Camphill Communities Thornbury Limited,148.00, 06-Oct-2016
371,Revenue,CAHD,Home Care - Elderly - North,Supported Living,Camphill Communities Thornbury Limited,636.00, 06-Oct-2016
372,Revenue,CAHD,Home Care - Elderly - North,Day Care / Social Activities,Camphill Communities Thornbury Limited,1108.00, 13-Oct-2016
373,Revenue,CAHD,Home Care - Elderly - North,Other Small Contracts,Camphill Communities Thornbury Limited,144.00, 13-Oct-2016
374,Revenue,CAHD,Home Care - Elderly - North,Supported Living,Camphill Communities Thornbury Limited,1208.00, 13-Oct-2016
375,Revenue,CAHD,Home Care - Elderly - North,Day Care / Social Activities,Camphill Communities Thornbury Limited,960.00, 21-Oct-2016
376,Revenue,CAHD,Home Care - Elderly - North,Other Small Contracts,Camphill Communities Thornbury Limited,144.00, 21-Oct-2016
377,Revenue,CAHD,Home Care - Elderly - North,Supported Living,Camphill Communities Thornbury Limited,1140.00, 21-Oct-2016
378,Revenue,CAHD,Home Care - Elderly - North,Day Care / Social Activities,Camphill Communities Thornbury Limited,1012.00, 28-Oct-2016
379,Revenue,CAHD,Home Care - Elderly - North,Other Small Contracts,Camphill Communities Thornbury Limited,144.00, 28-Oct-2016
380,Revenue,CAHD,Home Care - Elderly - North,Supported Living,Camphill Communities Thornbury Limited,996.00, 28-Oct-2016
381,Revenue,CAHD,Bed Purchasing - Elderly S117- North,Permanent Residential,Canjayor,2391.32, 25-Oct-2016
382,Revenue,CAHD,Information Systems - Software,Fees - General,Capita Business Services Ltd,17625.00, 06-Oct-2016
383,Revenue,CAHD,Information Systems - Software,Software Support & Maintenance,Capita Business Services Ltd,450.00, 07-Oct-2016
384,Revenue,CAHD,CAH Assistant Directors,Agency Staff (Admin/Support Staff) Pay,Capita Resourcing Limited,14640.00, 07-Oct-2016
385,Revenue,CAHD,Home Care - Elderly - South,Other Small Contracts,Care 1st Homecare,2952.35, 17-Oct-2016
386,Revenue,CAHD,Home Care - Elderly - North,Other Small Contracts,Care 1st Homecare,2357.57, 17-Oct-2016
387,Revenue,CAHD,Home Care - Elderly - South,Other Small Contracts,Care 1st Homecare,3258.36, 19-Oct-2016
388,Revenue,CAHD,Home Care - Elderly - North,Other Small Contracts,Care 1st Homecare,2557.09, 19-Oct-2016
389,Revenue,CAHD,Home Care - Elderly - South,Other Small Contracts,Care 1st Homecare,3340.25, 19-Oct-2016
390,Revenue,CAHD,Home Care - Elderly - North,Other Small Contracts,Care 1st Homecare,2459.65, 19-Oct-2016
391,Revenue,CAHD,Home Care - Elderly - South,Other Small Contracts,Care 1st Homecare,3765.53, 17-Oct-2016
392,Revenue,CAHD,Home Care - Elderly - North,Other Small Contracts,Care 1st Homecare,2787.21, 17-Oct-2016
393,Revenue,CAHD,Home Care - Elderly - South,Other Small Contracts,Care 1st Homecare,4536.32, 19-Oct-2016
394,Revenue,CAHD,Home Care - Elderly - North,Other Small Contracts,Care 1st Homecare,3123.39, 19-Oct-2016
395,Revenue,CAHD,Home Care - Elderly - South,Other Small Contracts,Care 1st Homecare,4646.88, 19-Oct-2016
396,Revenue,CAHD,Home Care - Elderly - North,Other Small Contracts,Care 1st Homecare,3165.99, 19-Oct-2016
397,Revenue,CAHD,Training - Adult Services,Training Expenses,Care Focus (South West) CIC,9450.00, 04-Oct-2016
398,Revenue,CAHD,Home Care - Elderly - South,Other Small Contracts,Care Horizons Limited,364.80, 19-Oct-2016
399,Revenue,CAHD,Home Care - Elderly - North,Day Care / Social Activities,Care Horizons Limited,533.52, 19-Oct-2016
400,Revenue,CAHD,Home Care - Elderly - North,Other Small Contracts,Care Horizons Limited,638.40, 19-Oct-2016
401,Revenue,CAHD,Home Care - Elderly - South,Other Small Contracts,Care Horizons Limited,405.84, 11-Oct-2016
402,Revenue,CAHD,Home Care - Elderly - North,Day Care / Social Activities,Care Horizons Limited,542.64, 11-Oct-2016
403,Revenue,CAHD,Home Care - Elderly - North,Other Small Contracts,Care Horizons Limited,592.80, 11-Oct-2016
404,Revenue,CAHD,Home Care - Elderly - South,Other Small Contracts,Care Horizons Limited,373.92, 19-Oct-2016
405,Revenue,CAHD,Home Care - Elderly - North,Day Care / Social Activities,Care Horizons Limited,515.28, 19-Oct-2016
406,Revenue,CAHD,Home Care - Elderly - North,Other Small Contracts,Care Horizons Limited,300.96, 19-Oct-2016
407,Revenue,CAHD,Home Care - Elderly - South,Other Small Contracts,Care Horizons Limited,351.12, 11-Oct-2016
408,Revenue,CAHD,Home Care - Elderly - North,Day Care / Social Activities,Care Horizons Limited,533.52, 11-Oct-2016
409,Revenue,CAHD,Home Care - Elderly - North,Other Small Contracts,Care Horizons Limited,259.92, 11-Oct-2016
410,Revenue,CAHD,Home Care - Elderly - South,Other Small Contracts,Care Horizons Limited,369.36, 19-Oct-2016
411,Revenue,CAHD,Home Care - Elderly - North,Day Care / Social Activities,Care Horizons Limited,538.08, 19-Oct-2016
412,Revenue,CAHD,Home Care - Elderly - North,Other Small Contracts,Care Horizons Limited,351.12, 19-Oct-2016
413,Revenue,CAHD,Home Care - Elderly - South,Other Small Contracts,Care Horizons Limited,351.12, 25-Oct-2016
414,Revenue,CAHD,Home Care - Elderly - North,Day Care / Social Activities,Care Horizons Limited,515.28, 25-Oct-2016
415,Revenue,CAHD,Home Care - Elderly - North,Other Small Contracts,Care Horizons Limited,218.88, 25-Oct-2016
416,Revenue,CAHD,Home Care Monitoring (CM2000),Other Supplies & Services,Care Monitoring 2000 Limited,1308.00, 26-Oct-2016
417,Revenue,CAHD,Home Care Monitoring (CM2000),Other Supplies & Services,Care Monitoring 2000 Limited,9499.77, 17-Oct-2016
418,Revenue,CAHD,Woodleaze,Furniture & Fittings Loose,Care Shop,1134.02, 07-Oct-2016
419,Revenue,CAHD,Home Care - Elderly - South,Other Small Contracts,Carers R Us (Bristol) Limited,668.30, 19-Oct-2016
420,Revenue,CAHD,Home Care - Elderly - North,Other Small Contracts,Carers R Us (Bristol) Limited,2909.25, 19-Oct-2016
421,Revenue,CAHD,Home Care - Elderly - South,Other Small Contracts,Carers R Us (Bristol) Limited,684.70, 19-Oct-2016
422,Revenue,CAHD,Home Care - Elderly - North,Other Small Contracts,Carers R Us (Bristol) Limited,2900.63, 19-Oct-2016
423,Revenue,CAHD,Home Care - Elderly - South,Other Small Contracts,Carers R Us (Bristol) Limited,680.60, 17-Oct-2016
424,Revenue,CAHD,Home Care - Elderly - North,Other Small Contracts,Carers R Us (Bristol) Limited,2047.10, 17-Oct-2016
425,Revenue,CAHD,Home Care - Elderly - South,Other Small Contracts,Carers R Us (Bristol) Limited,672.40, 17-Oct-2016
426,Revenue,CAHD,Home Care - Elderly - North,Other Small Contracts,Carers R Us (Bristol) Limited,2040.46, 17-Oct-2016
427,Revenue,CAHD,Learning Difficulties Development Fund,Other Supplies & Services,Carers Support Centre,15000.00, 07-Oct-2016
428,Revenue,CAHD,Home Care - Elderly - North,Other Small Contracts,Caring Comes 1st Ltd,675.87, 07-Oct-2016
429,Revenue,CAHD,Home Care - Elderly - North,Other Small Contracts,Caring Comes 1st Ltd,975.44, 31-Oct-2016
430,Revenue,CAHD,Bed Purchasing - North,Permanent Residential,Charlton House,955.48, 25-Oct-2016
431,Revenue,CAHD,Training - Adult Services,Training Expenses,Chartered Institute of Environmental Health,1110.25, 14-Oct-2016
432,Revenue,CAHD,Home Care - Elderly - South,Other Small Contracts,Cherish Able Care Limited,5688.12, 06-Oct-2016
433,Revenue,CAHD,Home Care - Elderly - North,Other Small Contracts,Cherish Able Care Limited,740.44, 06-Oct-2016
434,Revenue,CAHD,Home Care - Elderly - South,Other Small Contracts,Cherish Able Care Limited,6218.84, 14-Oct-2016
435,Revenue,CAHD,Home Care - Elderly - North,Other Small Contracts,Cherish Able Care Limited,256.80, 14-Oct-2016
436,Revenue,CAHD,Home Care - Elderly - South,Other Small Contracts,Cherish Able Care Limited,6360.08, 21-Oct-2016
437,Revenue,CAHD,Home Care - Elderly - North,Other Small Contracts,Cherish Able Care Limited,184.04, 21-Oct-2016
438,Revenue,CAHD,Home Care - Elderly - South,Other Small Contracts,Cherish Able Care Limited,5384.24, 27-Oct-2016
439,Revenue,CAHD,Home Care - Elderly - North,Other Small Contracts,Cherish Able Care Limited,179.76, 27-Oct-2016
440,Revenue,CAHD,Bed purchasing -S28A  Under 65 - North,Permanent Residential,Chescombe Lodge,8915.92, 25-Oct-2016
441,Revenue,CAHD,Home Care - Elderly - South,Supported Living,Choisy Care Limited,871.20, 18-Oct-2016
442,Revenue,CAHD,Home Care - Elderly - South,Supported Living,Choisy Care Limited,871.20, 19-Oct-2016
443,Revenue,CAHD,Bed Purchasing - Southmead Hospital,Permanent Nursing,Cholwell House Nursing Home Ltd,2005.92, 25-Oct-2016
444,Revenue,CAHD,18-25 Year Olds,Permanent Residential,Chosen Care Ltd  Citibase Watford,7190.44, 25-Oct-2016
445,Revenue,CAHD,Bed Purchasing - Elderly S117- North,Permanent Residential,Chosen Care Ltd  Citibase Watford,4575.68, 25-Oct-2016
446,Revenue,CAHD,Jointly Funded H&SC Packages,Permanent Residential,Chosen Care Ltd  Citibase Watford,4575.72, 25-Oct-2016
447,Revenue,CAHD,18-25 Year Olds,Permanent Residential,Chosen Care Ltd  Citibase Watford,5594.88, 25-Oct-2016
448,Revenue,CAHD,Bed Purchasing - Southmead Hospital,Permanent Nursing,Churchill Property Services,1710.24, 25-Oct-2016
449,Revenue,CAHD,Bed Purchasing - Southmead Hospital,Permanent Nursing,Clarence Park Nursing Home,2109.19, 25-Oct-2016
450,Revenue,CAHD,Bed Purchasing - South,Permanent Residential,Cleeve Lodge,588.00, 25-Oct-2016
451,Revenue,CAHD,Bed Purchasing - Southmead Hospital,Permanent Residential,Cleeve Lodge,1494.76, 25-Oct-2016
452,Revenue,CAHD,Bed Purchasing - South,Permanent Residential,Cleeve Lodge,1769.56, 25-Oct-2016
453,Revenue,CAHD,Bed Purchasing - South,Permanent Residential,Cleeve Lodge,1855.40, 25-Oct-2016
454,Revenue,CAHD,Bed Purchasing - South,Permanent Residential,Cleeve Lodge,1852.60, 25-Oct-2016
455,Revenue,CAHD,Bed Purchasing - South,Permanent Residential,Collingwood Residential Home,1467.24, 25-Oct-2016
456,Revenue,CAHD,Bed Purchasing - Southmead Hospital,Permanent Residential,Collingwood Residential Home,1424.48, 25-Oct-2016
457,Revenue,CAHD,Bed Purchasing - South,Permanent Residential,Collingwood Residential Home,1484.12, 25-Oct-2016
458,Revenue,CAHD,Home Care - Elderly - South,Day Care / Social Activities,Collingwood Residential Home,553.44, 25-Oct-2016
459,Revenue,CAHD,Bed Purchasing - South,Permanent Residential,Collingwood Residential Home,507.03, 25-Oct-2016
460,Revenue,CAHD,Bed Purchasing - South,Permanent Residential,Collingwood Residential Home,5828.74, 25-Oct-2016
461,Revenue,CAHD,Bed Purchasing - South,Permanent Residential,Collingwood Residential Home,1374.16, 25-Oct-2016
462,Revenue,CAHD,Bed Purchasing - South,Permanent Nursing,Community Integrated Care,676.64, 25-Oct-2016
463,Revenue,CAHD,Bed and Breakfast,Bed & Breakfast,Connolly & Callaghan Limited,511.00, 04-Oct-2016
464,Revenue,CAHD,Bed and Breakfast,Bed & Breakfast,Connolly & Callaghan Limited,476.00, 04-Oct-2016
465,Revenue,CAHD,Bed and Breakfast,Bed & Breakfast,Connolly & Callaghan Limited,476.00, 04-Oct-2016
466,Revenue,CAHD,Bed and Breakfast,Bed & Breakfast,Connolly & Callaghan Limited,468.00, 04-Oct-2016
467,Revenue,CAHD,Bed and Breakfast,Bed & Breakfast,Connolly & Callaghan Limited,581.00, 04-Oct-2016
468,Revenue,CAHD,Bed and Breakfast,Bed & Breakfast,Connolly & Callaghan Limited,511.00, 04-Oct-2016
469,Revenue,CAHD,Bed and Breakfast,Bed & Breakfast,Connolly & Callaghan Limited,441.00, 04-Oct-2016
470,Revenue,CAHD,Bed and Breakfast,Bed & Breakfast,Connolly & Callaghan Limited,476.00, 04-Oct-2016
471,Revenue,CAHD,Bed and Breakfast,Bed & Breakfast,Connolly & Callaghan Limited,511.00, 04-Oct-2016
472,Revenue,CAHD,Bed and Breakfast,Bed & Breakfast,Connolly & Callaghan Limited,476.00, 04-Oct-2016
473,Revenue,CAHD,Bed and Breakfast,Bed & Breakfast,Connolly & Callaghan Limited,546.00, 04-Oct-2016
474,Revenue,CAHD,Bed and Breakfast,Bed & Breakfast,Connolly & Callaghan Limited,546.00, 04-Oct-2016
475,Revenue,CAHD,Bed and Breakfast,Bed & Breakfast,Connolly & Callaghan Limited,616.00, 04-Oct-2016
476,Revenue,CAHD,Bed and Breakfast,Bed & Breakfast,Connolly & Callaghan Limited,476.00, 04-Oct-2016
477,Revenue,CAHD,Bed and Breakfast,Bed & Breakfast,Connolly & Callaghan Limited,546.00, 04-Oct-2016
478,Revenue,CAHD,Bed and Breakfast,Bed & Breakfast,Connolly & Callaghan Limited,511.00, 04-Oct-2016
479,Revenue,CAHD,Bed and Breakfast,Bed & Breakfast,Connolly & Callaghan Limited,511.00, 03-Oct-2016
480,Revenue,CAHD,Bed and Breakfast,Bed & Breakfast,Connolly & Callaghan Limited,476.00, 03-Oct-2016
481,Revenue,CAHD,Bed and Breakfast,Bed & Breakfast,Connolly & Callaghan Limited,476.00, 03-Oct-2016
482,Revenue,CAHD,Bed and Breakfast,Bed & Breakfast,Connolly & Callaghan Limited,546.00, 03-Oct-2016
483,Revenue,CAHD,Bed and Breakfast,Bed & Breakfast,Connolly & Callaghan Limited,581.00, 04-Oct-2016
484,Revenue,CAHD,Bed and Breakfast,Bed & Breakfast,Connolly & Callaghan Limited,511.00, 03-Oct-2016
485,Revenue,CAHD,Bed and Breakfast,Bed & Breakfast,Connolly & Callaghan Limited,546.00, 03-Oct-2016
486,Revenue,CAHD,Bed and Breakfast,Bed & Breakfast,Connolly & Callaghan Limited,441.00, 03-Oct-2016
487,Revenue,CAHD,Bed and Breakfast,Bed & Breakfast,Connolly & Callaghan Limited,476.00, 03-Oct-2016
488,Revenue,CAHD,Bed and Breakfast,Bed & Breakfast,Connolly & Callaghan Limited,511.00, 03-Oct-2016
489,Revenue,CAHD,Bed and Breakfast,Bed & Breakfast,Connolly & Callaghan Limited,476.00, 03-Oct-2016
490,Revenue,CAHD,Bed and Breakfast,Bed & Breakfast,Connolly & Callaghan Limited,546.00, 03-Oct-2016
491,Revenue,CAHD,Bed and Breakfast,Bed & Breakfast,Connolly & Callaghan Limited,546.00, 03-Oct-2016
492,Revenue,CAHD,Bed and Breakfast,Bed & Breakfast,Connolly & Callaghan Limited,616.00, 04-Oct-2016
493,Revenue,CAHD,Bed and Breakfast,Bed & Breakfast,Connolly & Callaghan Limited,476.00, 03-Oct-2016
494,Revenue,CAHD,Bed and Breakfast,Bed & Breakfast,Connolly & Callaghan Limited,546.00, 03-Oct-2016
495,Revenue,CAHD,Bed and Breakfast,Bed & Breakfast,Connolly & Callaghan Limited,511.00, 03-Oct-2016
496,Revenue,CAHD,Bed and Breakfast,Bed & Breakfast,Connolly & Callaghan Limited,441.00, 03-Oct-2016
497,Revenue,CAHD,Bed and Breakfast,Bed & Breakfast,Connolly & Callaghan Limited,511.00, 04-Oct-2016
498,Revenue,CAHD,Bed and Breakfast,Bed & Breakfast,Connolly & Callaghan Limited,476.00, 04-Oct-2016
499,Revenue,CAHD,Bed and Breakfast,Bed & Breakfast,Connolly & Callaghan Limited,546.00, 04-Oct-2016
500,Revenue,CAHD,Bed and Breakfast,Bed & Breakfast,Connolly & Callaghan Limited,581.00, 05-Oct-2016
501,Revenue,CAHD,Bed and Breakfast,Bed & Breakfast,Connolly & Callaghan Limited,511.00, 04-Oct-2016
502,Revenue,CAHD,Bed and Breakfast,Bed & Breakfast,Connolly & Callaghan Limited,546.00, 04-Oct-2016
503,Revenue,CAHD,Bed and Breakfast,Bed & Breakfast,Connolly & Callaghan Limited,441.00, 04-Oct-2016
504,Revenue,CAHD,Bed and Breakfast,Bed & Breakfast,Connolly & Callaghan Limited,476.00, 04-Oct-2016
505,Revenue,CAHD,Bed and Breakfast,Bed & Breakfast,Connolly & Callaghan Limited,511.00, 04-Oct-2016
506,Revenue,CAHD,Bed and Breakfast,Bed & Breakfast,Connolly & Callaghan Limited,476.00, 04-Oct-2016
507,Revenue,CAHD,Bed and Breakfast,Bed & Breakfast,Connolly & Callaghan Limited,546.00, 04-Oct-2016
508,Revenue,CAHD,Bed and Breakfast,Bed & Breakfast,Connolly & Callaghan Limited,546.00, 04-Oct-2016
509,Revenue,CAHD,Bed and Breakfast,Bed & Breakfast,Connolly & Callaghan Limited,616.00, 05-Oct-2016
510,Revenue,CAHD,Bed and Breakfast,Bed & Breakfast,Connolly & Callaghan Limited,476.00, 04-Oct-2016
511,Revenue,CAHD,Bed and Breakfast,Bed & Breakfast,Connolly & Callaghan Limited,476.00, 05-Oct-2016
512,Revenue,CAHD,Bed and Breakfast,Bed & Breakfast,Connolly & Callaghan Limited,546.00, 04-Oct-2016
513,Revenue,CAHD,Bed and Breakfast,Bed & Breakfast,Connolly & Callaghan Limited,511.00, 04-Oct-2016
514,Revenue,CAHD,Bed and Breakfast,Bed & Breakfast,Connolly & Callaghan Limited,441.00, 04-Oct-2016
515,Revenue,CAHD,Bed and Breakfast,Bed & Breakfast,Connolly & Callaghan Limited,511.00, 12-Oct-2016
516,Revenue,CAHD,Bed and Breakfast,Bed & Breakfast,Connolly & Callaghan Limited,476.00, 12-Oct-2016
517,Revenue,CAHD,Bed and Breakfast,Bed & Breakfast,Connolly & Callaghan Limited,546.00, 12-Oct-2016
518,Revenue,CAHD,Bed and Breakfast,Bed & Breakfast,Connolly & Callaghan Limited,581.00, 12-Oct-2016
519,Revenue,CAHD,Bed and Breakfast,Bed & Breakfast,Connolly & Callaghan Limited,511.00, 12-Oct-2016
520,Revenue,CAHD,Bed and Breakfast,Bed & Breakfast,Connolly & Callaghan Limited,546.00, 12-Oct-2016
521,Revenue,CAHD,Bed and Breakfast,Bed & Breakfast,Connolly & Callaghan Limited,476.00, 12-Oct-2016
522,Revenue,CAHD,Bed and Breakfast,Bed & Breakfast,Connolly & Callaghan Limited,689.00, 12-Oct-2016
523,Revenue,CAHD,Bed and Breakfast,Bed & Breakfast,Connolly & Callaghan Limited,511.00, 12-Oct-2016
524,Revenue,CAHD,Bed and Breakfast,Bed & Breakfast,Connolly & Callaghan Limited,476.00, 12-Oct-2016
525,Revenue,CAHD,Bed and Breakfast,Bed & Breakfast,Connolly & Callaghan Limited,546.00, 12-Oct-2016
526,Revenue,CAHD,Bed and Breakfast,Bed & Breakfast,Connolly & Callaghan Limited,546.00, 12-Oct-2016
527,Revenue,CAHD,Bed and Breakfast,Bed & Breakfast,Connolly & Callaghan Limited,616.00, 12-Oct-2016
528,Revenue,CAHD,Bed and Breakfast,Bed & Breakfast,Connolly & Callaghan Limited,476.00, 12-Oct-2016
529,Revenue,CAHD,Bed and Breakfast,Bed & Breakfast,Connolly & Callaghan Limited,476.00, 12-Oct-2016
530,Revenue,CAHD,Bed and Breakfast,Bed & Breakfast,Connolly & Callaghan Limited,546.00, 12-Oct-2016
531,Revenue,CAHD,Bed and Breakfast,Bed & Breakfast,Connolly & Callaghan Limited,441.00, 12-Oct-2016
532,Revenue,CAHD,Bed and Breakfast,Bed & Breakfast,Connolly & Callaghan Limited,511.00, 20-Oct-2016
533,Revenue,CAHD,Bed and Breakfast,Bed & Breakfast,Connolly & Callaghan Limited,441.00, 20-Oct-2016
534,Revenue,CAHD,Bed and Breakfast,Bed & Breakfast,Connolly & Callaghan Limited,476.00, 19-Oct-2016
535,Revenue,CAHD,Bed and Breakfast,Bed & Breakfast,Connolly & Callaghan Limited,546.00, 20-Oct-2016
536,Revenue,CAHD,Bed and Breakfast,Bed & Breakfast,Connolly & Callaghan Limited,581.00, 20-Oct-2016
537,Revenue,CAHD,Bed and Breakfast,Bed & Breakfast,Connolly & Callaghan Limited,511.00, 20-Oct-2016
538,Revenue,CAHD,Bed and Breakfast,Bed & Breakfast,Connolly & Callaghan Limited,546.00, 19-Oct-2016
539,Revenue,CAHD,Bed and Breakfast,Bed & Breakfast,Connolly & Callaghan Limited,476.00, 20-Oct-2016
540,Revenue,CAHD,Bed and Breakfast,Bed & Breakfast,Connolly & Callaghan Limited,476.00, 20-Oct-2016
541,Revenue,CAHD,Bed and Breakfast,Bed & Breakfast,Connolly & Callaghan Limited,546.00, 20-Oct-2016
542,Revenue,CAHD,Bed and Breakfast,Bed & Breakfast,Connolly & Callaghan Limited,546.00, 20-Oct-2016
543,Revenue,CAHD,Bed and Breakfast,Bed & Breakfast,Connolly & Callaghan Limited,616.00, 20-Oct-2016
544,Revenue,CAHD,Bed and Breakfast,Bed & Breakfast,Connolly & Callaghan Limited,438.00, 19-Oct-2016
545,Revenue,CAHD,Bed and Breakfast,Bed & Breakfast,Connolly & Callaghan Limited,476.00, 20-Oct-2016
546,Revenue,CAHD,Bed and Breakfast,Bed & Breakfast,Connolly & Callaghan Limited,511.00, 19-Oct-2016
547,Revenue,CAHD,Bed and Breakfast,Bed & Breakfast,Connolly & Callaghan Limited,546.00, 20-Oct-2016
548,Revenue,CAHD,Bed and Breakfast,Bed & Breakfast,Connolly & Callaghan Limited,441.00, 19-Oct-2016
549,Revenue,CAHD,Bed and Breakfast,Bed & Breakfast,Connolly & Callaghan Limited,791.00, 19-Oct-2016
550,Revenue,CAHD,Bed and Breakfast,Bed & Breakfast,Connolly & Callaghan Limited,476.00, 20-Oct-2016
551,Revenue,CAHD,Bed and Breakfast,Bed & Breakfast,Connolly & Callaghan Limited,511.00, 25-Oct-2016
552,Revenue,CAHD,Bed and Breakfast,Bed & Breakfast,Connolly & Callaghan Limited,441.00, 25-Oct-2016
553,Revenue,CAHD,Bed and Breakfast,Bed & Breakfast,Connolly & Callaghan Limited,546.00, 25-Oct-2016
554,Revenue,CAHD,Bed and Breakfast,Bed & Breakfast,Connolly & Callaghan Limited,581.00, 31-Oct-2016
555,Revenue,CAHD,Bed and Breakfast,Bed & Breakfast,Connolly & Callaghan Limited,511.00, 31-Oct-2016
556,Revenue,CAHD,Bed and Breakfast,Bed & Breakfast,Connolly & Callaghan Limited,546.00, 25-Oct-2016
557,Revenue,CAHD,Bed and Breakfast,Bed & Breakfast,Connolly & Callaghan Limited,476.00, 31-Oct-2016
558,Revenue,CAHD,Bed and Breakfast,Bed & Breakfast,Connolly & Callaghan Limited,546.00, 25-Oct-2016
559,Revenue,CAHD,Bed and Breakfast,Bed & Breakfast,Connolly & Callaghan Limited,546.00, 25-Oct-2016
560,Revenue,CAHD,Bed and Breakfast,Bed & Breakfast,Connolly & Callaghan Limited,616.00, 25-Oct-2016
561,Revenue,CAHD,Bed and Breakfast,Bed & Breakfast,Connolly & Callaghan Limited,511.00, 25-Oct-2016
562,Revenue,CAHD,Bed and Breakfast,Bed & Breakfast,Connolly & Callaghan Limited,476.00, 25-Oct-2016
563,Revenue,CAHD,Bed and Breakfast,Bed & Breakfast,Connolly & Callaghan Limited,476.00, 25-Oct-2016
564,Revenue,CAHD,Bed and Breakfast,Bed & Breakfast,Connolly & Callaghan Limited,511.00, 25-Oct-2016
565,Revenue,CAHD,Bed and Breakfast,Bed & Breakfast,Connolly & Callaghan Limited,546.00, 25-Oct-2016
566,Revenue,CAHD,Bed and Breakfast,Bed & Breakfast,Connolly & Callaghan Limited,441.00, 25-Oct-2016
567,Revenue,CAHD,Bed and Breakfast,Bed & Breakfast,Connolly & Callaghan Limited,791.00, 25-Oct-2016
568,Revenue,CAHD,Bed and Breakfast,Bed & Breakfast,Connolly & Callaghan Limited,511.00, 31-Oct-2016
569,Revenue,CAHD,Bed and Breakfast,Bed & Breakfast,Connolly & Callaghan Limited,476.00, 31-Oct-2016
570,Revenue,CAHD,Bed and Breakfast,Bed & Breakfast,Connolly & Callaghan Limited,441.00, 31-Oct-2016
571,Revenue,CAHD,Bed and Breakfast,Bed & Breakfast,Connolly & Callaghan Limited,546.00, 31-Oct-2016
572,Revenue,CAHD,Bed and Breakfast,Bed & Breakfast,Connolly & Callaghan Limited,468.00, 31-Oct-2016
573,Revenue,CAHD,Bed and Breakfast,Bed & Breakfast,Connolly & Callaghan Limited,468.00, 31-Oct-2016
574,Revenue,CAHD,Bed and Breakfast,Bed & Breakfast,Connolly & Callaghan Limited,546.00, 31-Oct-2016
575,Revenue,CAHD,Bed and Breakfast,Bed & Breakfast,Connolly & Callaghan Limited,546.00, 31-Oct-2016
576,Revenue,CAHD,Bed and Breakfast,Bed & Breakfast,Connolly & Callaghan Limited,616.00, 31-Oct-2016
577,Revenue,CAHD,Bed and Breakfast,Bed & Breakfast,Connolly & Callaghan Limited,511.00, 31-Oct-2016
578,Revenue,CAHD,Bed and Breakfast,Bed & Breakfast,Connolly & Callaghan Limited,476.00, 31-Oct-2016
579,Revenue,CAHD,Bed and Breakfast,Bed & Breakfast,Connolly & Callaghan Limited,476.00, 31-Oct-2016
580,Revenue,CAHD,Bed and Breakfast,Bed & Breakfast,Connolly & Callaghan Limited,511.00, 31-Oct-2016
581,Revenue,CAHD,Bed and Breakfast,Bed & Breakfast,Connolly & Callaghan Limited,546.00, 31-Oct-2016
582,Revenue,CAHD,Bed and Breakfast,Bed & Breakfast,Connolly & Callaghan Limited,441.00, 31-Oct-2016
583,Revenue,CAHD,Bed and Breakfast,Bed & Breakfast,Connolly & Callaghan Limited,791.00, 31-Oct-2016
584,Revenue,CAHD,Tenancy Start Up Scheme,Other Supplies & Services,Continental Holiday Homes,1600.00, 17-Oct-2016
585,Revenue,CAHD,Community Support - North,Preventative Assistance,Courtfield Healthcare Ltd,460.50, 20-Oct-2016
586,Revenue,CAHD,Bed Purchasing - S28A - Over 65- North,Permanent Residential,Cream Ii Ltd  Longrun House,8222.76, 25-Oct-2016
587,Revenue,CAHD,Bed Purchasing - South,Permanent Residential,Cream Ii Ltd  Longrun House,3083.64, 25-Oct-2016
588,Revenue,CAHD,Jointly Funded H&SC Packages,Permanent Residential,Cream Ii Ltd  Longrun House,2683.04, 25-Oct-2016
589,Revenue,CAHD,Bed purchasing -S28A  Under 65 - North,Permanent Residential,Creedy Court,9527.44, 25-Oct-2016
590,Revenue,CAHD,Bed Purchasing - S28A - Over 65- North,Permanent Residential,Creedy Court,7901.72, 25-Oct-2016
591,Revenue,CAHD,Bed Purchasing - North,Permanent Residential,Creedy Court,12895.24, 25-Oct-2016
592,Revenue,CAHD,Bed Purchasing - South,Permanent Residential,Daneswood,11269.36, 25-Oct-2016
593,Revenue,CAHD,Bed Purchasing - North,Permanent Residential,Daneswood,9343.92, 25-Oct-2016
594,Revenue,CAHD,Bed Purchasing - Elderly S117- North,Permanent Nursing,Danshell Healthcare Group,10285.72, 25-Oct-2016
595,Revenue,CAHD,Jointly Funded H&SC Packages,Permanent Nursing,Danshell Healthcare Group,1526.28, 25-Oct-2016
596,Revenue,CAHD,Learning Difficulties PSL,Other Supplies & Services,Individual,2105.50, 21-Oct-2016
597,Revenue,CAHD,Home Care - Elderly - South,Supported Living,Design House,2711.04, 25-Oct-2016
598,Revenue,CAHD,Home Care - Elderly - South,Supported Living,Design House,2898.08, 25-Oct-2016
599,Revenue,CAHD,Home Care - Elderly - South,Supported Living,Design House,2964.08, 25-Oct-2016
600,Revenue,CAHD,Home Care - Elderly - South,Supported Living,Design House,2832.08, 25-Oct-2016
601,Revenue,CAHD,Home Care - Elderly - South,Supported Living,Design House,2496.52, 25-Oct-2016
602,Revenue,CAHD,Home Care - Elderly - South,Supported Living,Design House,2496.52, 25-Oct-2016
603,Revenue,CAHD,Home Care - Elderly - South,Supported Living,Design House,1741.04, 25-Oct-2016
604,Revenue,CAHD,Home Care - Elderly - South,Supported Living,Design House,2381.04, 25-Oct-2016
605,Revenue,CAHD,Home Care - Elderly - South,Supported Living,Design House,3852.08, 25-Oct-2016
606,Revenue,CAHD,Home Care - Elderly - South,Supported Living,Design House,2744.04, 25-Oct-2016
607,Revenue,CAHD,Home Care - Elderly - South,Supported Living,Design House,2793.56, 25-Oct-2016
608,Revenue,CAHD,Home Care - Elderly - South,Supported Living,Design House,2135.92, 25-Oct-2016
609,Revenue,CAHD,Home Care - Elderly - South,Supported Living,Design House,1741.04, 25-Oct-2016
610,Revenue,CAHD,Home Care - Elderly - South,Supported Living,Design House,2135.92, 25-Oct-2016
611,Revenue,CAHD,Bed Purchasing - South,Permanent Residential,Devon & Cornwall Autistic Community Trus,9082.00, 25-Oct-2016
612,Revenue,CAHD,Home Care - Elderly - South,Day Care / Social Activities,Dhek Bhal,124.25, 12-Oct-2016
613,Revenue,CAHD,Home Care - Elderly - South,Other Small Contracts,Dhek Bhal,482.09, 12-Oct-2016
614,Revenue,CAHD,Home Care - Elderly - North,Other Small Contracts,Dhek Bhal,39.76, 12-Oct-2016
615,Revenue,CAHD,Bed Purchasing - South,Permanent Residential,Dimensions  Suite 2,5005.24, 25-Oct-2016
616,Revenue,CAHD,Home Care - Elderly - North,Day Care / Social Activities,Dimensions (UK) Ltd,7748.40, 26-Oct-2016
617,Revenue,CAHD,Home Care - Elderly - North,Day Care / Social Activities,Dimensions (UK) Ltd,8006.68, 26-Oct-2016
618,Revenue,CAHD,Home Care - Elderly - North,Day Care / Social Activities,Dimensions (UK) Ltd,7748.40, 26-Oct-2016
619,Revenue,CAHD,Home Care - Elderly - North,Day Care / Social Activities,Dimensions (UK) Ltd,8006.68, 26-Oct-2016
620,Revenue,CAHD,Home Care - Elderly - North,Day Care / Social Activities,Dimensions (UK) Ltd,8006.68, 26-Oct-2016
621,Revenue,CAHD,Training - Adult Services,Training Expenses,Do The Write Thing,850.00, 12-Oct-2016
622,Revenue,CAHD,Home Care - Elderly - South,Day Care / Social Activities,DoCare Ltd,76.50, 17-Oct-2016
623,Revenue,CAHD,Home Care - Elderly - South,Other Small Contracts,DoCare Ltd,540.60, 17-Oct-2016
624,Revenue,CAHD,Home Care - Elderly - North,Other Small Contracts,DoCare Ltd,4598.30, 17-Oct-2016
625,Revenue,CAHD,Home Care - Elderly - South,Day Care / Social Activities,DoCare Ltd,71.40, 19-Oct-2016
626,Revenue,CAHD,Home Care - Elderly - South,Other Small Contracts,DoCare Ltd,494.70, 19-Oct-2016
627,Revenue,CAHD,Home Care - Elderly - North,Other Small Contracts,DoCare Ltd,4606.90, 19-Oct-2016
628,Revenue,CAHD,Home Care - Elderly - South,Day Care / Social Activities,DoCare Ltd,71.40, 19-Oct-2016
629,Revenue,CAHD,Home Care - Elderly - South,Other Small Contracts,DoCare Ltd,571.20, 19-Oct-2016
630,Revenue,CAHD,Home Care - Elderly - North,Other Small Contracts,DoCare Ltd,4883.80, 19-Oct-2016
631,Revenue,CAHD,Home Care - Elderly - South,Day Care / Social Activities,DoCare Ltd,66.30, 26-Oct-2016
632,Revenue,CAHD,Home Care - Elderly - South,Other Small Contracts,DoCare Ltd,555.90, 26-Oct-2016
633,Revenue,CAHD,Home Care - Elderly - North,Other Small Contracts,DoCare Ltd,4748.70, 26-Oct-2016
634,Revenue,CAHD,Home Care - Elderly - South,Day Care / Social Activities,DoCare Ltd,71.40, 26-Oct-2016
635,Revenue,CAHD,Home Care - Elderly - South,Other Small Contracts,DoCare Ltd,525.30, 26-Oct-2016
636,Revenue,CAHD,Home Care - Elderly - North,Other Small Contracts,DoCare Ltd,4678.30, 26-Oct-2016
637,Revenue,CAHD,Social Lettings Agency,Other Supplies & Services,Individual,605.64, 24-Oct-2016
638,Revenue,CAHD,Community Support - South,Preventative Assistance,Dr S J Razak Ltd,864.00, 25-Oct-2016
639,Revenue,CAHD,Bed Purchasing - North,Permanent Nursing,Drakes Court,1367.72, 25-Oct-2016
640,Revenue,CAHD,South Glos Users in South Glos Homes,Permanent Nursing,Drakes Court,625.00, 25-Oct-2016
641,Revenue,CAHD,South Glos Users in South Glos Homes,Permanent Nursing,Drakes Court,625.00, 25-Oct-2016
642,Revenue,CAHD,Bed Purchasing - Southmead Hospital,Permanent Nursing,Drakes Court,1371.64, 25-Oct-2016
643,Revenue,CAHD,South Glos Users in South Glos Homes,Permanent Nursing,Drakes Court,625.00, 25-Oct-2016
644,Revenue,CAHD,Bed Purchasing - Southmead Hospital,Permanent Nursing,Drakes Court,680.40, 25-Oct-2016
645,Revenue,CAHD,South Glos Users in South Glos Homes,Permanent Nursing,Drakes Court,625.00, 25-Oct-2016
646,Revenue,CAHD,South Glos Users in South Glos Homes,Permanent Nursing,Drakes Court,625.00, 25-Oct-2016
647,Revenue,CAHD,Bed Purchasing - North,Permanent Nursing,Drakes Court,867.32, 25-Oct-2016
648,Revenue,CAHD,South Glos Users in South Glos Homes,Permanent Nursing,Drakes Court,625.00, 25-Oct-2016
649,Revenue,CAHD,South Glos Users in South Glos Homes,Permanent Nursing,Drakes Court,625.00, 25-Oct-2016
650,Revenue,CAHD,South Glos Users in South Glos Homes,Permanent Nursing,Drakes Court,625.00, 25-Oct-2016
651,Revenue,CAHD,Bed Purchasing - North,Permanent Nursing,Drakes Court,1287.84, 25-Oct-2016
652,Revenue,CAHD,Bed Purchasing - Southmead Hospital,Permanent Nursing,Drakes Court,1152.76, 25-Oct-2016
653,Revenue,CAHD,South Glos Users in South Glos Homes,Permanent Nursing,Drakes Court,625.00, 25-Oct-2016
654,Revenue,CAHD,Bed Purchasing - North,Permanent Residential,Drakes Court,1320.52, 25-Oct-2016
655,Revenue,CAHD,Bed Purchasing - North,Permanent Nursing,Drakes Court,1731.20, 25-Oct-2016
656,Revenue,CAHD,South Glos Users in South Glos Homes,Permanent Nursing,Drakes Court,625.00, 25-Oct-2016
657,Revenue,CAHD,Bed Purchasing - Southmead Hospital,Permanent Nursing,Drakes Court,1050.08, 25-Oct-2016
658,Revenue,CAHD,South Glos Users in South Glos Homes,Permanent Nursing,Drakes Court,625.00, 25-Oct-2016
659,Revenue,CAHD,South Glos Users in South Glos Homes,Permanent Nursing,Drakes Court,625.00, 25-Oct-2016
660,Revenue,CAHD,South Glos Users in South Glos Homes,Permanent Nursing,Drakes Court,625.00, 25-Oct-2016
661,Revenue,CAHD,South Glos Users in South Glos Homes,Permanent Nursing,Drakes Court,625.00, 25-Oct-2016
662,Revenue,CAHD,MH Purchasing - Younger,Permanent Residential,Dunraven House,1843.20, 25-Oct-2016
663,Revenue,CAHD,Bed and Breakfast,Bed & Breakfast,E J Bartlett,490.00, 05-Oct-2016
664,Revenue,CAHD,Bed and Breakfast,Bed & Breakfast,E J Bartlett,434.00, 05-Oct-2016
665,Revenue,CAHD,Bed and Breakfast,Bed & Breakfast,E J Bartlett,504.00, 05-Oct-2016
666,Revenue,CAHD,Bed and Breakfast,Bed & Breakfast,E J Bartlett,420.00, 05-Oct-2016
667,Revenue,CAHD,Bed and Breakfast,Bed & Breakfast,E J Bartlett,490.00, 13-Oct-2016
668,Revenue,CAHD,Bed and Breakfast,Bed & Breakfast,E J Bartlett,434.00, 13-Oct-2016
669,Revenue,CAHD,Bed and Breakfast,Bed & Breakfast,E J Bartlett,496.00, 14-Oct-2016
670,Revenue,CAHD,Bed and Breakfast,Bed & Breakfast,E J Bartlett,420.00, 13-Oct-2016
671,Revenue,CAHD,Bed and Breakfast,Bed & Breakfast,E J Bartlett,490.00, 18-Oct-2016
672,Revenue,CAHD,Bed and Breakfast,Bed & Breakfast,E J Bartlett,434.00, 18-Oct-2016
673,Revenue,CAHD,Bed and Breakfast,Bed & Breakfast,E J Bartlett,434.00, 18-Oct-2016
674,Revenue,CAHD,Bed and Breakfast,Bed & Breakfast,E J Bartlett,420.00, 18-Oct-2016
675,Revenue,CAHD,Bed and Breakfast,Bed & Breakfast,E J Bartlett,490.00, 25-Oct-2016
676,Revenue,CAHD,Bed and Breakfast,Bed & Breakfast,E J Bartlett,434.00, 25-Oct-2016
677,Revenue,CAHD,Bed and Breakfast,Bed & Breakfast,E J Bartlett,434.00, 25-Oct-2016
678,Revenue,CAHD,Bed and Breakfast,Bed & Breakfast,E J Bartlett,420.00, 25-Oct-2016
679,Revenue,CAHD,Bed and Breakfast,Bed & Breakfast,E J Bartlett,450.00, 31-Oct-2016
680,Revenue,CAHD,Bed and Breakfast,Bed & Breakfast,E J Bartlett,490.00, 31-Oct-2016
681,Revenue,CAHD,Bed and Breakfast,Bed & Breakfast,E J Bartlett,434.00, 31-Oct-2016
682,Revenue,CAHD,Bed and Breakfast,Bed & Breakfast,E J Bartlett,420.00, 31-Oct-2016
683,Revenue,CAHD,Bed Purchasing - North,Permanent Residential,East Court,2292.68, 25-Oct-2016
684,Revenue,CAHD,Home Care - Elderly - South,Day Care / Social Activities,Easton Community Centre,533.28, 25-Oct-2016
685,Revenue,CAHD,Home Care - Elderly - South,Day Care / Social Activities,Easton Community Centre,533.28, 25-Oct-2016
686,Revenue,CAHD,Home Care - Elderly - North,Day Care / Social Activities,Easton Community Centre,533.28, 25-Oct-2016
687,Revenue,CAHD,Home Care - Elderly - South,Day Care / Social Activities,Eclipse Office Park,753.12, 25-Oct-2016
688,Revenue,CAHD,Home Care - Elderly - South,Day Care / Social Activities,Eclipse Office Park,502.08, 25-Oct-2016
689,Revenue,CAHD,Home Care - Elderly - North,Day Care / Social Activities,Eclipse Office Park,1004.16, 25-Oct-2016
690,Revenue,CAHD,Home Care - Elderly - South,Day Care / Social Activities,Eclipse Office Park,502.08, 25-Oct-2016
691,Revenue,CAHD,Home Care - Elderly - South,Day Care / Social Activities,Eclipse Office Park,502.08, 25-Oct-2016
692,Revenue,CAHD,Home Care - Elderly - South,Day Care / Social Activities,Eclipse Office Park,878.64, 25-Oct-2016
693,Revenue,CAHD,Home Care - Elderly - South,Day Care / Social Activities,Eclipse Office Park,753.12, 25-Oct-2016
694,Revenue,CAHD,Home Care - Elderly - South,Day Care / Social Activities,Eclipse Office Park,878.64, 25-Oct-2016
695,Revenue,CAHD,Home Care - Elderly - South,Day Care / Social Activities,Eclipse Office Park,502.08, 25-Oct-2016
696,Revenue,CAHD,Home Care - Elderly - South,Day Care / Social Activities,Eclipse Office Park,502.08, 25-Oct-2016
697,Revenue,CAHD,Home Care - Elderly - South,Day Care / Social Activities,Eclipse Office Park,1255.20, 25-Oct-2016
698,Revenue,CAHD,Home Care - Elderly - South,Day Care / Social Activities,Eclipse Office Park,753.12, 25-Oct-2016
699,Revenue,CAHD,Home Care - Elderly - South,Day Care / Social Activities,Eclipse Office Park,1004.16, 25-Oct-2016
700,Revenue,CAHD,Home Care - Elderly - South,Day Care / Social Activities,Eclipse Office Park,878.64, 25-Oct-2016
701,Revenue,CAHD,18-25 Year Olds,Day Care / Social Activities,Eclipse Office Park,502.08, 25-Oct-2016
702,Revenue,CAHD,Section 117 Placements MH Younger,Permanent Residential,Eclipse Office Park,48801.03, 25-Oct-2016
703,Revenue,CAHD,Bed Purchasing - Southmead Hospital,Permanent Residential,Edgecumbe Lodge,7210.17, 25-Oct-2016
704,Revenue,CAHD,Bed Purchasing - North,Permanent Residential,Edgecumbe Lodge,1737.20, 25-Oct-2016
705,Revenue,CAHD,Bed Purchasing - Southmead Hospital,Permanent Residential,Edgecumbe Lodge,1831.32, 25-Oct-2016
706,Revenue,CAHD,Bed Purchasing - South,Permanent Residential,Edgecumbe Lodge,1073.52, 25-Oct-2016
707,Revenue,CAHD,Bed Purchasing - South,Permanent Residential,Edgecumbe Lodge,1559.32, 25-Oct-2016
708,Revenue,CAHD,Bed Purchasing - North,Permanent Residential,Edgecumbe Lodge,1039.76, 25-Oct-2016
709,Revenue,CAHD,Bed Purchasing - South,Permanent Residential,Edgecumbe Lodge,1590.12, 25-Oct-2016
710,Revenue,CAHD,Bed Purchasing - North,Permanent Residential,Edgecumbe Lodge,1465.28, 25-Oct-2016
711,Revenue,CAHD,Bed Purchasing - Southmead Hospital,Permanent Residential,Edgemont House Ltd,7210.17, 25-Oct-2016
712,Revenue,CAHD,Bed Purchasing - Southmead Hospital,Permanent Residential,Edgemont House Ltd,1329.68, 25-Oct-2016
713,Revenue,CAHD,Bed Purchasing - South,Permanent Residential,Edgemont House Ltd,1637.20, 25-Oct-2016
714,Revenue,CAHD,Bed Purchasing - South,Permanent Residential,Edgemont House Ltd,994.02, 25-Oct-2016
715,Revenue,CAHD,Bed Purchasing - Southmead Hospital,Respite Planned - Residential,Edgemont House Ltd,2000.00, 25-Oct-2016
716,Revenue,CAHD,Bed Purchasing - Elderly S117- North,Respite Emergency - Residential,Edgemont House Ltd,4000.00, 25-Oct-2016
717,Revenue,CAHD,Bed Purchasing - South,Permanent Residential,Edgemont House Ltd,1332.56, 25-Oct-2016
718,Revenue,CAHD,South Glos Users in South Glos Homes,Permanent Nursing,Edgemont View Nursing Home,625.00, 25-Oct-2016
719,Revenue,CAHD,South Glos Users in South Glos Homes,Permanent Nursing,Edgemont View Nursing Home,625.00, 25-Oct-2016
720,Revenue,CAHD,South Glos Users in South Glos Homes,Permanent Nursing,Edgemont View Nursing Home,625.00, 25-Oct-2016
721,Revenue,CAHD,South Glos Users in South Glos Homes,Permanent Nursing,Edgemont View Nursing Home,625.00, 25-Oct-2016
722,Revenue,CAHD,South Glos Users in South Glos Homes,Permanent Nursing,Edgemont View Nursing Home,625.00, 25-Oct-2016
723,Revenue,CAHD,South Glos Users in South Glos Homes,Permanent Nursing,Edgemont View Nursing Home,625.00, 25-Oct-2016
724,Revenue,CAHD,South Glos Users in South Glos Homes,Permanent Nursing,Edgemont View Nursing Home,625.00, 25-Oct-2016
725,Revenue,CAHD,South Glos Users in South Glos Homes,Permanent Nursing,Edgemont View Nursing Home,625.00, 25-Oct-2016
726,Revenue,CAHD,South Glos Users in South Glos Homes,Permanent Nursing,Edgemont View Nursing Home,625.00, 25-Oct-2016
727,Revenue,CAHD,South Glos Users in South Glos Homes,Permanent Nursing,Edgemont View Nursing Home,625.00, 25-Oct-2016
728,Revenue,CAHD,South Glos Users in South Glos Homes,Permanent Nursing,Edgemont View Nursing Home,625.00, 25-Oct-2016
729,Revenue,CAHD,South Glos Users in South Glos Homes,Permanent Nursing,Edgemont View Nursing Home,625.00, 25-Oct-2016
730,Revenue,CAHD,Bed Purchasing - South,Permanent Nursing,Edgemont View Nursing Home,1776.28, 25-Oct-2016
731,Revenue,CAHD,South Glos Users in South Glos Homes,Permanent Nursing,Edgemont View Nursing Home,625.00, 25-Oct-2016
732,Revenue,CAHD,Bed Purchasing - South,Permanent Nursing,Edgemont View Nursing Home,1660.08, 25-Oct-2016
733,Revenue,CAHD,South Glos Users in South Glos Homes,Permanent Nursing,Edgemont View Nursing Home,625.00, 25-Oct-2016
734,Revenue,CAHD,South Glos Users in South Glos Homes,Permanent Nursing,Edgemont View Nursing Home,625.00, 25-Oct-2016
735,Revenue,CAHD,South Glos Users in South Glos Homes,Permanent Nursing,Edgemont View Nursing Home,625.00, 25-Oct-2016
736,Revenue,CAHD,South Glos Users in South Glos Homes,Permanent Nursing,Edgemont View Nursing Home,625.00, 25-Oct-2016
737,Revenue,CAHD,South Glos Users in South Glos Homes,Permanent Nursing,Edgemont View Nursing Home,625.00, 25-Oct-2016
738,Revenue,CAHD,Bed Purchasing - Southmead Hospital,Permanent Nursing,Edgemont View Nursing Home,6375.71, 25-Oct-2016
739,Revenue,CAHD,Planning and Partnerships Procurement,Other Supplies & Services,Eldercare,3109.17, 28-Oct-2016
740,Revenue,CAHD,Home Care - Elderly - South,Day Care / Social Activities,Elite Home Care Ltd,134.40, 03-Oct-2016
741,Revenue,CAHD,Home Care - Elderly - South,Other Small Contracts,Elite Home Care Ltd,6364.18, 03-Oct-2016
742,Revenue,CAHD,Home Care - Elderly - South,Day Care / Social Activities,Elite Home Care Ltd,188.16, 05-Oct-2016
743,Revenue,CAHD,Home Care - Elderly - South,Other Small Contracts,Elite Home Care Ltd,6211.86, 05-Oct-2016
744,Revenue,CAHD,Home Care - Elderly - South,Day Care / Social Activities,Elite Home Care Ltd,188.16, 05-Oct-2016
745,Revenue,CAHD,Home Care - Elderly - South,Other Small Contracts,Elite Home Care Ltd,6511.02, 05-Oct-2016
746,Revenue,CAHD,Home Care - Elderly - South,Day Care / Social Activities,Elite Home Care Ltd,188.16, 14-Oct-2016
747,Revenue,CAHD,Home Care - Elderly - South,Other Small Contracts,Elite Home Care Ltd,6821.14, 14-Oct-2016
748,Revenue,CAHD,Home Care - Elderly - North,Other Small Contracts,Elite Home Care Ltd,58.24, 14-Oct-2016
749,Revenue,CAHD,Home Care - Elderly - South,Day Care / Social Activities,Elite Home Care Ltd,188.16, 25-Oct-2016
750,Revenue,CAHD,Home Care - Elderly - South,Other Small Contracts,Elite Home Care Ltd,6865.44, 25-Oct-2016
751,Revenue,CAHD,Home Care - Elderly - North,Other Small Contracts,Elite Home Care Ltd,107.52, 25-Oct-2016
752,Revenue,CAHD,Home Care - Elderly - South,Day Care / Social Activities,Elite Home Care Ltd,152.32, 25-Oct-2016
753,Revenue,CAHD,Home Care - Elderly - South,Other Small Contracts,Elite Home Care Ltd,7188.50, 25-Oct-2016
754,Revenue,CAHD,Home Care - Elderly - North,Other Small Contracts,Elite Home Care Ltd,107.52, 25-Oct-2016
755,Revenue,CAHD,Bed Purchasing - North,Permanent Residential,Epworth House,1060.80, 25-Oct-2016
756,Revenue,CAHD,Home Care - Elderly - South,Other Small Contracts,Everycare (Bristol) Ltd,3335.40, 03-Oct-2016
757,Revenue,CAHD,Home Care - Elderly - North,Other Small Contracts,Everycare (Bristol) Ltd,1957.64, 03-Oct-2016
758,Revenue,CAHD,Home Care - Elderly - South,Other Small Contracts,Everycare (Bristol) Ltd,3235.12, 11-Oct-2016
759,Revenue,CAHD,Home Care - Elderly - North,Other Small Contracts,Everycare (Bristol) Ltd,1861.72, 11-Oct-2016
760,Revenue,CAHD,Home Care - Elderly - South,Other Small Contracts,Everycare (Bristol) Ltd,3110.02, 12-Oct-2016
761,Revenue,CAHD,Home Care - Elderly - North,Other Small Contracts,Everycare (Bristol) Ltd,2332.60, 12-Oct-2016
762,Revenue,CAHD,Home Care - Elderly - South,Other Small Contracts,Everycare (Bristol) Ltd,3099.96, 31-Oct-2016
763,Revenue,CAHD,Home Care - Elderly - North,Other Small Contracts,Everycare (Bristol) Ltd,2345.68, 31-Oct-2016
764,Revenue,CAHD,Homeless - Private Sector Leasing,Prop.Serv. General Repairs,Express Property Services Limited,3351.21, 28-Oct-2016
765,Revenue,CAHD,South Glos Users in South Glos Homes,Permanent Nursing,Fairview Court,625.00, 25-Oct-2016
766,Revenue,CAHD,South Glos Users in South Glos Homes,Permanent Nursing,Fairview Court,625.00, 25-Oct-2016
767,Revenue,CAHD,Bed Purchasing - South,Permanent Nursing,Fairview Court,2469.36, 25-Oct-2016
768,Revenue,CAHD,South Glos Users in South Glos Homes,Permanent Nursing,Fairview Court,625.00, 25-Oct-2016
769,Revenue,CAHD,Bed Purchasing - Southmead Hospital,Permanent Nursing,Fairview Court,1910.88, 25-Oct-2016
770,Revenue,CAHD,South Glos Users in South Glos Homes,Permanent Nursing,Fairview Court,625.00, 25-Oct-2016
771,Revenue,CAHD,South Glos Users in South Glos Homes,Permanent Nursing,Fairview Court,625.00, 25-Oct-2016
772,Revenue,CAHD,South Glos Users in South Glos Homes,Permanent Nursing,Fairview Court,625.00, 25-Oct-2016
773,Revenue,CAHD,Bed Purchasing - Southmead Hospital,Permanent Nursing,Fairview Court,2183.72, 25-Oct-2016
774,Revenue,CAHD,South Glos Users in South Glos Homes,Permanent Nursing,Fairview Court,625.00, 25-Oct-2016
775,Revenue,CAHD,Bed Purchasing - South,Permanent Nursing,Fairview Court,1110.52, 25-Oct-2016
776,Revenue,CAHD,South Glos Users in South Glos Homes,Permanent Nursing,Fairview Court,625.00, 25-Oct-2016
777,Revenue,CAHD,Bed purchasing - Elderly S117 - South,Permanent Nursing,Fairview Court,2040.00, 25-Oct-2016
778,Revenue,CAHD,South Glos Users in South Glos Homes,Permanent Nursing,Fairview Court,625.00, 25-Oct-2016
779,Revenue,CAHD,Bed Purchasing - South,Permanent Nursing,Fairview Court,1591.68, 25-Oct-2016
780,Revenue,CAHD,South Glos Users in South Glos Homes,Permanent Nursing,Fairview Court,625.00, 25-Oct-2016
781,Revenue,CAHD,South Glos Users in South Glos Homes,Permanent Nursing,Fairview Court,625.00, 25-Oct-2016
782,Revenue,CAHD,South Glos Users in South Glos Homes,Permanent Nursing,Fairview Court,625.00, 25-Oct-2016
783,Revenue,CAHD,Bed Purchasing - South,Permanent Nursing,Fairview Court,13768.45, 25-Oct-2016
784,Revenue,CAHD,Bed Purchasing - South,Permanent Nursing,Fairview Court,2677.20, 25-Oct-2016
785,Revenue,CAHD,South Glos Users in South Glos Homes,Permanent Nursing,Fairview Court,625.00, 25-Oct-2016
786,Revenue,CAHD,South Glos Users in South Glos Homes,Permanent Nursing,Fairview Court,2924.11, 25-Oct-2016
787,Revenue,CAHD,South Glos Users in South Glos Homes,Permanent Nursing,Fairview Court,625.00, 25-Oct-2016
788,Revenue,CAHD,South Glos Users in South Glos Homes,Permanent Nursing,Fairview Court,625.00, 25-Oct-2016
789,Revenue,CAHD,South Glos Users in South Glos Homes,Permanent Nursing,Fairview Court,625.00, 25-Oct-2016
790,Revenue,CAHD,South Glos Users in South Glos Homes,Permanent Nursing,Fairview Court,625.00, 25-Oct-2016
791,Revenue,CAHD,Bed Purchasing - South,Permanent Nursing,Fairview Court,2224.72, 25-Oct-2016
792,Revenue,CAHD,South Glos Users in South Glos Homes,Permanent Nursing,Fairview Court,625.00, 25-Oct-2016
793,Revenue,CAHD,Bed Purchasing - Southmead Hospital,Permanent Nursing,Fairview Court,2213.52, 25-Oct-2016
794,Revenue,CAHD,South Glos Users in South Glos Homes,Permanent Nursing,Fairview Court,625.00, 25-Oct-2016
795,Revenue,CAHD,South Glos Users in South Glos Homes,Permanent Nursing,Fairview Court,625.00, 25-Oct-2016
796,Revenue,CAHD,South Glos Users in South Glos Homes,Permanent Nursing,Fairview Court,625.00, 25-Oct-2016
797,Revenue,CAHD,Bed Purchasing - Southmead Hospital,Permanent Nursing,Fairview Court,2529.20, 25-Oct-2016
798,Revenue,CAHD,South Glos Users in South Glos Homes,Permanent Nursing,Fairview Court,625.00, 25-Oct-2016
799,Revenue,CAHD,South Glos Users in South Glos Homes,Permanent Nursing,Fairview Court,625.00, 25-Oct-2016
800,Revenue,CAHD,South Glos Users in South Glos Homes,Permanent Nursing,Fairview Court,625.00, 25-Oct-2016
801,Revenue,CAHD,South Glos Users in South Glos Homes,Permanent Nursing,Fairview Court,625.00, 25-Oct-2016
802,Revenue,CAHD,South Glos Users in South Glos Homes,Permanent Nursing,Fairview Court,625.00, 25-Oct-2016
803,Revenue,CAHD,South Glos Users in South Glos Homes,Permanent Nursing,Fairview Court,625.00, 25-Oct-2016
804,Revenue,CAHD,Bed Purchasing - South,Permanent Nursing,Fairview Court,1894.88, 25-Oct-2016
805,Revenue,CAHD,South Glos Users in South Glos Homes,Permanent Nursing,Fairview Court,625.00, 25-Oct-2016
806,Revenue,CAHD,Bed Purchasing - Southmead Hospital,Permanent Nursing,Fairview Court,5600.37, 25-Oct-2016
807,Revenue,CAHD,Bed Purchasing - Southmead Hospital,Permanent Nursing,Fairview Court,2077.56, 25-Oct-2016
808,Revenue,CAHD,South Glos Users in South Glos Homes,Permanent Nursing,Fairview Court,625.00, 25-Oct-2016
809,Revenue,CAHD,Bed Purchasing - North,Permanent Nursing,Fairview Court,2485.36, 25-Oct-2016
810,Revenue,CAHD,South Glos Users in South Glos Homes,Permanent Nursing,Fairview Court,625.00, 25-Oct-2016
811,Revenue,CAHD,Bed Purchasing - South,Permanent Nursing,Fairview Court,1807.52, 25-Oct-2016
812,Revenue,CAHD,South Glos Users in South Glos Homes,Permanent Nursing,Fairview Court,625.00, 25-Oct-2016
813,Revenue,CAHD,Bed Purchasing - South,Permanent Nursing,Fairview Court,2035.76, 25-Oct-2016
814,Revenue,CAHD,South Glos Users in South Glos Homes,Permanent Nursing,Fairview Court,625.00, 25-Oct-2016
815,Revenue,CAHD,Bed purchasing - Elderly S117 - South,Permanent Residential,Fairview House,1998.08, 25-Oct-2016
816,Revenue,CAHD,Bed Purchasing - Southmead Hospital,Permanent Residential,Fairview House,1085.08, 25-Oct-2016
817,Revenue,CAHD,Bed Purchasing - South,Permanent Residential,Fairview House,15205.10, 25-Oct-2016
818,Revenue,CAHD,Bed Purchasing - South,Permanent Residential,Fairview House,1445.60, 25-Oct-2016
819,Revenue,CAHD,Bed Purchasing - South,Permanent Residential,Fairview House,910.92, 25-Oct-2016
820,Revenue,CAHD,Bed Purchasing - South,Permanent Residential,Fairview House,767.48, 25-Oct-2016
821,Revenue,CAHD,Bed Purchasing - South,Permanent Residential,Fairview House,1316.52, 25-Oct-2016
822,Revenue,CAHD,Bed Purchasing - South,Permanent Residential,Fairview House,1015.00, 25-Oct-2016
823,Revenue,CAHD,Bed Purchasing - South,Permanent Residential,Fairview House,1269.84, 25-Oct-2016
824,Revenue,CAHD,Bed Purchasing - South,Permanent Residential,Fairview House,1177.84, 25-Oct-2016
825,Revenue,CAHD,Bed Purchasing - South,Permanent Residential,Fairview House,1398.52, 25-Oct-2016
826,Revenue,CAHD,Bed Purchasing - South,Permanent Residential,Fairview House,1086.44, 25-Oct-2016
827,Revenue,CAHD,Bed Purchasing - South,Permanent Residential,Fairview House,1475.08, 25-Oct-2016
828,Revenue,CAHD,Bed Purchasing - Southmead Hospital,Permanent Residential,Faith House,605.56, 25-Oct-2016
829,Revenue,CAHD,Bed Purchasing - Southmead Hospital,Permanent Residential,Faith House,1286.72, 25-Oct-2016
830,Revenue,CAHD,Bed Purchasing - North,Permanent Residential,Fernbank,7821.80, 25-Oct-2016
831,Revenue,CAHD,Bed Purchasing - Southmead Hospital,Permanent Nursing,Field House Care Home,1561.56, 25-Oct-2016
832,Revenue,CAHD,Bed Purchasing - North,Permanent Nursing,Field House Care Home,1027.08, 25-Oct-2016
833,Revenue,CAHD,Bed Purchasing - North,Permanent Nursing,Field House Care Home,2554.96, 25-Oct-2016
834,Revenue,CAHD,Bed Purchasing - Southmead Hospital,Permanent Nursing,Field House Care Home,2773.41, 25-Oct-2016
835,Revenue,CAHD,Bed Purchasing - Southmead Hospital,Permanent Nursing,Field House Care Home,2353.20, 25-Oct-2016
836,Revenue,CAHD,Bed Purchasing - Southmead Hospital,Permanent Nursing,Field House Care Home,2227.92, 25-Oct-2016
837,Revenue,CAHD,Bed purchasing - Elderly S117 - South,Permanent Nursing,Fieldview,3400.00, 25-Oct-2016
838,Revenue,CAHD,Home Care - Elderly - South,Other Small Contracts,Firstpoint Homecare Ltd,1169.20, 20-Oct-2016
839,Revenue,CAHD,Home Care - Elderly - North,Day Care / Social Activities,Firstpoint Homecare Ltd,138.25, 20-Oct-2016
840,Revenue,CAHD,Home Care - Elderly - North,Other Small Contracts,Firstpoint Homecare Ltd,343.65, 20-Oct-2016
841,Revenue,CAHD,Home Care - Elderly - South,Other Small Contracts,Firstpoint Homecare Ltd,1058.60, 20-Oct-2016
842,Revenue,CAHD,Home Care - Elderly - North,Day Care / Social Activities,Firstpoint Homecare Ltd,118.50, 20-Oct-2016
843,Revenue,CAHD,Home Care - Elderly - North,Other Small Contracts,Firstpoint Homecare Ltd,312.05, 20-Oct-2016
844,Revenue,CAHD,Home Care - Elderly - South,Other Small Contracts,Firstpoint Homecare Ltd,1106.00, 20-Oct-2016
845,Revenue,CAHD,Home Care - Elderly - North,Day Care / Social Activities,Firstpoint Homecare Ltd,118.50, 20-Oct-2016
846,Revenue,CAHD,Home Care - Elderly - North,Other Small Contracts,Firstpoint Homecare Ltd,343.65, 20-Oct-2016
847,Revenue,CAHD,Home Care - Elderly - South,Day Care / Social Activities,Fourways Care Limited,414.52, 03-Oct-2016
848,Revenue,CAHD,Home Care - Elderly - South,Other Small Contracts,Fourways Care Limited,6171.34, 03-Oct-2016
849,Revenue,CAHD,Home Care - Elderly - North,Day Care / Social Activities,Fourways Care Limited,197.62, 03-Oct-2016
850,Revenue,CAHD,Home Care - Elderly - North,Other Small Contracts,Fourways Care Limited,4627.20, 03-Oct-2016
851,Revenue,CAHD,Younger MH non-res purchasing,Other Small Contracts,Fourways Care Limited,86.76, 03-Oct-2016
852,Revenue,CAHD,Home Care - Elderly - South,Day Care / Social Activities,Fourways Care Limited,409.70, 06-Oct-2016
853,Revenue,CAHD,Home Care - Elderly - South,Other Small Contracts,Fourways Care Limited,6700.18, 06-Oct-2016
854,Revenue,CAHD,Home Care - Elderly - North,Day Care / Social Activities,Fourways Care Limited,197.62, 06-Oct-2016
855,Revenue,CAHD,Home Care - Elderly - North,Other Small Contracts,Fourways Care Limited,5302.00, 06-Oct-2016
856,Revenue,CAHD,Younger MH non-res purchasing,Other Small Contracts,Fourways Care Limited,81.94, 06-Oct-2016
857,Revenue,CAHD,Home Care - Elderly - South,Day Care / Social Activities,Fourways Care Limited,448.26, 12-Oct-2016
858,Revenue,CAHD,Home Care - Elderly - South,Other Small Contracts,Fourways Care Limited,6463.32, 12-Oct-2016
859,Revenue,CAHD,Home Care - Elderly - North,Day Care / Social Activities,Fourways Care Limited,183.16, 12-Oct-2016
860,Revenue,CAHD,Home Care - Elderly - North,Other Small Contracts,Fourways Care Limited,5880.40, 12-Oct-2016
861,Revenue,CAHD,Younger MH non-res purchasing,Other Small Contracts,Fourways Care Limited,81.94, 12-Oct-2016
862,Revenue,CAHD,Home Care - Elderly - South,Day Care / Social Activities,Fourways Care Limited,390.42, 19-Oct-2016
863,Revenue,CAHD,Home Care - Elderly - South,Other Small Contracts,Fourways Care Limited,5840.80, 19-Oct-2016
864,Revenue,CAHD,Home Care - Elderly - North,Day Care / Social Activities,Fourways Care Limited,178.34, 19-Oct-2016
865,Revenue,CAHD,Home Care - Elderly - North,Other Small Contracts,Fourways Care Limited,6434.70, 19-Oct-2016
866,Revenue,CAHD,Younger MH non-res purchasing,Other Small Contracts,Fourways Care Limited,81.94, 19-Oct-2016
867,Revenue,CAHD,Home Care - Elderly - South,Day Care / Social Activities,Fourways Care Limited,419.34, 25-Oct-2016
868,Revenue,CAHD,Home Care - Elderly - South,Other Small Contracts,Fourways Care Limited,6004.74, 25-Oct-2016
869,Revenue,CAHD,Home Care - Elderly - North,Day Care / Social Activities,Fourways Care Limited,139.78, 25-Oct-2016
870,Revenue,CAHD,Home Care - Elderly - North,Other Small Contracts,Fourways Care Limited,7307.12, 25-Oct-2016
871,Revenue,CAHD,Younger MH non-res purchasing,Other Small Contracts,Fourways Care Limited,81.94, 25-Oct-2016
872,Revenue,CAHD,Home Care - Elderly - South,Day Care / Social Activities,Fourways Care Limited,414.52, 31-Oct-2016
873,Revenue,CAHD,Home Care - Elderly - South,Other Small Contracts,Fourways Care Limited,6026.74, 31-Oct-2016
874,Revenue,CAHD,Home Care - Elderly - North,Day Care / Social Activities,Fourways Care Limited,144.60, 31-Oct-2016
875,Revenue,CAHD,Home Care - Elderly - North,Other Small Contracts,Fourways Care Limited,6531.10, 31-Oct-2016
876,Revenue,CAHD,Younger MH non-res purchasing,Other Small Contracts,Fourways Care Limited,81.94, 31-Oct-2016
877,Revenue,CAHD,Freeways,Permanent Residential,Freeways Trust Limited,3705.32, 24-Oct-2016
878,Revenue,CAHD,Freeways,Permanent Residential,Freeways Trust Limited,2331.13, 24-Oct-2016
879,Revenue,CAHD,Freeways,Permanent Residential,Freeways Trust Limited,2409.93, 24-Oct-2016
880,Revenue,CAHD,Freeways,Permanent Residential,Freeways Trust Limited,3393.81, 24-Oct-2016
881,Revenue,CAHD,Freeways,Permanent Residential,Freeways Trust Limited,2331.13, 24-Oct-2016
882,Revenue,CAHD,Freeways,Permanent Residential,Freeways Trust Limited,3454.92, 24-Oct-2016
883,Revenue,CAHD,Freeways,Permanent Residential,Freeways Trust Limited,2997.80, 24-Oct-2016
884,Revenue,CAHD,Freeways,Permanent Residential,Freeways Trust Limited,3614.51, 24-Oct-2016
885,Revenue,CAHD,Freeways,Permanent Residential,Freeways Trust Limited,2208.93, 24-Oct-2016
886,Revenue,CAHD,Freeways,Permanent Residential,Freeways Trust Limited,2749.17, 24-Oct-2016
887,Revenue,CAHD,Freeways,Permanent Residential,Freeways Trust Limited,3508.85, 24-Oct-2016
888,Revenue,CAHD,Freeways,Permanent Residential,Freeways Trust Limited,3158.33, 24-Oct-2016
889,Revenue,CAHD,Freeways,Permanent Residential,Freeways Trust Limited,2731.73, 24-Oct-2016
890,Revenue,CAHD,Freeways,Permanent Residential,Freeways Trust Limited,7455.27, 24-Oct-2016
891,Revenue,CAHD,Home Care - Elderly - North,Supported Living,Freeways Trust Ltd,600.00, 25-Oct-2016
892,Revenue,CAHD,Bed Purchasing - North,Permanent Residential,Freeways Trust Ltd,5546.45, 25-Oct-2016
893,Revenue,CAHD,Bed purchasing - S28A Under 65 - South,Permanent Residential,Freeways Trust Ltd,3023.48, 25-Oct-2016
894,Revenue,CAHD,Bed Purchasing - North,Permanent Residential,Freeways Trust Ltd,3185.12, 25-Oct-2016
895,Revenue,CAHD,Bed Purchasing - North,Permanent Residential,Freeways Trust Ltd,2827.28, 25-Oct-2016
896,Revenue,CAHD,Bed Purchasing - South,Permanent Residential,Freeways Trust Ltd,3375.48, 25-Oct-2016
897,Revenue,CAHD,Bed Purchasing - North,Permanent Residential,Freeways Trust Ltd,2328.44, 25-Oct-2016
898,Revenue,CAHD,Bed Purchasing - South,Permanent Residential,Freeways Trust Ltd,2481.04, 25-Oct-2016
899,Revenue,CAHD,Bed Purchasing - North,Permanent Residential,Freeways Trust Ltd,2748.48, 25-Oct-2016
900,Revenue,CAHD,Bed Purchasing - North,Permanent Residential,Freeways Trust Ltd,3246.40, 25-Oct-2016
901,Revenue,CAHD,18-25 Year Olds,Permanent Residential,Freeways Trust Ltd,3481.92, 25-Oct-2016
902,Revenue,CAHD,Bed Purchasing - North,Permanent Residential,Freeways Trust Ltd,3956.56, 25-Oct-2016
903,Revenue,CAHD,Pathway 3 - (Complex Beds),Permanent Nursing,Frenchay House,3162.00, 12-Oct-2016
904,Revenue,CAHD,Bed Purchasing - South,Permanent Nursing,Fshc  1St Floor,911.04, 25-Oct-2016
905,Revenue,CAHD,South Glos Users in South Glos Homes,Permanent Nursing,Fshc  1St Floor,625.00, 25-Oct-2016
906,Revenue,CAHD,Bed Purchasing - South,Permanent Nursing,Fshc  1St Floor,1067.68, 25-Oct-2016
907,Revenue,CAHD,Bed Purchasing - Southmead Hospital,Permanent Nursing,Fshc  1St Floor,1349.96, 25-Oct-2016
908,Revenue,CAHD,Bed Purchasing - South,Permanent Nursing,Fshc  1St Floor,1130.16, 25-Oct-2016
909,Revenue,CAHD,South Glos Users in South Glos Homes,Permanent Nursing,Fshc  1St Floor,625.00, 25-Oct-2016
910,Revenue,CAHD,Bed Purchasing - Southmead Hospital,Permanent Nursing,Fshc  1St Floor,1993.20, 25-Oct-2016
911,Revenue,CAHD,Swift Dump Code,Permanent Residential,Fshc  1St Floor,1067.78, 25-Oct-2016
912,Revenue,CAHD,Bed Purchasing - Southmead Hospital,Permanent Nursing,Fshc  1St Floor,1433.28, 25-Oct-2016
913,Revenue,CAHD,South Glos Users in South Glos Homes,Permanent Nursing,Fshc  1St Floor,625.00, 25-Oct-2016
914,Revenue,CAHD,South Glos Users in South Glos Homes,Permanent Nursing,Fshc  1St Floor,625.00, 25-Oct-2016
915,Revenue,CAHD,Bed Purchasing - Southmead Hospital,Respite Planned - Nursing,Fshc  1St Floor,2548.00, 25-Oct-2016
916,Revenue,CAHD,Bed Purchasing - Southmead Hospital,Respite Planned - Nursing,Fshc  1St Floor,637.00, 25-Oct-2016
917,Revenue,CAHD,South Glos Users in South Glos Homes,Permanent Nursing,Fshc  1St Floor,625.00, 25-Oct-2016
918,Revenue,CAHD,South Glos Users in South Glos Homes,Permanent Nursing,Fshc  1St Floor,625.00, 25-Oct-2016
919,Revenue,CAHD,Bed Purchasing - Southmead Hospital,Permanent Nursing,Fshc  1St Floor,1515.92, 25-Oct-2016
920,Revenue,CAHD,South Glos Users in South Glos Homes,Permanent Nursing,Fshc  1St Floor,625.00, 25-Oct-2016
921,Revenue,CAHD,Bed Purchasing - Southmead Hospital,Permanent Nursing,Fshc  1St Floor,1190.92, 25-Oct-2016
922,Revenue,CAHD,Bed Purchasing - South,Respite Planned - Nursing,Fshc  1St Floor,18228.57, 25-Oct-2016
923,Revenue,CAHD,South Glos Users in South Glos Homes,Permanent Nursing,Fshc  1St Floor,625.00, 25-Oct-2016
924,Revenue,CAHD,South Glos Users in South Glos Homes,Permanent Nursing,Fshc  1St Floor,625.00, 25-Oct-2016
925,Revenue,CAHD,Bed Purchasing - South,Permanent Nursing,Fshc  1St Floor,1759.84, 25-Oct-2016
926,Revenue,CAHD,Bed Purchasing - Southmead Hospital,Permanent Nursing,Fshc  1St Floor,1759.84, 25-Oct-2016
927,Revenue,CAHD,Bed Purchasing - South,Permanent Nursing,Fshc  1St Floor,1729.20, 25-Oct-2016
928,Revenue,CAHD,South Glos Users in South Glos Homes,Permanent Nursing,Fshc  1St Floor,625.00, 25-Oct-2016
929,Revenue,CAHD,South Glos Users in South Glos Homes,Permanent Nursing,Fshc  1St Floor,625.00, 25-Oct-2016
930,Revenue,CAHD,Bed Purchasing - North,Respite Planned - Nursing,Fshc  1St Floor,578.57, 25-Oct-2016
931,Revenue,CAHD,Bed Purchasing - Southmead Hospital,Permanent Nursing,Fshc  1St Floor,1515.92, 25-Oct-2016
932,Revenue,CAHD,South Glos Users in South Glos Homes,Permanent Nursing,Fshc  1St Floor,625.00, 25-Oct-2016
933,Revenue,CAHD,Bed Purchasing - Southmead Hospital,Permanent Nursing,Fshc  1St Floor,2148.28, 25-Oct-2016
934,Revenue,CAHD,South Glos Users in South Glos Homes,Permanent Nursing,Fshc  1St Floor,625.00, 25-Oct-2016
935,Revenue,CAHD,Bed Purchasing - South,Permanent Nursing,Fshc  1St Floor,1470.72, 25-Oct-2016
936,Revenue,CAHD,South Glos Users in South Glos Homes,Permanent Nursing,Fshc  1St Floor,625.00, 25-Oct-2016
937,Revenue,CAHD,Bed Purchasing - Southmead Hospital,Permanent Nursing,Fshc  1St Floor,1515.92, 25-Oct-2016
938,Revenue,CAHD,South Glos Users in South Glos Homes,Permanent Nursing,Fshc  1St Floor,625.00, 25-Oct-2016
939,Revenue,CAHD,Bed Purchasing - North,Respite Planned - Nursing,Fshc  1St Floor,771.43, 25-Oct-2016
940,Revenue,CAHD,Bed Purchasing - Southmead Hospital,Permanent Residential,Fshc  1St Floor,545.56, 25-Oct-2016
941,Revenue,CAHD,Bed Purchasing - South,Permanent Nursing,Fshc  1St Floor,1295.64, 25-Oct-2016
942,Revenue,CAHD,Bed Purchasing - North,Permanent Nursing,Fshc  1St Floor,2038.72, 25-Oct-2016
943,Revenue,CAHD,South Glos Users in South Glos Homes,Permanent Nursing,Fshc  1St Floor,625.00, 25-Oct-2016
944,Revenue,CAHD,South Glos Users in South Glos Homes,Permanent Nursing,Fshc  1St Floor,625.00, 25-Oct-2016
945,Revenue,CAHD,Bed Purchasing - Southmead Hospital,Permanent Nursing,Fshc  1St Floor,1331.36, 25-Oct-2016
946,Revenue,CAHD,South Glos Users in South Glos Homes,Permanent Nursing,Fshc  1St Floor,625.00, 25-Oct-2016
947,Revenue,CAHD,Bed Purchasing - South,Permanent Nursing,Fshc  1St Floor,1515.92, 25-Oct-2016
948,Revenue,CAHD,South Glos Users in South Glos Homes,Permanent Nursing,Fshc  1St Floor,625.00, 25-Oct-2016
949,Revenue,CAHD,South Glos Users in South Glos Homes,Permanent Nursing,Fshc  1St Floor,625.00, 25-Oct-2016
950,Revenue,CAHD,Bed Purchasing - South,Permanent Nursing,Fshc  1St Floor,1480.20, 25-Oct-2016
951,Revenue,CAHD,Bed Purchasing - North,Permanent Nursing,Fshc  1St Floor,1590.48, 25-Oct-2016
952,Revenue,CAHD,South Glos Users in South Glos Homes,Permanent Nursing,Fshc  1St Floor,625.00, 25-Oct-2016
953,Revenue,CAHD,Bed Purchasing - Southmead Hospital,Permanent Nursing,Fshc  1St Floor,1515.92, 25-Oct-2016
954,Revenue,CAHD,South Glos Users in South Glos Homes,Permanent Nursing,Fshc  1St Floor,625.00, 25-Oct-2016
955,Revenue,CAHD,South Glos Users in South Glos Homes,Permanent Nursing,Fshc  1St Floor,625.00, 25-Oct-2016
956,Revenue,CAHD,Bed Purchasing - Southmead Hospital,Permanent Nursing,Fshc  1St Floor,1466.51, 25-Oct-2016
957,Revenue,CAHD,Bed Purchasing - Southmead Hospital,Permanent Nursing,Fshc  1St Floor,1001.52, 25-Oct-2016
958,Revenue,CAHD,South Glos Users in South Glos Homes,Permanent Nursing,Fshc  1St Floor,625.00, 25-Oct-2016
959,Revenue,CAHD,Bed Purchasing - North,Permanent Nursing,Fshc  1St Floor,1219.00, 25-Oct-2016
960,Revenue,CAHD,South Glos Users in South Glos Homes,Permanent Nursing,Fshc  1St Floor,625.00, 25-Oct-2016
961,Revenue,CAHD,Bed Purchasing - South,Permanent Nursing,Fshc  1St Floor,1296.12, 25-Oct-2016
962,Revenue,CAHD,South Glos Users in South Glos Homes,Permanent Nursing,Fshc  1St Floor,625.00, 25-Oct-2016
963,Revenue,CAHD,Bed Purchasing - Southmead Hospital,Permanent Nursing,Fshc  1St Floor,1146.00, 25-Oct-2016
964,Revenue,CAHD,South Glos Users in South Glos Homes,Permanent Nursing,Fshc  1St Floor,625.00, 25-Oct-2016
965,Revenue,CAHD,South Glos Users in South Glos Homes,Permanent Nursing,Fshc  1St Floor,625.00, 25-Oct-2016
966,Revenue,CAHD,Bed Purchasing - Southmead Hospital,Permanent Nursing,Fshc  1St Floor,1761.16, 25-Oct-2016
967,Revenue,CAHD,South Glos Users in South Glos Homes,Permanent Nursing,Fshc  1St Floor,625.00, 25-Oct-2016
968,Revenue,CAHD,South Glos Users in South Glos Homes,Permanent Nursing,Fshc  1St Floor,3571.43, 25-Oct-2016
969,Revenue,CAHD,Bed Purchasing - North,Permanent Nursing,Fshc  1St Floor,1402.36, 25-Oct-2016
970,Revenue,CAHD,South Glos Users in South Glos Homes,Permanent Nursing,Fshc  1St Floor,625.00, 25-Oct-2016
971,Revenue,CAHD,South Glos Users in South Glos Homes,Permanent Nursing,Fshc  1St Floor,625.00, 25-Oct-2016
972,Revenue,CAHD,Bed Purchasing - Southmead Hospital,Permanent Nursing,Fshc  1St Floor,1056.36, 25-Oct-2016
973,Revenue,CAHD,South Glos Users in South Glos Homes,Permanent Nursing,Fshc  1St Floor,625.00, 25-Oct-2016
974,Revenue,CAHD,Bed Purchasing - Southmead Hospital,Permanent Residential,Fshc  1St Floor,1275.44, 25-Oct-2016
975,Revenue,CAHD,South Glos Users in South Glos Homes,Permanent Nursing,Fshc  1St Floor,625.00, 25-Oct-2016
976,Revenue,CAHD,Bed Purchasing - Southmead Hospital,Permanent Nursing,Fshc  1St Floor,1229.48, 25-Oct-2016
977,Revenue,CAHD,South Glos Users in South Glos Homes,Permanent Nursing,Fshc  1St Floor,625.00, 25-Oct-2016
978,Revenue,CAHD,Bed Purchasing - Southmead Hospital,Permanent Nursing,Fshc  1St Floor,1253.44, 25-Oct-2016
979,Revenue,CAHD,South Glos Users in South Glos Homes,Permanent Nursing,Fshc  1St Floor,625.00, 25-Oct-2016
980,Revenue,CAHD,South Glos Users in South Glos Homes,Permanent Nursing,Fshc  1St Floor,625.00, 25-Oct-2016
981,Revenue,CAHD,South Glos Users in South Glos Homes,Permanent Nursing,Fshc  1St Floor,4285.71, 25-Oct-2016
982,Revenue,CAHD,South Glos Users in South Glos Homes,Permanent Nursing,Fshc  1St Floor,625.00, 25-Oct-2016
983,Revenue,CAHD,South Glos Users in South Glos Homes,Permanent Nursing,Fshc  1St Floor,625.00, 25-Oct-2016
984,Revenue,CAHD,Bed Purchasing - Southmead Hospital,Permanent Nursing,Fshc  1St Floor,1515.92, 25-Oct-2016
985,Revenue,CAHD,South Glos Users in South Glos Homes,Permanent Nursing,Fshc  1St Floor,625.00, 25-Oct-2016
986,Revenue,CAHD,Bed Purchasing - North,Permanent Nursing,Fshc  1St Floor,1451.48, 25-Oct-2016
987,Revenue,CAHD,South Glos Users in South Glos Homes,Permanent Nursing,Fshc  1St Floor,625.00, 25-Oct-2016
988,Revenue,CAHD,South Glos Users in South Glos Homes,Permanent Nursing,Fshc  1St Floor,625.00, 25-Oct-2016
989,Revenue,CAHD,South Glos Users in South Glos Homes,Permanent Nursing,Fshc  1St Floor,4285.71, 25-Oct-2016
990,Revenue,CAHD,Bed Purchasing - North,Permanent Nursing,Fshc  1St Floor,1337.64, 25-Oct-2016
991,Revenue,CAHD,South Glos Users in South Glos Homes,Permanent Nursing,Fshc  1St Floor,625.00, 25-Oct-2016
992,Revenue,CAHD,South Glos Users in South Glos Homes,Permanent Nursing,Fshc  1St Floor,560.00, 25-Oct-2016
993,Revenue,CAHD,Bed Purchasing - North,Permanent Nursing,Fshc  1St Floor,1457.92, 25-Oct-2016
994,Revenue,CAHD,Bed Purchasing - North,Permanent Nursing,Fshc  1St Floor,1041.37, 25-Oct-2016
995,Revenue,CAHD,South Glos Users in South Glos Homes,Permanent Nursing,Fshc  1St Floor,625.00, 25-Oct-2016
996,Revenue,CAHD,South Glos Users in South Glos Homes,Permanent Nursing,Fshc  1St Floor,1651.79, 25-Oct-2016
997,Revenue,CAHD,South Glos Users in South Glos Homes,Permanent Nursing,Fshc  1St Floor,625.00, 25-Oct-2016
998,Revenue,CAHD,Bed Purchasing - Southmead Hospital,Respite Emergency - Nursing,Fshc  1St Floor,1724.06, 25-Oct-2016
999,Revenue,CAHD,South Glos Users in South Glos Homes,Permanent Nursing,Fshc  1St Floor,625.00, 25-Oct-2016
1000,Revenue,CAHD,South Glos Users in South Glos Homes,Permanent Nursing,Fshc  1St Floor,1116.07, 25-Oct-2016
1001,Revenue,CAHD,Bed Purchasing - Southmead Hospital,Permanent Nursing,Fshc  1St Floor,2227.20, 25-Oct-2016
1002,Revenue,CAHD,South Glos Users in South Glos Homes,Permanent Nursing,Fshc  1St Floor,625.00, 25-Oct-2016
1003,Revenue,CAHD,Bed Purchasing - Southmead Hospital,Permanent Nursing,Fshc  1St Floor,1515.92, 25-Oct-2016
1004,Revenue,CAHD,South Glos Users in South Glos Homes,Permanent Nursing,Fshc  1St Floor,625.00, 25-Oct-2016
1005,Revenue,CAHD,Bed Purchasing - North,Permanent Nursing,Fshc  1St Floor,667.16, 25-Oct-2016
1006,Revenue,CAHD,South Glos Users in South Glos Homes,Permanent Nursing,Fshc  1St Floor,625.00, 25-Oct-2016
1007,Revenue,CAHD,Bed Purchasing - Southmead Hospital,Permanent Residential,Fshc  1St Floor,1367.12, 25-Oct-2016
1008,Revenue,CAHD,Bed Purchasing - North,Permanent Nursing,Fshc  1St Floor,1396.84, 25-Oct-2016
1009,Revenue,CAHD,South Glos Users in South Glos Homes,Permanent Nursing,Fshc  1St Floor,625.00, 25-Oct-2016
1010,Revenue,CAHD,Bed Purchasing - North,Permanent Nursing,Fshc  1St Floor,1029.60, 25-Oct-2016
1011,Revenue,CAHD,South Glos Users in South Glos Homes,Permanent Nursing,Fshc  1St Floor,625.00, 25-Oct-2016
1012,Revenue,CAHD,Bed Purchasing - North,Permanent Nursing,Fshc  1St Floor,1515.92, 25-Oct-2016
1013,Revenue,CAHD,South Glos Users in South Glos Homes,Permanent Nursing,Fshc  1St Floor,625.00, 25-Oct-2016
1014,Revenue,CAHD,Bed Purchasing - North,Permanent Nursing,Fshc  1St Floor,1701.12, 25-Oct-2016
1015,Revenue,CAHD,South Glos Users in South Glos Homes,Permanent Nursing,Fshc  1St Floor,625.00, 25-Oct-2016
1016,Revenue,CAHD,Bed Purchasing - North,Permanent Residential,Fshc  1St Floor,1449.16, 25-Oct-2016
1017,Revenue,CAHD,South Glos Users in South Glos Homes,Permanent Nursing,Fshc  1St Floor,625.00, 25-Oct-2016
1018,Revenue,CAHD,Bed Purchasing - North,Permanent Nursing,Fshc  1St Floor,1128.32, 25-Oct-2016
1019,Revenue,CAHD,South Glos Users in South Glos Homes,Permanent Nursing,Fshc  1St Floor,625.00, 25-Oct-2016
1020,Revenue,CAHD,Bed Purchasing - North,Permanent Nursing,Fshc  1St Floor,2038.72, 25-Oct-2016
1021,Revenue,CAHD,South Glos Users in South Glos Homes,Permanent Nursing,Fshc  1St Floor,625.00, 25-Oct-2016
1022,Revenue,CAHD,Bed Purchasing - North,Permanent Residential,Fshc  1St Floor,1394.20, 25-Oct-2016
1023,Revenue,CAHD,South Glos Users in South Glos Homes,Permanent Nursing,Fshc  1St Floor,625.00, 25-Oct-2016
1024,Revenue,CAHD,South Glos Users in South Glos Homes,Permanent Nursing,Fshc  1St Floor,625.00, 25-Oct-2016
1025,Revenue,CAHD,Bed Purchasing - North,Permanent Nursing,Fshc  1St Floor,1547.92, 25-Oct-2016
1026,Revenue,CAHD,South Glos Users in South Glos Homes,Permanent Nursing,Fshc  1St Floor,625.00, 25-Oct-2016
1027,Revenue,CAHD,Bed Purchasing - North,Permanent Residential,Fshc  1St Floor,1553.04, 25-Oct-2016
1028,Revenue,CAHD,Bed Purchasing - South,Respite Emergency - Nursing,Fshc  1St Floor,1904.00, 25-Oct-2016
1029,Revenue,CAHD,South Glos Users in South Glos Homes,Permanent Nursing,Fshc  1St Floor,2767.86, 25-Oct-2016
1030,Revenue,CAHD,South Glos Users in South Glos Homes,Permanent Nursing,Fshc  1St Floor,625.00, 25-Oct-2016
1031,Revenue,CAHD,Bed Purchasing - Southmead Hospital,Permanent Nursing,Fshc  1St Floor,1782.60, 25-Oct-2016
1032,Revenue,CAHD,South Glos Users in South Glos Homes,Permanent Nursing,Fshc  1St Floor,625.00, 25-Oct-2016
1033,Revenue,CAHD,South Glos Users in South Glos Homes,Permanent Nursing,Fshc  1St Floor,625.00, 25-Oct-2016
1034,Revenue,CAHD,Bed Purchasing - North,Permanent Nursing,Fshc  1St Floor,1515.92, 25-Oct-2016
1035,Revenue,CAHD,South Glos Users in South Glos Homes,Permanent Nursing,Fshc  1St Floor,625.00, 25-Oct-2016
1036,Revenue,CAHD,Bed Purchasing - Southmead Hospital,Permanent Nursing,Fshc  1St Floor,1200.48, 25-Oct-2016
1037,Revenue,CAHD,Bed Purchasing - South,Permanent Nursing,Fshc  1St Floor,1535.92, 25-Oct-2016
1038,Revenue,CAHD,South Glos Users in South Glos Homes,Permanent Nursing,Fshc  1St Floor,625.00, 25-Oct-2016
1039,Revenue,CAHD,South Glos Users in South Glos Homes,Permanent Nursing,Fshc  1St Floor,625.00, 25-Oct-2016
1040,Revenue,CAHD,Bed Purchasing - Southmead Hospital,Permanent Nursing,Fshc  1St Floor,1316.52, 25-Oct-2016
1041,Revenue,CAHD,South Glos Users in South Glos Homes,Permanent Nursing,Fshc  1St Floor,625.00, 25-Oct-2016
1042,Revenue,CAHD,Bed Purchasing - Southmead Hospital,Respite Planned - Nursing,Fshc  1St Floor,2685.43, 25-Oct-2016
1043,Revenue,CAHD,South Glos Users in South Glos Homes,Permanent Nursing,Fshc  1St Floor,625.00, 25-Oct-2016
1044,Revenue,CAHD,South Glos Users in South Glos Homes,Permanent Nursing,Fshc  1St Floor,625.00, 25-Oct-2016
1045,Revenue,CAHD,Bed Purchasing - North,Respite Planned - Nursing,Fshc  1St Floor,1054.29, 25-Oct-2016
1046,Revenue,CAHD,Bed Purchasing - North,Respite Planned - Nursing,Fshc  1St Floor,738.00, 25-Oct-2016
1047,Revenue,CAHD,Bed Purchasing - North,Respite Planned - Nursing,Fshc  1St Floor,1245.50, 25-Oct-2016
1048,Revenue,CAHD,South Glos Users in South Glos Homes,Permanent Nursing,Fshc  1St Floor,625.00, 25-Oct-2016
1049,Revenue,CAHD,South Glos Users in South Glos Homes,Permanent Nursing,Fshc  1St Floor,625.00, 25-Oct-2016
1050,Revenue,CAHD,South Glos Users in South Glos Homes,Permanent Nursing,Fshc  1St Floor,625.00, 25-Oct-2016
1051,Revenue,CAHD,South Glos Users in South Glos Homes,Permanent Nursing,Fshc  1St Floor,625.00, 25-Oct-2016
1052,Revenue,CAHD,Bed Purchasing - Southmead Hospital,Permanent Residential,Fshc  1St Floor,1287.16, 25-Oct-2016
1053,Revenue,CAHD,South Glos Users in South Glos Homes,Permanent Nursing,Fshc  1St Floor,625.00, 25-Oct-2016
1054,Revenue,CAHD,South Glos Users in South Glos Homes,Permanent Nursing,Fshc  1St Floor,625.00, 25-Oct-2016
1055,Revenue,CAHD,Bed Purchasing - North,Permanent Nursing,Fshc  1St Floor,1018.12, 25-Oct-2016
1056,Revenue,CAHD,South Glos Users in South Glos Homes,Permanent Nursing,Fshc  1St Floor,625.00, 25-Oct-2016
1057,Revenue,CAHD,South Glos Users in South Glos Homes,Permanent Nursing,Fshc  1St Floor,625.00, 25-Oct-2016
1058,Revenue,CAHD,Bed Purchasing - Southmead Hospital,Permanent Nursing,Fshc  1St Floor,1852.20, 25-Oct-2016
1059,Revenue,CAHD,Bed Purchasing - Southmead Hospital,Permanent Nursing,Fshc  1St Floor,1470.68, 25-Oct-2016
1060,Revenue,CAHD,South Glos Users in South Glos Homes,Permanent Nursing,Fshc  1St Floor,625.00, 25-Oct-2016
1061,Revenue,CAHD,Bed Purchasing - North,Permanent Nursing,Fshc  1St Floor,1140.76, 25-Oct-2016
1062,Revenue,CAHD,South Glos Users in South Glos Homes,Permanent Nursing,Fshc  1St Floor,625.00, 25-Oct-2016
1063,Revenue,CAHD,Bed Purchasing - North,Permanent Nursing,Fshc  1St Floor,1428.56, 25-Oct-2016
1064,Revenue,CAHD,South Glos Users in South Glos Homes,Permanent Nursing,Fshc  1St Floor,625.00, 25-Oct-2016
1065,Revenue,CAHD,Bed Purchasing - Southmead Hospital,Permanent Nursing,Fshc  1St Floor,703.40, 25-Oct-2016
1066,Revenue,CAHD,South Glos Users in South Glos Homes,Permanent Nursing,Fshc  1St Floor,625.00, 25-Oct-2016
1067,Revenue,CAHD,Bed Purchasing - Southmead Hospital,Permanent Nursing,Fshc  1St Floor,1515.92, 25-Oct-2016
1068,Revenue,CAHD,South Glos Users in South Glos Homes,Permanent Nursing,Fshc  1St Floor,625.00, 25-Oct-2016
1069,Revenue,CAHD,Bed Purchasing - Southmead Hospital,Permanent Nursing,Fshc  1St Floor,1515.92, 25-Oct-2016
1070,Revenue,CAHD,South Glos Users in South Glos Homes,Permanent Nursing,Fshc  1St Floor,625.00, 25-Oct-2016
1071,Revenue,CAHD,Bed Purchasing - North,Permanent Nursing,Fshc  1St Floor,1728.60, 25-Oct-2016
1072,Revenue,CAHD,South Glos Users in South Glos Homes,Permanent Nursing,Fshc  1St Floor,625.00, 25-Oct-2016
1073,Revenue,CAHD,Bed Purchasing - North,Permanent Nursing,Fshc  1St Floor,1491.92, 25-Oct-2016
1074,Revenue,CAHD,South Glos Users in South Glos Homes,Permanent Nursing,Fshc  1St Floor,625.00, 25-Oct-2016
1075,Revenue,CAHD,South Glos Users in South Glos Homes,Permanent Nursing,Fshc  1St Floor,625.00, 25-Oct-2016
1076,Revenue,CAHD,Bed Purchasing - Southmead Hospital,Permanent Nursing,Fshc  1St Floor,1217.84, 25-Oct-2016
1077,Revenue,CAHD,South Glos Users in South Glos Homes,Permanent Nursing,Fshc  1St Floor,625.00, 25-Oct-2016
1078,Revenue,CAHD,South Glos Users in South Glos Homes,Permanent Nursing,Fshc  1St Floor,625.00, 25-Oct-2016
1079,Revenue,CAHD,Bed Purchasing - North,Permanent Nursing,Fshc  1St Floor,1443.20, 25-Oct-2016
1080,Revenue,CAHD,South Glos Users in South Glos Homes,Permanent Nursing,Fshc  1St Floor,1004.46, 25-Oct-2016
1081,Revenue,CAHD,South Glos Users in South Glos Homes,Permanent Nursing,Fshc  1St Floor,625.00, 25-Oct-2016
1082,Revenue,CAHD,Bed Purchasing - South,Permanent Nursing,Fshc  1St Floor,1320.08, 25-Oct-2016
1083,Revenue,CAHD,South Glos Users in South Glos Homes,Permanent Nursing,Fshc  1St Floor,625.00, 25-Oct-2016
1084,Revenue,CAHD,Bed Purchasing - South,Permanent Nursing,Fshc  1St Floor,1422.64, 25-Oct-2016
1085,Revenue,CAHD,South Glos Users in South Glos Homes,Permanent Nursing,Fshc  1St Floor,625.00, 25-Oct-2016
1086,Revenue,CAHD,Bed Purchasing - Southmead Hospital,Permanent Nursing,Fshc  1St Floor,1461.68, 25-Oct-2016
1087,Revenue,CAHD,South Glos Users in South Glos Homes,Permanent Nursing,Fshc  1St Floor,625.00, 25-Oct-2016
1088,Revenue,CAHD,Bed Purchasing - North,Permanent Nursing,Fshc  1St Floor,810.80, 25-Oct-2016
1089,Revenue,CAHD,South Glos Users in South Glos Homes,Permanent Nursing,Fshc  1St Floor,625.00, 25-Oct-2016
1090,Revenue,CAHD,Bed Purchasing - South,Permanent Nursing,Fshc  1St Floor,2038.72, 25-Oct-2016
1091,Revenue,CAHD,South Glos Users in South Glos Homes,Permanent Nursing,Fshc  1St Floor,625.00, 25-Oct-2016
1092,Revenue,CAHD,Bed Purchasing - Southmead Hospital,Permanent Residential,Fshc  1St Floor,1616.72, 25-Oct-2016
1093,Revenue,CAHD,Bed Purchasing - North,Permanent Residential,Fshc  1St Floor,4398.10, 25-Oct-2016
1094,Revenue,CAHD,Bed Purchasing - North,Permanent Residential,Fshc  1St Floor,1207.32, 25-Oct-2016
1095,Revenue,CAHD,Bed Purchasing - North,Permanent Nursing,Fshc  1St Floor,1265.84, 25-Oct-2016
1096,Revenue,CAHD,South Glos Users in South Glos Homes,Permanent Nursing,Fshc  1St Floor,625.00, 25-Oct-2016
1097,Revenue,CAHD,South Glos Users in South Glos Homes,Permanent Nursing,Fshc  1St Floor,625.00, 25-Oct-2016
1098,Revenue,CAHD,South Glos Users in South Glos Homes,Permanent Nursing,Fshc  1St Floor,625.00, 25-Oct-2016
1099,Revenue,CAHD,Bed Purchasing - South,Permanent Residential,Fshc  1St Floor,1182.00, 25-Oct-2016
1100,Revenue,CAHD,Bed Purchasing - North,Permanent Nursing,Fshc  1St Floor,1507.92, 25-Oct-2016
1101,Revenue,CAHD,South Glos Users in South Glos Homes,Permanent Nursing,Fshc  1St Floor,625.00, 25-Oct-2016
1102,Revenue,CAHD,Bed Purchasing - South,Respite Planned - Residential,Fshc  1St Floor,835.71, 25-Oct-2016
1103,Revenue,CAHD,Bed Purchasing - Southmead Hospital,Permanent Nursing,Fshc  1St Floor,1515.92, 25-Oct-2016
1104,Revenue,CAHD,South Glos Users in South Glos Homes,Permanent Nursing,Fshc  1St Floor,625.00, 25-Oct-2016
1105,Revenue,CAHD,Bed Purchasing - South,Permanent Nursing,Fshc  1St Floor,1249.88, 25-Oct-2016
1106,Revenue,CAHD,South Glos Users in South Glos Homes,Permanent Nursing,Fshc  1St Floor,625.00, 25-Oct-2016
1107,Revenue,CAHD,South Glos Users in South Glos Homes,Permanent Nursing,Fshc  1St Floor,625.00, 25-Oct-2016
1108,Revenue,CAHD,Bed Purchasing - South,Respite Planned - Residential,Fshc  1St Floor,514.29, 25-Oct-2016
1109,Revenue,CAHD,Bed Purchasing - South,Permanent Residential,Fshc  1St Floor,1453.20, 25-Oct-2016
1110,Revenue,CAHD,Bed Purchasing - Southmead Hospital,Permanent Nursing,Fshc  1St Floor,1379.32, 25-Oct-2016
1111,Revenue,CAHD,South Glos Users in South Glos Homes,Permanent Nursing,Fshc  1St Floor,625.00, 25-Oct-2016
1112,Revenue,CAHD,Bed Purchasing - Southmead Hospital,Permanent Nursing,Fshc  1St Floor,1707.12, 25-Oct-2016
1113,Revenue,CAHD,South Glos Users in South Glos Homes,Permanent Nursing,Fshc  1St Floor,625.00, 25-Oct-2016
1114,Revenue,CAHD,Bed Purchasing - South,Respite Planned - Residential,Fshc  1St Floor,4714.29, 25-Oct-2016
1115,Revenue,CAHD,Bed Purchasing - South,Respite Planned - Residential,Fshc  1St Floor,2400.00, 25-Oct-2016
1116,Revenue,CAHD,Bed Purchasing - South,Permanent Nursing,Fshc  1St Floor,1362.16, 25-Oct-2016
1117,Revenue,CAHD,South Glos Users in South Glos Homes,Permanent Nursing,Fshc  1St Floor,625.00, 25-Oct-2016
1118,Revenue,CAHD,South Glos Users in South Glos Homes,Permanent Nursing,Fshc  1St Floor,625.00, 25-Oct-2016
1119,Revenue,CAHD,South Glos Users in South Glos Homes,Permanent Nursing,Fshc  1St Floor,625.00, 25-Oct-2016
1120,Revenue,CAHD,Bed Purchasing - North,Respite Planned - Residential,Fshc  1St Floor,2428.57, 25-Oct-2016
1121,Revenue,CAHD,Bed Purchasing - North,Respite Planned - Residential,Fshc  1St Floor,571.43, 25-Oct-2016
1122,Revenue,CAHD,Bed Purchasing - Southmead Hospital,Respite Emergency - Residential,Fshc  1St Floor,642.86, 25-Oct-2016
1123,Revenue,CAHD,South Glos Users in South Glos Homes,Permanent Nursing,Fshc  1St Floor,625.00, 25-Oct-2016
1124,Revenue,CAHD,Bed Purchasing - South,Permanent Residential,Fshc  1St Floor,1378.72, 25-Oct-2016
1125,Revenue,CAHD,Bed Purchasing - Southmead Hospital,Permanent Nursing,Fshc  1St Floor,1515.92, 25-Oct-2016
1126,Revenue,CAHD,South Glos Users in South Glos Homes,Permanent Nursing,Fshc  1St Floor,625.00, 25-Oct-2016
1127,Revenue,CAHD,Bed Purchasing - South,Permanent Nursing,Fshc  1St Floor,1864.18, 25-Oct-2016
1128,Revenue,CAHD,Bed Purchasing - South,Permanent Nursing,Fshc  1St Floor,1631.16, 25-Oct-2016
1129,Revenue,CAHD,Bed Purchasing - South,Permanent Nursing,Fshc  1St Floor,620.40, 25-Oct-2016
1130,Revenue,CAHD,Bed Purchasing - Southmead Hospital,Permanent Nursing,Fshc  1St Floor,1515.92, 25-Oct-2016
1131,Revenue,CAHD,South Glos Users in South Glos Homes,Permanent Nursing,Fshc  1St Floor,625.00, 25-Oct-2016
1132,Revenue,CAHD,Bed Purchasing - Southmead Hospital,Permanent Nursing,Fshc  1St Floor,1451.36, 25-Oct-2016
1133,Revenue,CAHD,South Glos Users in South Glos Homes,Permanent Nursing,Fshc  1St Floor,625.00, 25-Oct-2016
1134,Revenue,CAHD,Bed Purchasing - Southmead Hospital,Permanent Residential,Fshc  1St Floor,1517.20, 25-Oct-2016
1135,Revenue,CAHD,South Glos Users in South Glos Homes,Permanent Nursing,Fshc  1St Floor,625.00, 25-Oct-2016
1136,Revenue,CAHD,Bed Purchasing - Southmead Hospital,Permanent Residential,Fshc  1St Floor,1243.64, 25-Oct-2016
1137,Revenue,CAHD,Bed Purchasing - South,Permanent Nursing,Fshc  1St Floor,1545.92, 25-Oct-2016
1138,Revenue,CAHD,South Glos Users in South Glos Homes,Permanent Nursing,Fshc  1St Floor,625.00, 25-Oct-2016
1139,Revenue,CAHD,Bed Purchasing - South,Permanent Nursing,Fshc  1St Floor,2002.28, 25-Oct-2016
1140,Revenue,CAHD,South Glos Users in South Glos Homes,Permanent Nursing,Fshc  1St Floor,625.00, 25-Oct-2016
1141,Revenue,CAHD,Bed Purchasing - South,Permanent Nursing,Fshc  1St Floor,1268.32, 25-Oct-2016
1142,Revenue,CAHD,South Glos Users in South Glos Homes,Permanent Nursing,Fshc  1St Floor,625.00, 25-Oct-2016
1143,Revenue,CAHD,Bed Purchasing - South,Permanent Residential,Fshc  1St Floor,1518.52, 25-Oct-2016
1144,Revenue,CAHD,Bed Purchasing - South,Permanent Nursing,Fshc  1St Floor,1271.04, 25-Oct-2016
1145,Revenue,CAHD,Bed Purchasing - Southmead Hospital,Permanent Nursing,Fshc  1St Floor,2309.36, 25-Oct-2016
1146,Revenue,CAHD,Bed Purchasing - South,Permanent Nursing,Fshc  1St Floor,1435.08, 25-Oct-2016
1147,Revenue,CAHD,Bed purchasing - Elderly S117 - South,Permanent Nursing,Fshc  1St Floor,1929.88, 25-Oct-2016
1148,Revenue,CAHD,Bed Purchasing - South,Permanent Nursing,Fshc  1St Floor,1148.60, 25-Oct-2016
1149,Revenue,CAHD,Bed Purchasing - Southmead Hospital,Permanent Nursing,Fshc  1St Floor,1255.20, 25-Oct-2016
1150,Revenue,CAHD,Bed Purchasing - Southmead Hospital,Permanent Nursing,Fshc  1St Floor,1319.20, 25-Oct-2016
1151,Revenue,CAHD,Bed Purchasing - Southmead Hospital,Permanent Nursing,Fshc  1St Floor,1407.08, 25-Oct-2016
1152,Revenue,CAHD,Bed Purchasing - Southmead Hospital,Permanent Nursing,Fshc  1St Floor,4037.13, 25-Oct-2016
1153,Revenue,CAHD,Bed Purchasing - South,Permanent Nursing,Fshc  1St Floor,1271.00, 25-Oct-2016
1154,Revenue,CAHD,Bed Purchasing - Southmead Hospital,Permanent Residential,Fshc  1St Floor,602.08, 25-Oct-2016
1155,Revenue,CAHD,Bed Purchasing - North,Permanent Nursing,Fshc  1St Floor,1099.68, 25-Oct-2016
1156,Revenue,CAHD,Bed Purchasing - North,Permanent Nursing,Fshc  1St Floor,1404.56, 25-Oct-2016
1157,Revenue,CAHD,South Glos Users in South Glos Homes,Permanent Nursing,Fshc  1St Floor,625.00, 25-Oct-2016
1158,Revenue,CAHD,Bed Purchasing - North,Permanent Nursing,Fshc  1St Floor,1844.22, 25-Oct-2016
1159,Revenue,CAHD,Bed Purchasing - North,Permanent Nursing,Fshc  1St Floor,1518.76, 25-Oct-2016
1160,Revenue,CAHD,Bed Purchasing - North,Permanent Nursing,Fshc  1St Floor,1666.60, 25-Oct-2016
1161,Revenue,CAHD,South Glos Users in South Glos Homes,Permanent Nursing,Fshc  1St Floor,625.00, 25-Oct-2016
1162,Revenue,CAHD,Bed Purchasing - North,Permanent Nursing,Fshc  1St Floor,1408.72, 25-Oct-2016
1163,Revenue,CAHD,Bed Purchasing - Southmead Hospital,Permanent Nursing,Fshc  1St Floor,1086.80, 25-Oct-2016
1164,Revenue,CAHD,Bed Purchasing - Southmead Hospital,Permanent Nursing,Fshc  1St Floor,996.93, 25-Oct-2016
1165,Revenue,CAHD,Bed Purchasing - Southmead Hospital,Permanent Nursing,Fshc  1St Floor,558.48, 25-Oct-2016
1166,Revenue,CAHD,Bed Purchasing - North,Permanent Nursing,Fshc  1St Floor,858.32, 25-Oct-2016
1167,Revenue,CAHD,Bed Purchasing - South,Permanent Residential,Fshc  1St Floor,1677.20, 25-Oct-2016
1168,Revenue,CAHD,Bed Purchasing - North,Permanent Residential,Fshc  1St Floor,1092.64, 25-Oct-2016
1169,Revenue,CAHD,Bed Purchasing - South,Permanent Residential,Fshc  1St Floor,1420.76, 25-Oct-2016
1170,Revenue,CAHD,Bed Purchasing - Southmead Hospital,Permanent Residential,Fshc  1St Floor,817.44, 25-Oct-2016
1171,Revenue,CAHD,Bed Purchasing - South,Permanent Residential,Fshc  1St Floor,1180.56, 25-Oct-2016
1172,Revenue,CAHD,Bed Purchasing - South,Permanent Residential,Gladstone House,5354.36, 25-Oct-2016
1173,Revenue,CAHD,Bed Purchasing - South,Permanent Residential,Glasallt Fawr,4734.32, 25-Oct-2016
1174,Revenue,CAHD,South Glos Users in South Glos Homes,Permanent Nursing,Glebe House Nursing Home,625.00, 25-Oct-2016
1175,Revenue,CAHD,South Glos Users in South Glos Homes,Permanent Nursing,Glebe House Nursing Home,625.00, 25-Oct-2016
1176,Revenue,CAHD,South Glos Users in South Glos Homes,Permanent Nursing,Glebe House Nursing Home,625.00, 25-Oct-2016
1177,Revenue,CAHD,South Glos Users in South Glos Homes,Permanent Nursing,Glebe House Nursing Home,1473.21, 25-Oct-2016
1178,Revenue,CAHD,South Glos Users in South Glos Homes,Permanent Nursing,Glebe House Nursing Home,625.00, 25-Oct-2016
1179,Revenue,CAHD,South Glos Users in South Glos Homes,Permanent Nursing,Glebe House Nursing Home,625.00, 25-Oct-2016
1180,Revenue,CAHD,Bed Purchasing - North,Permanent Nursing,Glebe House Nursing Home,2169.04, 25-Oct-2016
1181,Revenue,CAHD,South Glos Users in South Glos Homes,Permanent Nursing,Glebe House Nursing Home,625.00, 25-Oct-2016
1182,Revenue,CAHD,South Glos Users in South Glos Homes,Permanent Nursing,Glebe House Nursing Home,625.00, 25-Oct-2016
1183,Revenue,CAHD,South Glos Users in South Glos Homes,Permanent Nursing,Glebe House Nursing Home,625.00, 25-Oct-2016
1184,Revenue,CAHD,Bed Purchasing - North,Permanent Residential,Glebe House Nursing Home,2433.68, 25-Oct-2016
1185,Revenue,CAHD,South Glos Users in South Glos Homes,Permanent Nursing,Glebe House Nursing Home,625.00, 25-Oct-2016
1186,Revenue,CAHD,South Glos Users in South Glos Homes,Permanent Nursing,Glebe House Nursing Home,625.00, 25-Oct-2016
1187,Revenue,CAHD,Bed Purchasing - North,Permanent Nursing,Glebe House Nursing Home,2307.00, 25-Oct-2016
1188,Revenue,CAHD,South Glos Users in South Glos Homes,Permanent Nursing,Glebe House Nursing Home,625.00, 25-Oct-2016
1189,Revenue,CAHD,South Glos Users in South Glos Homes,Permanent Nursing,Glebe House Nursing Home,625.00, 25-Oct-2016
1190,Revenue,CAHD,South Glos Users in South Glos Homes,Permanent Nursing,Glebe House Nursing Home,625.00, 25-Oct-2016
1191,Revenue,CAHD,South Glos Users in South Glos Homes,Permanent Nursing,Glebe House Nursing Home,625.00, 25-Oct-2016
1192,Revenue,CAHD,South Glos Users in South Glos Homes,Permanent Nursing,Glebe House Nursing Home,625.00, 25-Oct-2016
1193,Revenue,CAHD,South Glos Users in South Glos Homes,Permanent Nursing,Glebe House Nursing Home,625.00, 25-Oct-2016
1194,Revenue,CAHD,South Glos Users in South Glos Homes,Permanent Nursing,Glebe House Nursing Home,625.00, 25-Oct-2016
1195,Revenue,CAHD,Bed Purchasing - South,Permanent Residential,Glebe House Nursing Home,1238.36, 25-Oct-2016
1196,Revenue,CAHD,South Glos Users in South Glos Homes,Permanent Nursing,Glebe House Nursing Home,625.00, 25-Oct-2016
1197,Revenue,CAHD,Bed Purchasing - North,Permanent Nursing,Glebe House Nursing Home,2209.20, 25-Oct-2016
1198,Revenue,CAHD,South Glos Users in South Glos Homes,Permanent Nursing,Glebe House Nursing Home,625.00, 25-Oct-2016
1199,Revenue,CAHD,South Glos Users in South Glos Homes,Permanent Nursing,Glebe House Nursing Home,625.00, 25-Oct-2016
1200,Revenue,CAHD,South Glos Users in South Glos Homes,Permanent Nursing,Glebe House Nursing Home,625.00, 25-Oct-2016
1201,Revenue,CAHD,South Glos Users in South Glos Homes,Permanent Nursing,Glebe House Nursing Home,781.25, 25-Oct-2016
1202,Revenue,CAHD,South Glos Users in South Glos Homes,Permanent Nursing,Glebe House Nursing Home,625.00, 25-Oct-2016
1203,Revenue,CAHD,South Glos Users in South Glos Homes,Permanent Nursing,Glebe House Nursing Home,625.00, 25-Oct-2016
1204,Revenue,CAHD,Bed Purchasing - South,Permanent Residential,Goldcare House,2293.04, 25-Oct-2016
1205,Revenue,CAHD,Bed Purchasing - South,Permanent Residential,Gordena Care Home,2189.64, 25-Oct-2016
1206,Revenue,CAHD,Bed Purchasing - South,Permanent Residential,Gordena Care Home,3052.76, 25-Oct-2016
1207,Revenue,CAHD,Bed Purchasing - South,Permanent Residential,Gordena Care Home,1984.56, 25-Oct-2016
1208,Revenue,CAHD,Bed Purchasing - South,Respite Planned - Residential,Gordena Care Home,4168.80, 25-Oct-2016
1209,Revenue,CAHD,Bed Purchasing - South,Permanent Residential,Gordena Care Home,3768.20, 25-Oct-2016
1210,Revenue,CAHD,Bed Purchasing - South,Respite Planned - Residential,Gordena Care Home,2084.40, 25-Oct-2016
1211,Revenue,CAHD,Bed Purchasing - South,Permanent Residential,Gordena Care Home,3185.84, 25-Oct-2016
1212,Revenue,CAHD,Bed Purchasing - South,Permanent Residential,Gordena Care Limited,4364.48, 25-Oct-2016
1213,Revenue,CAHD,Bed Purchasing - South,Permanent Residential,Gordena Care Limited,4124.24, 25-Oct-2016
1214,Revenue,CAHD,Bed purchasing - S28A Under 65 - South,Permanent Residential,Gordena Care Limited,4255.88, 25-Oct-2016
1215,Revenue,CAHD,Bed Purchasing - North,Permanent Residential,Gordena Care Limited,4227.32, 25-Oct-2016
1216,Revenue,CAHD,Bed Purchasing - South,Permanent Nursing,Gracefields Nursing Home,1732.24, 25-Oct-2016
1217,Revenue,CAHD,South Glos Users in South Glos Homes,Permanent Nursing,Gracefields Nursing Home,625.00, 25-Oct-2016
1218,Revenue,CAHD,South Glos Users in South Glos Homes,Permanent Nursing,Gracefields Nursing Home,625.00, 25-Oct-2016
1219,Revenue,CAHD,Bed Purchasing - Southmead Hospital,Permanent Nursing,Gracefields Nursing Home,1674.96, 25-Oct-2016
1220,Revenue,CAHD,South Glos Users in South Glos Homes,Permanent Nursing,Gracefields Nursing Home,625.00, 25-Oct-2016
1221,Revenue,CAHD,South Glos Users in South Glos Homes,Permanent Nursing,Gracefields Nursing Home,625.00, 25-Oct-2016
1222,Revenue,CAHD,Bed purchasing - Elderly S117 - South,Permanent Nursing,Gracefields Nursing Home,2414.28, 25-Oct-2016
1223,Revenue,CAHD,South Glos Users in South Glos Homes,Permanent Nursing,Gracefields Nursing Home,625.00, 25-Oct-2016
1224,Revenue,CAHD,South Glos Users in South Glos Homes,Permanent Nursing,Gracefields Nursing Home,625.00, 25-Oct-2016
1225,Revenue,CAHD,South Glos Users in South Glos Homes,Permanent Nursing,Gracefields Nursing Home,625.00, 25-Oct-2016
1226,Revenue,CAHD,South Glos Users in South Glos Homes,Permanent Nursing,Gracefields Nursing Home,625.00, 25-Oct-2016
1227,Revenue,CAHD,Bed Purchasing - Southmead Hospital,Permanent Nursing,Gracefields Nursing Home,2589.80, 25-Oct-2016
1228,Revenue,CAHD,Bed Purchasing - Southmead Hospital,Permanent Nursing,Gracefields Nursing Home,1664.87, 25-Oct-2016
1229,Revenue,CAHD,South Glos Users in South Glos Homes,Permanent Nursing,Gracefields Nursing Home,625.00, 25-Oct-2016
1230,Revenue,CAHD,South Glos Users in South Glos Homes,Permanent Nursing,Gracefields Nursing Home,625.00, 25-Oct-2016
1231,Revenue,CAHD,South Glos Users in South Glos Homes,Permanent Nursing,Gracefields Nursing Home,625.00, 25-Oct-2016
1232,Revenue,CAHD,South Glos Users in South Glos Homes,Permanent Nursing,Gracefields Nursing Home,625.00, 25-Oct-2016
1233,Revenue,CAHD,South Glos Users in South Glos Homes,Permanent Nursing,Gracefields Nursing Home,625.00, 25-Oct-2016
1234,Revenue,CAHD,South Glos Users in South Glos Homes,Permanent Nursing,Gracefields Nursing Home,625.00, 25-Oct-2016
1235,Revenue,CAHD,South Glos Users in South Glos Homes,Permanent Nursing,Gracefields Nursing Home,625.00, 25-Oct-2016
1236,Revenue,CAHD,South Glos Users in South Glos Homes,Permanent Nursing,Gracefields Nursing Home,625.00, 25-Oct-2016
1237,Revenue,CAHD,South Glos Users in South Glos Homes,Permanent Nursing,Gracefields Nursing Home,625.00, 25-Oct-2016
1238,Revenue,CAHD,South Glos Users in South Glos Homes,Permanent Nursing,Gracefields Nursing Home,625.00, 25-Oct-2016
1239,Revenue,CAHD,Bed Purchasing - Southmead Hospital,Permanent Nursing,Gracefields Nursing Home,2482.16, 25-Oct-2016
1240,Revenue,CAHD,Bed Purchasing - Southmead Hospital,Permanent Nursing,Gracefields Nursing Home,975.14, 25-Oct-2016
1241,Revenue,CAHD,South Glos Users in South Glos Homes,Permanent Nursing,Gracefields Nursing Home,625.00, 25-Oct-2016
1242,Revenue,CAHD,South Glos Users in South Glos Homes,Permanent Nursing,Gracefields Nursing Home,625.00, 25-Oct-2016
1243,Revenue,CAHD,South Glos Users in South Glos Homes,Permanent Nursing,Gracefields Nursing Home,625.00, 25-Oct-2016
1244,Revenue,CAHD,South Glos Users in South Glos Homes,Permanent Nursing,Gracefields Nursing Home,625.00, 25-Oct-2016
1245,Revenue,CAHD,South Glos Users in South Glos Homes,Permanent Nursing,Gracefields Nursing Home,625.00, 25-Oct-2016
1246,Revenue,CAHD,South Glos Users in South Glos Homes,Permanent Nursing,Gracefields Nursing Home,625.00, 25-Oct-2016
1247,Revenue,CAHD,South Glos Users in South Glos Homes,Permanent Nursing,Gracefields Nursing Home,625.00, 25-Oct-2016
1248,Revenue,CAHD,South Glos Users in South Glos Homes,Permanent Nursing,Gracefields Nursing Home,3125.00, 25-Oct-2016
1249,Revenue,CAHD,South Glos Users in South Glos Homes,Permanent Nursing,Gracefields Nursing Home,625.00, 25-Oct-2016
1250,Revenue,CAHD,Bed Purchasing - South,Permanent Nursing,Gracefields Nursing Home,1620.96, 25-Oct-2016
1251,Revenue,CAHD,South Glos Users in South Glos Homes,Permanent Nursing,Gracefields Nursing Home,625.00, 25-Oct-2016
1252,Revenue,CAHD,South Glos Users in South Glos Homes,Permanent Nursing,Gracefields Nursing Home,625.00, 25-Oct-2016
1253,Revenue,CAHD,Bed Purchasing - Southmead Hospital,Permanent Nursing,Gracefields Nursing Home,5875.30, 25-Oct-2016
1254,Revenue,CAHD,South Glos Users in South Glos Homes,Permanent Nursing,Gracefields Nursing Home,625.00, 25-Oct-2016
1255,Revenue,CAHD,South Glos Users in South Glos Homes,Permanent Nursing,Gracefields Nursing Home,625.00, 25-Oct-2016
1256,Revenue,CAHD,Bed Purchasing - Southmead Hospital,Permanent Nursing,Gracefields Nursing Home,1558.00, 25-Oct-2016
1257,Revenue,CAHD,South Glos Users in South Glos Homes,Permanent Nursing,Gracefields Nursing Home,625.00, 25-Oct-2016
1258,Revenue,CAHD,Bed Purchasing - Southmead Hospital,Permanent Residential,Granada House Residential Home,1085.28, 25-Oct-2016
1259,Revenue,CAHD,Bed Purchasing - North,Permanent Residential,Greensleeves,1358.08, 25-Oct-2016
1260,Revenue,CAHD,Bed Purchasing - South,Permanent Residential,Grove Care,1905.76, 25-Oct-2016
1261,Revenue,CAHD,Bed Purchasing - South,Permanent Residential,Gwendoline House,785.04, 25-Oct-2016
1262,Revenue,CAHD,Bed Purchasing - Southmead Hospital,Permanent Residential,Gwendoline House,1298.24, 25-Oct-2016
1263,Revenue,CAHD,Bed Purchasing - South,Permanent Residential,Gwendoline House,1587.28, 25-Oct-2016
1264,Revenue,CAHD,Bed Purchasing - South,Permanent Residential,Gwendoline House,1001.92, 25-Oct-2016
1265,Revenue,CAHD,Bed Purchasing - Southmead Hospital,Permanent Residential,Gwendoline House,1357.08, 25-Oct-2016
1266,Revenue,CAHD,Supporting People Programme,Grants to Voluntary Bodies,Habinteg Housing Association,666.00, 06-Oct-2016
1267,Revenue,CAHD,Social Lettings Agency,Fees - General,Individual,16.46, 27-Oct-2016
1268,Revenue,CAHD,Social Lettings Agency,Other Supplies & Services,Individual,559.60, 27-Oct-2016
1269,Revenue,CAHD,Home Care - Elderly - North,Other Supplies & Services,Hanover Housing Association,506.25, 06-Oct-2016
1270,Revenue,CAHD,Bed Purchasing - South,Permanent Residential,Harefield Hall,1235.16, 25-Oct-2016
1271,Revenue,CAHD,Bed Purchasing - South,Permanent Residential,Harefield Hall,1162.36, 25-Oct-2016
1272,Revenue,CAHD,Bed Purchasing - South,Permanent Residential,Harefield Hall,966.56, 25-Oct-2016
1273,Revenue,CAHD,Bed Purchasing - South,Permanent Residential,Harefield Hall,1057.68, 25-Oct-2016
1274,Revenue,CAHD,Bed Purchasing - South,Permanent Residential,Harefield Hall,1372.92, 25-Oct-2016
1275,Revenue,CAHD,Bed Purchasing - South,Permanent Residential,Harefield Hall,1280.92, 25-Oct-2016
1276,Revenue,CAHD,Bed Purchasing - Southmead Hospital,Permanent Nursing,Hazelwood Gardens Nursing Home,1662.24, 25-Oct-2016
1277,Revenue,CAHD,Bed Purchasing - Southmead Hospital,Permanent Nursing,Hc-One Ltd,1660.08, 25-Oct-2016
1278,Revenue,CAHD,Bed Purchasing - Southmead Hospital,Permanent Nursing,Hc-One Ltd,1504.56, 25-Oct-2016
1279,Revenue,CAHD,Bed Purchasing - North,Permanent Nursing,Hc-One Ltd,1564.36, 25-Oct-2016
1280,Revenue,CAHD,Bed Purchasing - Southmead Hospital,Respite Planned - Nursing,Hc-One Ltd,2103.28, 25-Oct-2016
1281,Revenue,CAHD,Bed Purchasing - Southmead Hospital,Respite Planned - Nursing,Hc-One Ltd,1051.64, 25-Oct-2016
1282,Revenue,CAHD,Bed Purchasing - South,Permanent Residential,Hc-One Ltd,1479.36, 25-Oct-2016
1283,Revenue,CAHD,Bed Purchasing - North,Permanent Residential,Hc-One Ltd,2112.00, 25-Oct-2016
1284,Revenue,CAHD,Bed Purchasing - Southmead Hospital,Permanent Nursing,Hc-One Ltd,5434.93, 25-Oct-2016
1285,Revenue,CAHD,Bed Purchasing - Southmead Hospital,Permanent Nursing,Hc-One Ltd,1582.96, 25-Oct-2016
1286,Revenue,CAHD,Bed Purchasing - Southmead Hospital,Permanent Nursing,Hc-One Ltd,1533.80, 25-Oct-2016
1287,Revenue,CAHD,Bed Purchasing - Southmead Hospital,Permanent Nursing,Hc-One Ltd,2005.12, 25-Oct-2016
1288,Revenue,CAHD,Bed Purchasing - Southmead Hospital,Permanent Residential,Head Office,1707.12, 25-Oct-2016
1289,Revenue,CAHD,Home Care - Elderly - South,Day Care / Social Activities,Headway Bristol,735.54, 06-Oct-2016
1290,Revenue,CAHD,Home Care - Elderly - North,Day Care / Social Activities,Headway Bristol,756.86, 06-Oct-2016
1291,Revenue,CAHD,Home Care - Elderly - North,Other Small Contracts,Headway Bristol,191.88, 06-Oct-2016
1292,Revenue,CAHD,Home Care - Elderly - South,Day Care / Social Activities,Headway Bristol,778.18, 12-Oct-2016
1293,Revenue,CAHD,Home Care - Elderly - South,Other Small Contracts,Headway Bristol,426.40, 12-Oct-2016
1294,Revenue,CAHD,Home Care - Elderly - North,Day Care / Social Activities,Headway Bristol,682.24, 12-Oct-2016
1295,Revenue,CAHD,Home Care - Elderly - North,Other Small Contracts,Headway Bristol,191.88, 12-Oct-2016
1296,Revenue,CAHD,Home Care - Elderly - South,Day Care / Social Activities,Headway Bristol,970.06, 19-Oct-2016
1297,Revenue,CAHD,Home Care - Elderly - South,Other Small Contracts,Headway Bristol,341.12, 19-Oct-2016
1298,Revenue,CAHD,Home Care - Elderly - North,Day Care / Social Activities,Headway Bristol,831.48, 19-Oct-2016
1299,Revenue,CAHD,Home Care - Elderly - North,Other Small Contracts,Headway Bristol,191.88, 19-Oct-2016
1300,Revenue,CAHD,Home Care - Elderly - South,Day Care / Social Activities,Headway Bristol,884.78, 27-Oct-2016
1301,Revenue,CAHD,Home Care - Elderly - South,Other Small Contracts,Headway Bristol,426.40, 27-Oct-2016
1302,Revenue,CAHD,Home Care - Elderly - North,Day Care / Social Activities,Headway Bristol,703.56, 27-Oct-2016
1303,Revenue,CAHD,Home Care - Elderly - South,Other Small Contracts,Helping Hands Homecare,1129.62, 07-Oct-2016
1304,Revenue,CAHD,Home Care - Elderly - North,Day Care / Social Activities,Helping Hands Homecare,205.02, 07-Oct-2016
1305,Revenue,CAHD,Home Care - Elderly - North,Other Small Contracts,Helping Hands Homecare,2573.44, 07-Oct-2016
1306,Revenue,CAHD,Home Care - Elderly - South,Other Small Contracts,Helping Hands Homecare,1025.10, 07-Oct-2016
1307,Revenue,CAHD,Home Care - Elderly - North,Day Care / Social Activities,Helping Hands Homecare,209.04, 07-Oct-2016
1308,Revenue,CAHD,Home Care - Elderly - North,Other Small Contracts,Helping Hands Homecare,2477.38, 07-Oct-2016
1309,Revenue,CAHD,Home Care - Elderly - South,Other Small Contracts,Helping Hands Homecare,1037.16, 21-Oct-2016
1310,Revenue,CAHD,Home Care - Elderly - North,Day Care / Social Activities,Helping Hands Homecare,209.04, 21-Oct-2016
1311,Revenue,CAHD,Home Care - Elderly - North,Other Small Contracts,Helping Hands Homecare,2586.54, 21-Oct-2016
1312,Revenue,CAHD,Home Care - Elderly - South,Other Small Contracts,Helping Hands Homecare,1181.88, 21-Oct-2016
1313,Revenue,CAHD,Home Care - Elderly - North,Day Care / Social Activities,Helping Hands Homecare,201.00, 21-Oct-2016
1314,Revenue,CAHD,Home Care - Elderly - North,Other Small Contracts,Helping Hands Homecare,2372.86, 21-Oct-2016
1315,Revenue,CAHD,Home Care - Elderly - South,Other Small Contracts,Helping Hands Homecare,1226.10, 28-Oct-2016
1316,Revenue,CAHD,Home Care - Elderly - North,Day Care / Social Activities,Helping Hands Homecare,48.24, 28-Oct-2016
1317,Revenue,CAHD,Home Care - Elderly - North,Other Small Contracts,Helping Hands Homecare,2765.98, 28-Oct-2016
1318,Revenue,CAHD,S117 Placements PCT,Permanent Residential,Hesley Hall,18656.52, 25-Oct-2016
1319,Revenue,CAHD,Bed Purchasing - Southmead Hospital,Permanent Residential,Highfield House,1255.20, 25-Oct-2016
1320,Revenue,CAHD,Bed Purchasing - Southmead Hospital,Permanent Residential,Highgate Studios,1193.72, 25-Oct-2016
1321,Revenue,CAHD,Bed Purchasing - North,Permanent Residential,Holmleigh Care Homes Ltd,4119.76, 25-Oct-2016
1322,Revenue,CAHD,Bed Purchasing - South,Permanent Residential,Holmleigh Care Homes Ltd,4318.00, 25-Oct-2016
1323,Revenue,CAHD,Jointly Funded H&SC Packages,Permanent Residential,Holmleigh Care Homes Ltd,836.48, 25-Oct-2016
1324,Revenue,CAHD,Bed Purchasing - North,Permanent Residential,Home Farm Trust Ltd  5-6 Brook Office Pa,2750.88, 25-Oct-2016
1325,Revenue,CAHD,Bed Purchasing - South,Permanent Residential,Home Farm Trust Ltd  5-6 Brook Office Pa,5242.64, 25-Oct-2016
1326,Revenue,CAHD,Bed Purchasing - North,Permanent Residential,Home Farm Trust Ltd  5-6 Brook Office Pa,3465.28, 25-Oct-2016
1327,Revenue,CAHD,Bed Purchasing - South,Permanent Residential,Home Farm Trust Ltd  5-6 Brook Office Pa,5675.60, 25-Oct-2016
1328,Revenue,CAHD,18-25 Year Olds,Permanent Residential,Home From Home Care Ltd,9215.16, 25-Oct-2016
1329,Revenue,CAHD,Home Care - Elderly - South,Other Small Contracts,Homecare 4U,333.74, 03-Oct-2016
1330,Revenue,CAHD,Home Care - Elderly - North,Other Small Contracts,Homecare 4U,927.96, 03-Oct-2016
1331,Revenue,CAHD,Home Care - Elderly - South,Other Small Contracts,Homecare 4U,329.67, 05-Oct-2016
1332,Revenue,CAHD,Home Care - Elderly - North,Other Small Contracts,Homecare 4U,895.40, 05-Oct-2016
1333,Revenue,CAHD,Home Care - Elderly - South,Other Small Contracts,Homecare 4U,325.60, 05-Oct-2016
1334,Revenue,CAHD,Home Care - Elderly - North,Other Small Contracts,Homecare 4U,936.10, 05-Oct-2016
1335,Revenue,CAHD,Home Care - Elderly - South,Other Small Contracts,Homecare 4U,333.74, 17-Oct-2016
1336,Revenue,CAHD,Home Care - Elderly - North,Other Small Contracts,Homecare 4U,907.61, 17-Oct-2016
1337,Revenue,CAHD,Home Care - Elderly - South,Other Small Contracts,Homecare 4U,337.81, 19-Oct-2016
1338,Revenue,CAHD,Home Care - Elderly - North,Other Small Contracts,Homecare 4U,777.37, 19-Oct-2016
1339,Revenue,CAHD,Home Care - Elderly - South,Other Small Contracts,Homecare 4U,321.53, 31-Oct-2016
1340,Revenue,CAHD,Home Care - Elderly - North,Other Small Contracts,Homecare 4U,765.16, 31-Oct-2016
1341,Revenue,CAHD,Bed Purchasing - North,Permanent Residential,Homes Caring For Autism Ltd  Churchill H,8071.00, 25-Oct-2016
1342,Revenue,CAHD,Jointly Funded H&SC Packages,Permanent Residential,Homes Caring For Autism Ltd  Churchill H,2090.04, 25-Oct-2016
1343,Revenue,CAHD,18-25 Year Olds,Permanent Residential,Homes Caring For Autism Ltd  Churchill H,5691.32, 25-Oct-2016
1344,Revenue,CAHD,Jointly Funded H&SC Packages,Permanent Residential,Homes Caring For Autism Ltd  Churchill H,7535.48, 25-Oct-2016
1345,Revenue,CAHD,Bed Purchasing - Southmead Hospital,Permanent Nursing,Horfield Care Limited,1445.57, 10-Oct-2016
1346,Revenue,CAHD,Bed Purchasing - Southmead Hospital,Permanent Nursing,Horfield Care Limited,1816.50, 10-Oct-2016
1347,Revenue,CAHD,Bed Purchasing - Southmead Hospital,Permanent Nursing,Horfield Care Limited,1337.01, 10-Oct-2016
1348,Revenue,CAHD,Bed Purchasing - South,Permanent Nursing,Horfield Care Limited,1334.87, 10-Oct-2016
1349,Revenue,CAHD,Bed Purchasing - South,Respite Emergency - Nursing,Horfield Care Limited,1355.83, 10-Oct-2016
1350,Revenue,CAHD,Home Care - Elderly - South,Private & Voluntary Home Care,Housing & Care 21,9553.00, 27-Oct-2016
1351,Revenue,CAHD,Home Care - Elderly - North,Private & Voluntary Home Care,Housing 21,40371.16, 10-Oct-2016
1352,Revenue,CAHD,Social Lettings Agency,Fees - General,Individual,12.22, 11-Oct-2016
1353,Revenue,CAHD,Social Lettings Agency,Other Supplies & Services,Individual,690.32, 11-Oct-2016
1354,Revenue,CAHD,Training - Adult Services,Training Expenses,Jonathan Coles,600.00, 14-Oct-2016
1355,Revenue,CAHD,Bed Purchasing - South,Permanent Residential,Jonen House,3705.12, 25-Oct-2016
1356,Revenue,CAHD,Home Care - Elderly - South,Supported Living,Julia Simone- Supp. Ind.,1194.40, 25-Oct-2016
1357,Revenue,CAHD,Younger MH non-res purchasing,Supported Living,Julia Simone- Supp. Ind.,1194.40, 25-Oct-2016
1358,Revenue,CAHD,Younger MH non-res purchasing,Supported Living,Julia Simone- Supp. Ind.,1194.40, 25-Oct-2016
1359,Revenue,CAHD,Home Care - Elderly - North,Supported Living,Julia Simone- Supp. Ind.,1228.80, 25-Oct-2016
1360,Revenue,CAHD,Younger MH non-res purchasing,Supported Living,Julia Simone- Supp. Ind.,1194.24, 25-Oct-2016
1361,Revenue,CAHD,Younger MH non-res purchasing,Supported Living,Julia Simone- Supp. Ind.,1194.36, 25-Oct-2016
1362,Revenue,CAHD,Bed Purchasing - South,Permanent Residential,Julia Simone- Supp. Ind.,4096.08, 25-Oct-2016
1363,Revenue,CAHD,Bed purchasing -S28A  Under 65 - North,Permanent Residential,Julia Simone- Supp. Ind.,3615.08, 25-Oct-2016
1364,Revenue,CAHD,Community Support - South,Preventative Assistance,KCC Cleaning Services Limited,1535.00, 20-Oct-2016
1365,Revenue,CAHD,Community Support - South,Preventative Assistance,KCC Cleaning Services Limited,1022.50, 21-Oct-2016
1366,Revenue,CAHD,Home Care - Elderly - South,Other Small Contracts,Kensington Community Care,2621.69, 04-Oct-2016
1367,Revenue,CAHD,Home Care - Elderly - North,Other Small Contracts,Kensington Community Care,5529.68, 04-Oct-2016
1368,Revenue,CAHD,Home Care - Elderly - South,Other Small Contracts,Kensington Community Care,1521.48, 19-Oct-2016
1369,Revenue,CAHD,Home Care - Elderly - North,Other Small Contracts,Kensington Community Care,5488.78, 19-Oct-2016
1370,Revenue,CAHD,Home Care - Elderly - South,Other Small Contracts,Kensington Community Care,2310.85, 17-Oct-2016
1371,Revenue,CAHD,Home Care - Elderly - North,Other Small Contracts,Kensington Community Care,5517.41, 17-Oct-2016
1372,Revenue,CAHD,Home Care - Elderly - South,Other Small Contracts,Kensington Community Care,3153.39, 24-Oct-2016
1373,Revenue,CAHD,Home Care - Elderly - North,Other Small Contracts,Kensington Community Care,5558.31, 24-Oct-2016
1374,Revenue,CAHD,Bed Purchasing - Southmead Hospital,Permanent Residential,Kenver House Residential Home,1685.76, 25-Oct-2016
1375,Revenue,CAHD,Bed Purchasing - Southmead Hospital,Permanent Residential,Kenver House Residential Home,1697.28, 25-Oct-2016
1376,Revenue,CAHD,Bed Purchasing - Southmead Hospital,Permanent Residential,Kenver House Residential Home,1908.68, 25-Oct-2016
1377,Revenue,CAHD,Bed Purchasing - South,Permanent Residential,Kenver House Residential Home,1407.28, 25-Oct-2016
1378,Revenue,CAHD,Bed Purchasing - South,Permanent Residential,Kenver House Residential Home,1697.28, 25-Oct-2016
1379,Revenue,CAHD,Bed Purchasing - North,Permanent Residential,Kenver House Residential Home,1566.76, 25-Oct-2016
1380,Revenue,CAHD,Bed Purchasing - Southmead Hospital,Permanent Residential,Kenver House Residential Home,1784.68, 25-Oct-2016
1381,Revenue,CAHD,Bed Purchasing - South,Permanent Residential,Kenver House Residential Home,1908.68, 25-Oct-2016
1382,Revenue,CAHD,Bed purchasing - Elderly S117 - South,Permanent Residential,Kenver House Residential Home,1530.59, 25-Oct-2016
1383,Revenue,CAHD,Bed Purchasing - Southmead Hospital,Permanent Residential,Kenver House Residential Home,1836.24, 25-Oct-2016
1384,Revenue,CAHD,Bed Purchasing - South,Respite Emergency - Residential,Kenver House Residential Home,3039.35, 25-Oct-2016
1385,Revenue,CAHD,Bed Purchasing - South,Permanent Residential,Kenver House Residential Home,1908.68, 25-Oct-2016
1386,Revenue,CAHD,Bed Purchasing - South,Permanent Residential,Kenver House Residential Home,1611.04, 25-Oct-2016
1387,Revenue,CAHD,Bed Purchasing - South,Permanent Residential,Kenver House Residential Home,1881.04, 25-Oct-2016
1388,Revenue,CAHD,Bed Purchasing - South,Permanent Residential,Kenver House Residential Home,1526.72, 25-Oct-2016
1389,Revenue,CAHD,Bed Purchasing - Southmead Hospital,Permanent Residential,Kenver House Residential Home,1697.20, 25-Oct-2016
1390,Revenue,CAHD,Bed Purchasing - South,Permanent Residential,Kenver House Residential Home,1729.28, 25-Oct-2016
1391,Revenue,CAHD,Bed Purchasing - South,Respite Emergency - Residential,Kenver House Residential Home,2431.48, 25-Oct-2016
1392,Revenue,CAHD,Learning Difficulties Development Fund,Other Supplies & Services,Kids,8878.50, 07-Oct-2016
1393,Revenue,CAHD,Bed Purchasing - North,Permanent Residential,Kilkhampton Lodge,17099.40, 25-Oct-2016
1394,Revenue,CAHD,Bed Purchasing - North,Other Supplies & Services,Kilkhampton Lodge Limited,34531.80, 26-Oct-2016
1395,Revenue,CAHD,Bed Purchasing - North,Permanent Nursing,Kingfisher Lodge Care Centre,15375.36, 25-Oct-2016
1396,Revenue,CAHD,Bed Purchasing - South,Respite Planned - Residential,Kingfisher Lodge Care Centre,3750.00, 25-Oct-2016
1397,Revenue,CAHD,Bed Purchasing - North,Permanent Residential,Kisimul Group,11674.88, 25-Oct-2016
1398,Revenue,CAHD,Supporting People Programme,Grants to Voluntary Bodies,Knightstone Housing Association Limited,13845.33, 06-Oct-2016
1399,Revenue,CAHD,Supporting People Programme,Grants to Voluntary Bodies,Knightstone Housing Association Limited,8747.50, 06-Oct-2016
1400,Revenue,CAHD,Supporting People Programme,Grants to Voluntary Bodies,Knightstone Housing Association Limited,7789.00, 06-Oct-2016
1401,Revenue,CAHD,Home Care - Elderly - South,Other Small Contracts,Kumari Care Limited,1639.61, 03-Oct-2016
1402,Revenue,CAHD,Home Care - Elderly - North,Other Small Contracts,Kumari Care Limited,847.36, 03-Oct-2016
1403,Revenue,CAHD,Home Care - Elderly - South,Other Small Contracts,Kumari Care Limited,1516.54, 17-Oct-2016
1404,Revenue,CAHD,Home Care - Elderly - North,Other Small Contracts,Kumari Care Limited,683.39, 17-Oct-2016
1405,Revenue,CAHD,Home Care - Elderly - South,Other Small Contracts,Kumari Care Limited,1310.10, 03-Oct-2016
1406,Revenue,CAHD,Home Care - Elderly - North,Other Small Contracts,Kumari Care Limited,153.83, 03-Oct-2016
1407,Revenue,CAHD,Home Care - Elderly - South,Other Small Contracts,Kumari Care Limited,1143.36, 12-Oct-2016
1408,Revenue,CAHD,Home Care - Elderly - North,Other Small Contracts,Kumari Care Limited,847.31, 12-Oct-2016
1409,Revenue,CAHD,Home Care - Elderly - South,Other Small Contracts,Kumari Care Limited,1429.20, 19-Oct-2016
1410,Revenue,CAHD,Home Care - Elderly - North,Other Small Contracts,Kumari Care Limited,847.31, 19-Oct-2016
1411,Revenue,CAHD,Home Care - Elderly - South,Other Small Contracts,Kumari Care Limited,1516.54, 24-Oct-2016
1412,Revenue,CAHD,Home Care - Elderly - North,Other Small Contracts,Kumari Care Limited,847.31, 24-Oct-2016
1413,Revenue,CAHD,Home Care - Elderly - South,Other Small Contracts,Kumari Care Limited,1480.81, 31-Oct-2016
1414,Revenue,CAHD,Home Care - Elderly - North,Other Small Contracts,Kumari Care Limited,847.31, 31-Oct-2016
1415,Revenue,CAHD,Learning Difficulties Development Fund,Other Supplies & Services,L D Awareness,2720.00, 07-Oct-2016
1416,Revenue,CAHD,Bed Purchasing - North,Permanent Nursing,Larchfield Care Home,3029.00, 25-Oct-2016
1417,Revenue,CAHD,Bed purchasing - Elderly S117 - South,Permanent Nursing,Lavender Lodge Limited,8518.84, 25-Oct-2016
1418,Revenue,CAHD,Bed Purchasing - North,Permanent Residential,Leonard Cheshire  National Account Centr,2891.92, 25-Oct-2016
1419,Revenue,CAHD,Bed Purchasing - South,Permanent Residential,Leonard Cheshire  National Account Centr,3454.56, 25-Oct-2016
1420,Revenue,CAHD,Bed Purchasing - North,Permanent Nursing,Leonard Cheshire  National Account Centr,3642.00, 25-Oct-2016
1421,Revenue,CAHD,Bed Purchasing - North,Permanent Nursing,Leonard Cheshire  National Account Centr,2926.08, 25-Oct-2016
1422,Revenue,CAHD,South Glos Users in Gloucestershire Home,Permanent Nursing,Leonard Cheshire  National Account Centr,625.00, 25-Oct-2016
1423,Revenue,CAHD,18-25 Year Olds,Permanent Residential,Leonard Cheshire  National Account Centr,3308.92, 25-Oct-2016
1424,Revenue,CAHD,Bed Purchasing - North,Permanent Residential,Leonard Cheshire  National Account Centr,6111.20, 25-Oct-2016
1425,Revenue,CAHD,Bed Purchasing - North,Permanent Residential,Leonard Cheshire  National Account Centr,6109.60, 25-Oct-2016
1426,Revenue,CAHD,Bed Purchasing - South,Permanent Residential,Leonard Cheshire  National Account Centr,4595.20, 25-Oct-2016
1427,Revenue,CAHD,Bed Purchasing - North,Respite Planned - Nursing,Leonard Cheshire  National Account Centr,5442.44, 25-Oct-2016
1428,Revenue,CAHD,Bed Purchasing - North,Permanent Nursing,Leonard Cheshire  National Account Centr,5963.76, 25-Oct-2016
1429,Revenue,CAHD,Bed Purchasing - North,Permanent Nursing,Leonard Cheshire  National Account Centr,5035.28, 25-Oct-2016
1430,Revenue,CAHD,Bed Purchasing - North,Permanent Residential,Leonard Cheshire  National Account Centr,6070.16, 25-Oct-2016
1431,Revenue,CAHD,Bed Purchasing - North,Permanent Nursing,Leonard Cheshire  National Account Centr,3206.68, 25-Oct-2016
1432,Revenue,CAHD,Bed Purchasing - North,Permanent Nursing,Leonard Cheshire  National Account Centr,5740.64, 25-Oct-2016
1433,Revenue,CAHD,Bed Purchasing - South,Permanent Nursing,Leonard Cheshire  National Account Centr,2986.36, 25-Oct-2016
1434,Revenue,CAHD,Bed Purchasing - Southmead Hospital,Permanent Nursing,Leonard Cheshire  National Account Centr,3126.84, 25-Oct-2016
1435,Revenue,CAHD,South Glos Users in all other LA Homes,Permanent Nursing,Leonard Cheshire  National Account Centr,856.20, 25-Oct-2016
1436,Revenue,CAHD,Bed Purchasing - North,Permanent Nursing,Leonard Cheshire  National Account Centr,6758.00, 25-Oct-2016
1437,Revenue,CAHD,Bed Purchasing - North,Permanent Nursing,Leonard Cheshire  National Account Centr,4155.08, 25-Oct-2016
1438,Revenue,CAHD,Tenancy Start Up Scheme,Other Supplies & Services,Lifestyle Property Services (Deposit),895.00, 18-Oct-2016
1439,Revenue,CAHD,Tenancy Start Up Scheme,Other Supplies & Services,Lifestyle Property Services (Rent),795.00, 18-Oct-2016
1440,Revenue,CAHD,Home Care - Elderly - North,Other Small Contracts,Lifeways Community Care (Gloucester) Limited,11758.56, 04-Oct-2016
1441,Revenue,CAHD,Home Care - Elderly - North,Other Small Contracts,Lifeways Community Care (Gloucester) Limited,11158.56, 18-Oct-2016
1442,Revenue,CAHD,Bed Purchasing - Southmead Hospital,Permanent Residential,Little Croft,1127.16, 25-Oct-2016
1443,Revenue,CAHD,Bed Purchasing - Southmead Hospital,Permanent Residential,Little Croft,1308.52, 25-Oct-2016
1444,Revenue,CAHD,Bed Purchasing - Southmead Hospital,Respite Planned - Residential,Little Croft,2314.29, 25-Oct-2016
1445,Revenue,CAHD,Bed Purchasing - North,Permanent Residential,Little Croft,1256.20, 25-Oct-2016
1446,Revenue,CAHD,Bed Purchasing - South,Permanent Residential,Little Croft,1504.40, 25-Oct-2016
1447,Revenue,CAHD,Bed Purchasing - Southmead Hospital,Permanent Residential,Little Croft,1346.88, 25-Oct-2016
1448,Revenue,CAHD,Bed Purchasing - Southmead Hospital,Respite Planned - Residential,Little Croft,600.00, 25-Oct-2016
1449,Revenue,CAHD,Bed Purchasing - Southmead Hospital,Permanent Residential,Little Croft,1316.52, 25-Oct-2016
1450,Revenue,CAHD,Bed Purchasing - South,Permanent Residential,Little Croft,1817.12, 25-Oct-2016
1451,Revenue,CAHD,Bed Purchasing - North,Permanent Residential,Little Croft,1265.20, 25-Oct-2016
1452,Revenue,CAHD,Bed Purchasing - Southmead Hospital,Permanent Residential,Little Croft,1499.56, 25-Oct-2016
1453,Revenue,CAHD,Bed Purchasing - Southmead Hospital,Respite Planned - Residential,Little Croft,2700.00, 25-Oct-2016
1454,Revenue,CAHD,Bed Purchasing - Southmead Hospital,Respite Planned - Residential,Little Croft,1928.57, 25-Oct-2016
1455,Revenue,CAHD,Bed Purchasing - South,Permanent Residential,Little Croft,1090.56, 25-Oct-2016
1456,Revenue,CAHD,Bed Purchasing - South,Permanent Residential,Little Croft,1308.52, 25-Oct-2016
1457,Revenue,CAHD,Bed Purchasing - Southmead Hospital,Permanent Residential,Little Croft,1789.72, 25-Oct-2016
1458,Revenue,CAHD,Bed Purchasing - Southmead Hospital,Permanent Residential,Little Croft,1748.75, 25-Oct-2016
1459,Revenue,CAHD,Bed Purchasing - Southmead Hospital,Permanent Residential,Little Croft,1168.36, 25-Oct-2016
1460,Revenue,CAHD,Bed Purchasing - South,Permanent Residential,Little Croft,1977.20, 25-Oct-2016
1461,Revenue,CAHD,Bed Purchasing - Southmead Hospital,Permanent Residential,Little Croft,1502.48, 25-Oct-2016
1462,Revenue,CAHD,Bed Purchasing - South,Permanent Residential,Little Croft,2010.40, 25-Oct-2016
1463,Revenue,CAHD,Bed Purchasing - Southmead Hospital,Permanent Residential,Little Croft,1553.20, 25-Oct-2016
1464,Revenue,CAHD,Bed Purchasing - South,Permanent Residential,Little Croft,1777.20, 25-Oct-2016
1465,Revenue,CAHD,Bed Purchasing - South,Respite Planned - Residential,Little Croft,1150.00, 25-Oct-2016
1466,Revenue,CAHD,Bed Purchasing - South,Permanent Residential,Little Croft,1015.55, 25-Oct-2016
1467,Revenue,CAHD,Bed Purchasing - Southmead Hospital,Permanent Residential,Little Croft,1677.20, 25-Oct-2016
1468,Revenue,CAHD,Bed Purchasing - Southmead Hospital,Permanent Residential,Little Croft,1280.88, 25-Oct-2016
1469,Revenue,CAHD,Bed Purchasing - North,Permanent Residential,Little Croft,1117.52, 25-Oct-2016
1470,Revenue,CAHD,Bed Purchasing - South,Permanent Residential,Little Croft,1477.24, 25-Oct-2016
1471,Revenue,CAHD,Bed Purchasing - Southmead Hospital,Permanent Residential,Little Croft,1308.52, 25-Oct-2016
1472,Revenue,CAHD,Bed Purchasing - Southmead Hospital,Permanent Residential,Little Croft,1407.34, 25-Oct-2016
1473,Revenue,CAHD,Bed Purchasing - Southmead Hospital,Permanent Residential,Little Croft,703.15, 25-Oct-2016
1474,Revenue,CAHD,Bed Purchasing - Southmead Hospital,Permanent Residential,Little Croft,1308.52, 25-Oct-2016
1475,Revenue,CAHD,Bed Purchasing - South,Permanent Residential,Little Croft,1485.20, 25-Oct-2016
1476,Revenue,CAHD,Bed Purchasing - South,Permanent Residential,Little Croft,4868.31, 25-Oct-2016
1477,Revenue,CAHD,Bed Purchasing - South,Permanent Residential,Little Croft,1642.32, 25-Oct-2016
1478,Revenue,CAHD,Bed Purchasing - North,Permanent Residential,Littlecroft Residential Homes  Longcroft,6645.80, 25-Oct-2016
1479,Revenue,CAHD,18-25 Year Olds,Supported Living,Lloyds TSB Commercial Finance Limited,2878.40, 19-Oct-2016
1480,Revenue,CAHD,Home Care - Elderly - South,Day Care / Social Activities,Lloyds TSB Commercial Finance Limited,4918.83, 19-Oct-2016
1481,Revenue,CAHD,Home Care - Elderly - South,Other Small Contracts,Lloyds TSB Commercial Finance Limited,5902.73, 19-Oct-2016
1482,Revenue,CAHD,Home Care - Elderly - South,Supported Living,Lloyds TSB Commercial Finance Limited,8462.53, 19-Oct-2016
1483,Revenue,CAHD,Home Care - Elderly - North,Day Care / Social Activities,Lloyds TSB Commercial Finance Limited,198.24, 19-Oct-2016
1484,Revenue,CAHD,Home Care - Elderly - North,Supported Living,Lloyds TSB Commercial Finance Limited,1433.11, 19-Oct-2016
1485,Revenue,CAHD,Younger MH non-res purchasing,Other Small Contracts,Lloyds TSB Commercial Finance Limited,10782.70, 19-Oct-2016
1486,Revenue,CAHD,18-25 Year Olds,Supported Living,Lloyds TSB Commercial Finance Limited,2878.40, 19-Oct-2016
1487,Revenue,CAHD,Home Care - Elderly - South,Day Care / Social Activities,Lloyds TSB Commercial Finance Limited,5088.16, 19-Oct-2016
1488,Revenue,CAHD,Home Care - Elderly - South,Other Small Contracts,Lloyds TSB Commercial Finance Limited,5921.01, 19-Oct-2016
1489,Revenue,CAHD,Home Care - Elderly - South,Supported Living,Lloyds TSB Commercial Finance Limited,8248.89, 19-Oct-2016
1490,Revenue,CAHD,Home Care - Elderly - North,Day Care / Social Activities,Lloyds TSB Commercial Finance Limited,198.24, 19-Oct-2016
1491,Revenue,CAHD,Home Care - Elderly - North,Supported Living,Lloyds TSB Commercial Finance Limited,1846.11, 19-Oct-2016
1492,Revenue,CAHD,Younger MH non-res purchasing,Other Small Contracts,Lloyds TSB Commercial Finance Limited,10808.91, 19-Oct-2016
1493,Revenue,CAHD,18-25 Year Olds,Supported Living,Lloyds TSB Commercial Finance Limited,2878.40, 20-Oct-2016
1494,Revenue,CAHD,Home Care - Elderly - South,Day Care / Social Activities,Lloyds TSB Commercial Finance Limited,5100.55, 20-Oct-2016
1495,Revenue,CAHD,Home Care - Elderly - South,Other Small Contracts,Lloyds TSB Commercial Finance Limited,5875.31, 20-Oct-2016
1496,Revenue,CAHD,Home Care - Elderly - South,Supported Living,Lloyds TSB Commercial Finance Limited,8376.67, 20-Oct-2016
1497,Revenue,CAHD,Home Care - Elderly - North,Day Care / Social Activities,Lloyds TSB Commercial Finance Limited,198.24, 20-Oct-2016
1498,Revenue,CAHD,Home Care - Elderly - North,Supported Living,Lloyds TSB Commercial Finance Limited,1846.11, 20-Oct-2016
1499,Revenue,CAHD,Younger MH non-res purchasing,Other Small Contracts,Lloyds TSB Commercial Finance Limited,10782.70, 20-Oct-2016
1500,Revenue,CAHD,18-25 Year Olds,Supported Living,Lloyds TSB Commercial Finance Limited,2878.40, 20-Oct-2016
1501,Revenue,CAHD,Home Care - Elderly - South,Day Care / Social Activities,Lloyds TSB Commercial Finance Limited,5009.69, 20-Oct-2016
1502,Revenue,CAHD,Home Care - Elderly - South,Other Small Contracts,Lloyds TSB Commercial Finance Limited,5811.33, 20-Oct-2016
1503,Revenue,CAHD,Home Care - Elderly - South,Supported Living,Lloyds TSB Commercial Finance Limited,8033.57, 20-Oct-2016
1504,Revenue,CAHD,Home Care - Elderly - North,Day Care / Social Activities,Lloyds TSB Commercial Finance Limited,198.24, 20-Oct-2016
1505,Revenue,CAHD,Home Care - Elderly - North,Supported Living,Lloyds TSB Commercial Finance Limited,1850.24, 20-Oct-2016
1506,Revenue,CAHD,Younger MH non-res purchasing,Other Small Contracts,Lloyds TSB Commercial Finance Limited,10777.13, 20-Oct-2016
1507,Revenue,CAHD,18-25 Year Olds,Supported Living,Lloyds TSB Commercial Finance Limited,2878.40, 20-Oct-2016
1508,Revenue,CAHD,Home Care - Elderly - South,Day Care / Social Activities,Lloyds TSB Commercial Finance Limited,5104.68, 20-Oct-2016
1509,Revenue,CAHD,Home Care - Elderly - South,Other Small Contracts,Lloyds TSB Commercial Finance Limited,5921.01, 20-Oct-2016
1510,Revenue,CAHD,Home Care - Elderly - South,Supported Living,Lloyds TSB Commercial Finance Limited,7019.17, 20-Oct-2016
1511,Revenue,CAHD,Home Care - Elderly - North,Day Care / Social Activities,Lloyds TSB Commercial Finance Limited,198.24, 20-Oct-2016
1512,Revenue,CAHD,Home Care - Elderly - North,Supported Living,Lloyds TSB Commercial Finance Limited,1470.28, 20-Oct-2016
1513,Revenue,CAHD,Younger MH non-res purchasing,Other Small Contracts,Lloyds TSB Commercial Finance Limited,10825.02, 20-Oct-2016
1514,Revenue,CAHD,18-25 Year Olds,Supported Living,Lloyds TSB Commercial Finance Limited,2878.40, 20-Oct-2016
1515,Revenue,CAHD,Home Care - Elderly - South,Day Care / Social Activities,Lloyds TSB Commercial Finance Limited,5117.07, 20-Oct-2016
1516,Revenue,CAHD,Home Care - Elderly - South,Other Small Contracts,Lloyds TSB Commercial Finance Limited,5921.01, 20-Oct-2016
1517,Revenue,CAHD,Home Care - Elderly - South,Supported Living,Lloyds TSB Commercial Finance Limited,8131.12, 20-Oct-2016
1518,Revenue,CAHD,Home Care - Elderly - North,Day Care / Social Activities,Lloyds TSB Commercial Finance Limited,198.24, 20-Oct-2016
1519,Revenue,CAHD,Home Care - Elderly - North,Supported Living,Lloyds TSB Commercial Finance Limited,1850.24, 20-Oct-2016
1520,Revenue,CAHD,Younger MH non-res purchasing,Other Small Contracts,Lloyds TSB Commercial Finance Limited,10793.12, 20-Oct-2016
1521,Revenue,CAHD,Bed Purchasing - Southmead Hospital,Permanent Nursing,Lodge House,1321.44, 25-Oct-2016
1522,Revenue,CAHD,South Glos Users in South Glos Homes,Permanent Nursing,Lodge House,625.00, 25-Oct-2016
1523,Revenue,CAHD,Bed Purchasing - Southmead Hospital,Permanent Nursing,Lodge House,2376.60, 25-Oct-2016
1524,Revenue,CAHD,South Glos Users in South Glos Homes,Permanent Nursing,Lodge House,625.00, 25-Oct-2016
1525,Revenue,CAHD,South Glos Users in South Glos Homes,Permanent Nursing,Lodge House,625.00, 25-Oct-2016
1526,Revenue,CAHD,Bed Purchasing - South,Permanent Nursing,Lodge House,1697.08, 25-Oct-2016
1527,Revenue,CAHD,South Glos Users in South Glos Homes,Permanent Nursing,Lodge House,625.00, 25-Oct-2016
1528,Revenue,CAHD,South Glos Users in South Glos Homes,Permanent Nursing,Lodge House,625.00, 25-Oct-2016
1529,Revenue,CAHD,South Glos Users in South Glos Homes,Permanent Nursing,Lodge House,625.00, 25-Oct-2016
1530,Revenue,CAHD,South Glos Users in South Glos Homes,Permanent Nursing,Lodge House,625.00, 25-Oct-2016
1531,Revenue,CAHD,Bed Purchasing - South,Permanent Nursing,Lodge House,2065.32, 25-Oct-2016
1532,Revenue,CAHD,South Glos Users in South Glos Homes,Permanent Nursing,Lodge House,625.00, 25-Oct-2016
1533,Revenue,CAHD,Bed Purchasing - South,Permanent Nursing,Lodge House,1722.60, 25-Oct-2016
1534,Revenue,CAHD,South Glos Users in South Glos Homes,Permanent Nursing,Lodge House,625.00, 25-Oct-2016
1535,Revenue,CAHD,South Glos Users in South Glos Homes,Permanent Nursing,Lodge House,625.00, 25-Oct-2016
1536,Revenue,CAHD,Bed Purchasing - South,Permanent Nursing,Lodge House,2293.36, 25-Oct-2016
1537,Revenue,CAHD,South Glos Users in South Glos Homes,Permanent Nursing,Lodge House,625.00, 25-Oct-2016
1538,Revenue,CAHD,Bed Purchasing - South,Permanent Nursing,Lodge House,1794.48, 25-Oct-2016
1539,Revenue,CAHD,South Glos Users in South Glos Homes,Permanent Nursing,Lodge House,625.00, 25-Oct-2016
1540,Revenue,CAHD,South Glos Users in South Glos Homes,Permanent Nursing,Lodge House,625.00, 25-Oct-2016
1541,Revenue,CAHD,Bed Purchasing - Southmead Hospital,Permanent Nursing,Lodge House,2033.84, 25-Oct-2016
1542,Revenue,CAHD,South Glos Users in South Glos Homes,Permanent Nursing,Lodge House,625.00, 25-Oct-2016
1543,Revenue,CAHD,South Glos Users in South Glos Homes,Permanent Nursing,Lodge House,625.00, 25-Oct-2016
1544,Revenue,CAHD,Bed Purchasing - Southmead Hospital,Permanent Nursing,Lodge House,4541.92, 25-Oct-2016
1545,Revenue,CAHD,Bed Purchasing - North,Permanent Nursing,Lodge House,2044.36, 25-Oct-2016
1546,Revenue,CAHD,South Glos Users in South Glos Homes,Permanent Nursing,Lodge House,625.00, 25-Oct-2016
1547,Revenue,CAHD,Bed Purchasing - South,Permanent Nursing,Lodge House,2520.68, 25-Oct-2016
1548,Revenue,CAHD,South Glos Users in South Glos Homes,Permanent Nursing,Lodge House,625.00, 25-Oct-2016
1549,Revenue,CAHD,South Glos Users in South Glos Homes,Permanent Nursing,Lodge House,625.00, 25-Oct-2016
1550,Revenue,CAHD,South Glos Users in South Glos Homes,Permanent Nursing,Lodge House,625.00, 25-Oct-2016
1551,Revenue,CAHD,South Glos Users in South Glos Homes,Permanent Nursing,Lodge House,625.00, 25-Oct-2016
1552,Revenue,CAHD,South Glos Users in South Glos Homes,Permanent Nursing,Lodge House,625.00, 25-Oct-2016
1553,Revenue,CAHD,South Glos Users in South Glos Homes,Permanent Nursing,Lodge House,625.00, 25-Oct-2016
1554,Revenue,CAHD,Bed Purchasing - Elderly S117- North,Permanent Nursing,Lodge House,3252.00, 25-Oct-2016
1555,Revenue,CAHD,South Glos Users in South Glos Homes,Permanent Nursing,Lodge House,625.00, 25-Oct-2016
1556,Revenue,CAHD,South Glos Users in South Glos Homes,Permanent Nursing,Lodge House,625.00, 25-Oct-2016
1557,Revenue,CAHD,South Glos Users in South Glos Homes,Permanent Nursing,Lodge House,625.00, 25-Oct-2016
1558,Revenue,CAHD,South Glos Users in South Glos Homes,Permanent Nursing,Lodge House,625.00, 25-Oct-2016
1559,Revenue,CAHD,South Glos Users in South Glos Homes,Permanent Nursing,Lodge House,625.00, 25-Oct-2016
1560,Revenue,CAHD,Bed Purchasing - Southmead Hospital,Permanent Nursing,Lodge House,3207.04, 25-Oct-2016
1561,Revenue,CAHD,South Glos Users in South Glos Homes,Permanent Nursing,Lodge House,625.00, 25-Oct-2016
1562,Revenue,CAHD,South Glos Users in South Glos Homes,Permanent Nursing,Lodge House,625.00, 25-Oct-2016
1563,Revenue,CAHD,South Glos Users in South Glos Homes,Permanent Nursing,Lodge House,625.00, 25-Oct-2016
1564,Revenue,CAHD,Bed Purchasing - South,Permanent Nursing,Lodge House,2732.20, 25-Oct-2016
1565,Revenue,CAHD,South Glos Users in South Glos Homes,Permanent Nursing,Lodge House,892.86, 25-Oct-2016
1566,Revenue,CAHD,South Glos Users in South Glos Homes,Permanent Nursing,Lodge House,625.00, 25-Oct-2016
1567,Revenue,CAHD,South Glos Users in South Glos Homes,Permanent Nursing,Lodge House,625.00, 25-Oct-2016
1568,Revenue,CAHD,South Glos Users in South Glos Homes,Permanent Nursing,Lodge House,625.00, 25-Oct-2016
1569,Revenue,CAHD,South Glos Users in South Glos Homes,Permanent Nursing,Lodge House,625.00, 25-Oct-2016
1570,Revenue,CAHD,South Glos Users in South Glos Homes,Permanent Nursing,Lodge House,625.00, 25-Oct-2016
1571,Revenue,CAHD,Bed Purchasing - Southmead Hospital,Permanent Nursing,Lodge House,2861.20, 25-Oct-2016
1572,Revenue,CAHD,South Glos Users in South Glos Homes,Permanent Nursing,Lodge House,625.00, 25-Oct-2016
1573,Revenue,CAHD,South Glos Users in South Glos Homes,Permanent Nursing,Lodge House,625.00, 25-Oct-2016
1574,Revenue,CAHD,Bed Purchasing - Southmead Hospital,Permanent Nursing,Lodge House,5235.45, 25-Oct-2016
1575,Revenue,CAHD,Bed Purchasing - Southmead Hospital,Permanent Nursing,Lodge House,2665.32, 25-Oct-2016
1576,Revenue,CAHD,South Glos Users in South Glos Homes,Permanent Nursing,Lodge House,1227.68, 25-Oct-2016
1577,Revenue,CAHD,South Glos Users in South Glos Homes,Permanent Nursing,Lodge House,625.00, 25-Oct-2016
1578,Revenue,CAHD,South Glos Users in South Glos Homes,Permanent Nursing,Lodge House,625.00, 25-Oct-2016
1579,Revenue,CAHD,Bed Purchasing - Southmead Hospital,Permanent Nursing,Lodge House,3436.56, 25-Oct-2016
1580,Revenue,CAHD,Bed Purchasing - Southmead Hospital,Permanent Nursing,Lodge House,2577.42, 25-Oct-2016
1581,Revenue,CAHD,South Glos Users in South Glos Homes,Permanent Nursing,Lodge House,625.00, 25-Oct-2016
1582,Revenue,CAHD,South Glos Users in South Glos Homes,Permanent Nursing,Lodge House,625.00, 25-Oct-2016
1583,Revenue,CAHD,Bed Purchasing - South,Permanent Nursing,Lodge House,2522.56, 25-Oct-2016
1584,Revenue,CAHD,South Glos Users in South Glos Homes,Permanent Nursing,Lodge House,625.00, 25-Oct-2016
1585,Revenue,CAHD,South Glos Users in South Glos Homes,Permanent Nursing,Lodge House,625.00, 25-Oct-2016
1586,Revenue,CAHD,Home Care - Elderly - North,Day Care / Social Activities,Lower Kilcott,1481.84, 25-Oct-2016
1587,Revenue,CAHD,Social Lettings Agency,Fees - General,Individual,13.60, 05-Oct-2016
1588,Revenue,CAHD,Social Lettings Agency,Other Supplies & Services,Individual,768.40, 05-Oct-2016
1589,Revenue,CAHD,Bed Purchasing - Southmead Hospital,Permanent Nursing,Majestic 3 Limited,1048.60, 25-Oct-2016
1590,Revenue,CAHD,18-25 Year Olds,Day Care / Social Activities,Make it Mentoring CIC Ltd,1540.00, 12-Oct-2016
1591,Revenue,CAHD,18-25 Year Olds,Day Care / Social Activities,Make it Mentoring CIC Ltd,744.00, 13-Oct-2016
1592,Revenue,CAHD,18-25 Year Olds,Day Care / Social Activities,Make it Mentoring CIC Ltd,756.00, 12-Oct-2016
1593,Revenue,CAHD,18-25 Year Olds,Day Care / Social Activities,Make it Mentoring CIC Ltd,5180.00, 12-Oct-2016
1594,Revenue,CAHD,18-25 Year Olds,Day Care / Social Activities,Make it Mentoring CIC Ltd,2877.00, 12-Oct-2016
1595,Revenue,CAHD,18-25 Year Olds,Day Care / Social Activities,Make it Mentoring CIC Ltd,2058.00, 12-Oct-2016
1596,Revenue,CAHD,Bed Purchasing - Southmead Hospital,Permanent Residential,Manor Cottage,1308.52, 25-Oct-2016
1597,Revenue,CAHD,Bed Purchasing - South,Permanent Residential,Manor Cottage,1897.20, 25-Oct-2016
1598,Revenue,CAHD,Bed Purchasing - South,Permanent Residential,Manor Cottage,1828.76, 25-Oct-2016
1599,Revenue,CAHD,Bed Purchasing - Southmead Hospital,Permanent Residential,Manor Cottage,1083.16, 25-Oct-2016
1600,Revenue,CAHD,Bed Purchasing - South,Permanent Residential,Manor Cottage,1526.28, 25-Oct-2016
1601,Revenue,CAHD,Home Care - Elderly - South,Supported Living,Maples Community Care Limited,4471.04, 27-Oct-2016
1602,Revenue,CAHD,Home Care - Elderly - South,Supported Living,Maples Community Care Limited,1197.60, 27-Oct-2016
1603,Revenue,CAHD,Home Care - Elderly - South,Supported Living,Maples Community Care Limited,958.08, 27-Oct-2016
1604,Revenue,CAHD,Younger MH non-res purchasing,Other Small Contracts,Maples Community Care Limited,804.00, 25-Oct-2016
1605,Revenue,CAHD,Younger MH non-res purchasing,Supported Living,Maples Community Care Limited,804.00, 25-Oct-2016
1606,Revenue,CAHD,Younger MH non-res purchasing,Supported Living,Maples Community Care Limited,1206.00, 25-Oct-2016
1607,Revenue,CAHD,Home Care - Elderly - South,Supported Living,Maples Community Care Limited,964.80, 25-Oct-2016
1608,Revenue,CAHD,Home Care - Elderly - South,Supported Living,Maples Community Care Limited,4502.40, 25-Oct-2016
1609,Revenue,CAHD,Younger MH non-res purchasing,Supported Living,Maples Community Care Limited,1206.00, 25-Oct-2016
1610,Revenue,CAHD,Home Care - Elderly - South,Supported Living,Maples Community Care Limited,964.80, 25-Oct-2016
1611,Revenue,CAHD,Younger MH non-res purchasing,Other Small Contracts,Maples Community Care Limited,769.12, 13-Oct-2016
1612,Revenue,CAHD,Younger MH non-res purchasing,Supported Living,Maples Community Care Limited,1214.40, 13-Oct-2016
1613,Revenue,CAHD,Home Care - Elderly - South,Supported Living,Maples Community Care Limited,4493.28, 13-Oct-2016
1614,Revenue,CAHD,Home Care - Elderly - South,Supported Living,Maples Community Care Limited,566.72, 13-Oct-2016
1615,Revenue,CAHD,Home Care - Elderly - South,Supported Living,Maples Community Care Limited,971.52, 13-Oct-2016
1616,Revenue,CAHD,Younger MH non-res purchasing,Supported Living,Maples Community Care Limited,1419.04, 25-Oct-2016
1617,Revenue,CAHD,Home Care - Elderly - South,Supported Living,Maples Community Care Limited,1419.04, 25-Oct-2016
1618,Revenue,CAHD,Home Care - Elderly - South,Supported Living,Maples Community Care Limited,1419.04, 25-Oct-2016
1619,Revenue,CAHD,Younger MH non-res purchasing,Supported Living,Maples Community Care Limited,1419.04, 25-Oct-2016
1620,Revenue,CAHD,Younger MH non-res purchasing,Supported Living,Maples Community Care Limited,1419.04, 25-Oct-2016
1621,Revenue,CAHD,Younger MH non-res purchasing,Supported Living,Maples Community Care Limited,1419.04, 25-Oct-2016
1622,Revenue,CAHD,Social Lettings Agency,Fees - General,Individual,12.22, 20-Oct-2016
1623,Revenue,CAHD,Social Lettings Agency,Other Supplies & Services,Individual,690.32, 20-Oct-2016
1624,Revenue,CAHD,Bed Purchasing - North,Permanent Residential,Marsden Healthcare Ltd,3275.48, 25-Oct-2016
1625,Revenue,CAHD,Bed Purchasing - South,Permanent Residential,Marsden Healthcare Ltd,1307.28, 25-Oct-2016
1626,Revenue,CAHD,Bed Purchasing - South,Permanent Residential,Marsden Healthcare Ltd,1563.80, 25-Oct-2016
1627,Revenue,CAHD,Bed Purchasing - South,Permanent Nursing,Meadow Care Home,1649.48, 25-Oct-2016
1628,Revenue,CAHD,Bed Purchasing - Elderly S117- North,Permanent Nursing,Meadow Care Home,3851.68, 25-Oct-2016
1629,Revenue,CAHD,Bed purchasing - Elderly S117 - South,Permanent Nursing,Meadow Care Home,4331.12, 25-Oct-2016
1630,Revenue,CAHD,Bed Purchasing - Elderly S117- North,Permanent Nursing,Meadow Care Home,4175.00, 25-Oct-2016
1631,Revenue,CAHD,Bed Purchasing - Elderly S117- North,Permanent Nursing,Meadow Care Home,894.64, 25-Oct-2016
1632,Revenue,CAHD,Bed Purchasing - Elderly S117- North,Permanent Nursing,Meadow Care Home,4865.28, 25-Oct-2016
1633,Revenue,CAHD,Home Care - Elderly - South,Day Care / Social Activities,Mears Care,172.00, 25-Oct-2016
1634,Revenue,CAHD,Home Care - Elderly - South,Other Small Contracts,Mears Care,2948.00, 25-Oct-2016
1635,Revenue,CAHD,Home Care - Elderly - North,Other Small Contracts,Mears Care,3048.00, 25-Oct-2016
1636,Revenue,CAHD,Home Care - Elderly - North,Supported Living,Mears Care,68.00, 25-Oct-2016
1637,Revenue,CAHD,Home Care - Elderly - South,Day Care / Social Activities,Mears Care,180.00, 25-Oct-2016
1638,Revenue,CAHD,Home Care - Elderly - South,Other Small Contracts,Mears Care,3076.00, 25-Oct-2016
1639,Revenue,CAHD,Home Care - Elderly - North,Other Small Contracts,Mears Care,2992.00, 25-Oct-2016
1640,Revenue,CAHD,Home Care - Elderly - North,Supported Living,Mears Care,64.00, 25-Oct-2016
1641,Revenue,CAHD,Home Care - Elderly - South,Day Care / Social Activities,Mears Care,180.00, 25-Oct-2016
1642,Revenue,CAHD,Home Care - Elderly - South,Other Small Contracts,Mears Care,3084.00, 25-Oct-2016
1643,Revenue,CAHD,Home Care - Elderly - North,Other Small Contracts,Mears Care,3232.00, 25-Oct-2016
1644,Revenue,CAHD,Home Care - Elderly - North,Supported Living,Mears Care,88.00, 25-Oct-2016
1645,Revenue,CAHD,Home Care - Elderly - South,Private & Voluntary Home Care,Mears Care,49770.25, 28-Oct-2016
1646,Revenue,CAHD,Woodleaze,Equipment Maintenance,Medaco,645.00, 12-Oct-2016
1647,Revenue,CAHD,Kingswood Centre - Maple Suite,Equipment Maintenance,Medaco,1003.00, 25-Oct-2016
1648,Revenue,CAHD,Home Care - Elderly - South,Other Small Contracts,Medacs Home Care,14.36, 03-Oct-2016
1649,Revenue,CAHD,Home Care - Elderly - North,Other Small Contracts,Medacs Home Care,229.76, 03-Oct-2016
1650,Revenue,CAHD,Home Care - Elderly - North,Supported Living,Medacs Home Care,287.20, 03-Oct-2016
1651,Revenue,CAHD,Home Care - Elderly - South,Other Small Contracts,Medacs Home Care,14.36, 12-Oct-2016
1652,Revenue,CAHD,Home Care - Elderly - North,Other Small Contracts,Medacs Home Care,244.12, 12-Oct-2016
1653,Revenue,CAHD,Home Care - Elderly - North,Supported Living,Medacs Home Care,308.74, 12-Oct-2016
1654,Revenue,CAHD,Home Care - Elderly - South,Other Small Contracts,Medacs Home Care,14.36, 11-Oct-2016
1655,Revenue,CAHD,Home Care - Elderly - North,Other Small Contracts,Medacs Home Care,236.94, 11-Oct-2016
1656,Revenue,CAHD,Home Care - Elderly - North,Supported Living,Medacs Home Care,305.15, 11-Oct-2016
1657,Revenue,CAHD,Home Care - Elderly - South,Other Small Contracts,Medacs Home Care,14.36, 24-Oct-2016
1658,Revenue,CAHD,Home Care - Elderly - North,Other Small Contracts,Medacs Home Care,233.35, 24-Oct-2016
1659,Revenue,CAHD,Home Care - Elderly - North,Supported Living,Medacs Home Care,315.92, 24-Oct-2016
1660,Revenue,CAHD,Home Care - Elderly - North,Other Small Contracts,Medacs Home Care,236.94, 20-Oct-2016
1661,Revenue,CAHD,Home Care - Elderly - North,Supported Living,Medacs Home Care,301.56, 20-Oct-2016
1662,Revenue,CAHD,Home Care - Elderly - North,Other Small Contracts,Medacs Home Care,236.94, 25-Oct-2016
1663,Revenue,CAHD,Home Care - Elderly - North,Supported Living,Medacs Home Care,308.74, 25-Oct-2016
1664,Revenue,CAHD,Bed Purchasing - South,Permanent Residential,Mencap,2332.96, 25-Oct-2016
1665,Revenue,CAHD,Tenancy Start Up Scheme,Other Supplies & Services,Merlin Housing Society,1096.99, 31-Oct-2016
1666,Revenue,CAHD,Intermediate Care Accommodation,Other Supplies & Services,Merlin Housing Society,553.38, 04-Oct-2016
1667,Revenue,CAHD,Home Care - Elderly - South,Supported Living,Milestones - Unit 10,2131.96, 25-Oct-2016
1668,Revenue,CAHD,Home Care - Elderly - South,Supported Living,Milestones - Unit 10,3681.16, 25-Oct-2016
1669,Revenue,CAHD,Home Care - Elderly - North,Supported Living,Milestones - Unit 10,4362.68, 25-Oct-2016
1670,Revenue,CAHD,Home Care - Elderly - South,Supported Living,Milestones - Unit 10,1371.60, 25-Oct-2016
1671,Revenue,CAHD,Home Care - Elderly - South,Supported Living,Milestones - Unit 10,3681.16, 25-Oct-2016
1672,Revenue,CAHD,Home Care - Elderly - North,Supported Living,Milestones - Unit 10,4131.76, 25-Oct-2016
1673,Revenue,CAHD,Home Care - Elderly - South,Supported Living,Milestones - Unit 10,3693.16, 25-Oct-2016
1674,Revenue,CAHD,Home Care - Elderly - South,Supported Living,Milestones - Unit 10,2349.20, 25-Oct-2016
1675,Revenue,CAHD,Home Care - Elderly - North,Supported Living,Milestones - Unit 10,4131.76, 25-Oct-2016
1676,Revenue,CAHD,Home Care - Elderly - South,Supported Living,Milestones - Unit 10,3934.12, 25-Oct-2016
1677,Revenue,CAHD,Supported Living (S28a) North,Supported Living,Milestones - Unit 10,3652.08, 25-Oct-2016
1678,Revenue,CAHD,Supported Living (S28a) North,Supported Living,Milestones - Unit 10,3652.08, 25-Oct-2016
1679,Revenue,CAHD,Home Care - Elderly - South,Supported Living,Milestones - Unit 10,1268.04, 25-Oct-2016
1680,Revenue,CAHD,Supported Living (S28a) South,Supported Living,Milestones - Unit 10,5580.68, 25-Oct-2016
1681,Revenue,CAHD,Home Care - Elderly - South,Supported Living,Milestones - Unit 10,2262.88, 25-Oct-2016
1682,Revenue,CAHD,Supported Living (S28a) South,Supported Living,Milestones - Unit 10,2262.88, 25-Oct-2016
1683,Revenue,CAHD,Home Care - Elderly - North,Supported Living,Milestones - Unit 10,4362.68, 25-Oct-2016
1684,Revenue,CAHD,Home Care - Elderly - South,Supported Living,Milestones - Unit 10,2131.96, 25-Oct-2016
1685,Revenue,CAHD,Supported Living (S28a) North,Supported Living,Milestones - Unit 10,3664.36, 25-Oct-2016
1686,Revenue,CAHD,Supported Living (S28a) South,Supported Living,Milestones - Unit 10,2262.88, 25-Oct-2016
1687,Revenue,CAHD,Supported Living (S28a) South,Supported Living,Milestones - Unit 10,2262.88, 25-Oct-2016
1688,Revenue,CAHD,Section 117 Placements MH Younger,Permanent Nursing,Milestones - Unit 10,3547.60, 25-Oct-2016
1689,Revenue,CAHD,South Glos Users in South Glos Homes,Permanent Nursing,Milestones - Unit 10,625.00, 25-Oct-2016
1690,Revenue,CAHD,South Glos Users in South Glos Homes,Permanent Nursing,Milestones - Unit 10,625.00, 25-Oct-2016
1691,Revenue,CAHD,Bed Purchasing - South,Permanent Residential,Milestones - Unit 10,4992.88, 25-Oct-2016
1692,Revenue,CAHD,Bed Purchasing - South,Permanent Residential,Milestones - Unit 10,5176.32, 25-Oct-2016
1693,Revenue,CAHD,Jointly Funded H&SC Packages,Permanent Residential,Milestones - Unit 10,1359.60, 25-Oct-2016
1694,Revenue,CAHD,Bed Purchasing - South,Permanent Nursing,Milestones - Unit 10,1316.36, 25-Oct-2016
1695,Revenue,CAHD,Bed Purchasing - South,Permanent Residential,Milestones - Unit 10,3679.64, 25-Oct-2016
1696,Revenue,CAHD,Bed purchasing - Elderly S117 - South,Permanent Nursing,Milestones - Unit 10,4929.52, 25-Oct-2016
1697,Revenue,CAHD,Jointly Funded H&SC Packages,Permanent Nursing,Milestones - Unit 10,2886.72, 25-Oct-2016
1698,Revenue,CAHD,South Glos Users in South Glos Homes,Permanent Nursing,Milestones - Unit 10,625.00, 25-Oct-2016
1699,Revenue,CAHD,Bed Purchasing - North,Permanent Nursing,Milestones - Unit 10,1440.96, 25-Oct-2016
1700,Revenue,CAHD,Bed Purchasing - North,Permanent Residential,Milestones - Unit 10,8970.04, 25-Oct-2016
1701,Revenue,CAHD,South Glos Users in South Glos Homes,Permanent Nursing,Milestones - Unit 10,625.00, 25-Oct-2016
1702,Revenue,CAHD,South Glos Users in South Glos Homes,Permanent Nursing,Milestones - Unit 10,625.00, 25-Oct-2016
1703,Revenue,CAHD,South Glos Users in South Glos Homes,Permanent Nursing,Milestones - Unit 10,625.00, 25-Oct-2016
1704,Revenue,CAHD,South Glos Users in South Glos Homes,Permanent Nursing,Milestones - Unit 10,3727.68, 25-Oct-2016
1705,Revenue,CAHD,South Glos Users in South Glos Homes,Permanent Nursing,Milestones - Unit 10,625.00, 25-Oct-2016
1706,Revenue,CAHD,Bed Purchasing - South,Permanent Residential,Milestones - Unit 10,4319.08, 25-Oct-2016
1707,Revenue,CAHD,Bed Purchasing - South,Permanent Residential,Milestones - Unit 10,4247.08, 25-Oct-2016
1708,Revenue,CAHD,Bed Purchasing - North,Permanent Nursing,Milestones - Unit 10,4375.00, 25-Oct-2016
1709,Revenue,CAHD,Bed purchasing -S28A  Under 65 - North,Permanent Residential,Milestones - Unit 10,5450.24, 25-Oct-2016
1710,Revenue,CAHD,Bed purchasing - S28A Under 65 - South,Permanent Residential,Milestones - Unit 10,5590.24, 25-Oct-2016
1711,Revenue,CAHD,Bed Purchasing - South,Permanent Residential,Milestones - Unit 10,1356.80, 25-Oct-2016
1712,Revenue,CAHD,Bed Purchasing - South,Permanent Residential,Milestones - Unit 10,5115.28, 25-Oct-2016
1713,Revenue,CAHD,Bed Purchasing - South,Permanent Residential,Milestones - Unit 10,5676.44, 25-Oct-2016
1714,Revenue,CAHD,Bed purchasing - S28A Under 65 - South,Permanent Nursing,Milestones - Unit 10,7458.52, 25-Oct-2016
1715,Revenue,CAHD,MH Purchasing - Younger,Permanent Residential,Milestones - Unit 10,879.64, 25-Oct-2016
1716,Revenue,CAHD,Bed Purchasing - South,Permanent Residential,Milestones - Unit 10,5185.20, 25-Oct-2016
1717,Revenue,CAHD,Bed Purchasing - South,Permanent Residential,Milestones - Unit 10,5235.36, 25-Oct-2016
1718,Revenue,CAHD,Bed Purchasing - Under 65s PWLD - South,Respite Planned - Residential,Milestones - Unit 10,1928.57, 25-Oct-2016
1719,Revenue,CAHD,Bed Purchasing - Southmead Hospital,Permanent Residential,Milestones - Unit 10,3660.76, 25-Oct-2016
1720,Revenue,CAHD,Bed Purchasing - North,Permanent Residential,Milestones - Unit 10,4359.12, 25-Oct-2016
1721,Revenue,CAHD,Bed purchasing -S28A  Under 65 - North,Permanent Nursing,Milestones - Unit 10,5394.36, 25-Oct-2016
1722,Revenue,CAHD,South Glos Users in South Glos Homes,Permanent Nursing,Milestones - Unit 10,625.00, 25-Oct-2016
1723,Revenue,CAHD,Bed Purchasing - North,Permanent Residential,Milestones - Unit 10,4792.16, 25-Oct-2016
1724,Revenue,CAHD,Bed purchasing -S28A  Under 65 - North,Permanent Residential,Milestones - Unit 10,7237.44, 25-Oct-2016
1725,Revenue,CAHD,Bed purchasing -S28A  Under 65 - North,Permanent Nursing,Milestones - Unit 10,5949.20, 25-Oct-2016
1726,Revenue,CAHD,South Glos Users in South Glos Homes,Permanent Nursing,Milestones - Unit 10,625.00, 25-Oct-2016
1727,Revenue,CAHD,Bed purchasing -S28A  Under 65 - North,Permanent Residential,Milestones - Unit 10,6926.36, 25-Oct-2016
1728,Revenue,CAHD,Bed Purchasing - South,Permanent Residential,Milestones - Unit 10,4645.72, 25-Oct-2016
1729,Revenue,CAHD,Bed purchasing - S28A Under 65 - South,Permanent Residential,Milestones - Unit 10,4679.64, 25-Oct-2016
1730,Revenue,CAHD,Bed Purchasing - S28A - Over 65- North,Permanent Residential,Milestones - Unit 10,6751.80, 25-Oct-2016
1731,Revenue,CAHD,Bed purchasing -S28A  Under 65 - North,Permanent Residential,Milestones - Unit 10,7197.64, 25-Oct-2016
1732,Revenue,CAHD,Bed purchasing -S28A  Under 65 - North,Permanent Residential,Milestones - Unit 10,46940.66, 25-Oct-2016
1733,Revenue,CAHD,Bed purchasing -S28A  Under 65 - North,Permanent Residential,Milestones - Unit 10,7221.64, 25-Oct-2016
1734,Revenue,CAHD,Bed Purchasing - LD S28A- Over 65- South,Permanent Residential,Milestones - Unit 10,4219.24, 25-Oct-2016
1735,Revenue,CAHD,Bed purchasing - S28A Under 65 - South,Permanent Residential,Milestones - Unit 10,4551.76, 25-Oct-2016
1736,Revenue,CAHD,Bed purchasing - S28A Under 65 - South,Permanent Residential,Milestones - Unit 10,3789.96, 25-Oct-2016
1737,Revenue,CAHD,Bed Purchasing - LD S28A- Over 65- South,Permanent Residential,Milestones - Unit 10,5201.24, 25-Oct-2016
1738,Revenue,CAHD,Bed Purchasing - LD S28A- Over 65- South,Permanent Residential,Milestones - Unit 10,4853.32, 25-Oct-2016
1739,Revenue,CAHD,Bed Purchasing - LD S28A- Over 65- South,Permanent Residential,Milestones - Unit 10,5185.08, 25-Oct-2016
1740,Revenue,CAHD,Bed Purchasing - LD S28A- Over 65- South,Permanent Residential,Milestones - Unit 10,4482.56, 25-Oct-2016
1741,Revenue,CAHD,Bed Purchasing - LD S28A- Over 65- South,Permanent Residential,Milestones - Unit 10,5282.28, 25-Oct-2016
1742,Revenue,CAHD,Bed Purchasing - S28A - Over 65- North,Permanent Residential,Milestones - Unit 10,2956.72, 25-Oct-2016
1743,Revenue,CAHD,Bed Purchasing - South,Permanent Residential,Milestones - Unit 10,4523.52, 25-Oct-2016
1744,Revenue,CAHD,Section 117 Placements MH Younger,Permanent Residential,Milestones - Unit 10,1402.44, 25-Oct-2016
1745,Revenue,CAHD,Bed Purchasing - South,Permanent Residential,Milestones - Unit 10,893.44, 25-Oct-2016
1746,Revenue,CAHD,Bed Purchasing - Southmead Hospital,Permanent Nursing,Milestones - Unit 10,5894.84, 25-Oct-2016
1747,Revenue,CAHD,Bed Purchasing - South,Permanent Nursing,Milestones - Unit 10,9861.80, 25-Oct-2016
1748,Revenue,CAHD,Bed Purchasing - South,Permanent Nursing,Milestones - Unit 10,4154.10, 25-Oct-2016
1749,Revenue,CAHD,Bed Purchasing - North,Permanent Residential,Milestones - Unit 10,4435.28, 25-Oct-2016
1750,Revenue,CAHD,Bed Purchasing - North,Permanent Nursing,Milestones - Unit 10,7038.56, 25-Oct-2016
1751,Revenue,CAHD,South Glos Users in South Glos Homes,Permanent Nursing,Milestones - Unit 10,625.00, 25-Oct-2016
1752,Revenue,CAHD,Bed Purchasing - South,Permanent Residential,Milestones - Unit 10,4417.12, 25-Oct-2016
1753,Revenue,CAHD,Bed purchasing -S28A  Under 65 - North,Permanent Residential,Milestones - Unit 10,5820.32, 25-Oct-2016
1754,Revenue,CAHD,Bed Purchasing - S28A - Over 65- North,Permanent Residential,Milestones - Unit 10,3704.08, 25-Oct-2016
1755,Revenue,CAHD,Bed Purchasing - Southmead Hospital,Permanent Residential,Milestones - Unit 10,3267.96, 25-Oct-2016
1756,Revenue,CAHD,MH Purchasing - Younger,Permanent Residential,Milestones - Unit 10,1080.64, 25-Oct-2016
1757,Revenue,CAHD,Bed Purchasing - S28A - Over 65- North,Permanent Residential,Milestones - Unit 10,3307.16, 25-Oct-2016
1758,Revenue,CAHD,Bed Purchasing - LD S28A- Over 65- South,Permanent Residential,Milestones - Unit 10,3996.20, 25-Oct-2016
1759,Revenue,CAHD,Bed purchasing - S28A Under 65 - South,Permanent Residential,Milestones - Unit 10,5303.96, 25-Oct-2016
1760,Revenue,CAHD,Bed purchasing - S28A Under 65 - South,Permanent Nursing,Milestones - Unit 10,5300.36, 25-Oct-2016
1761,Revenue,CAHD,South Glos Users in South Glos Homes,Permanent Nursing,Milestones - Unit 10,625.00, 25-Oct-2016
1762,Revenue,CAHD,Bed Purchasing - LD S28A- Over 65- South,Permanent Nursing,Milestones - Unit 10,5338.96, 25-Oct-2016
1763,Revenue,CAHD,South Glos Users in South Glos Homes,Permanent Nursing,Milestones - Unit 10,625.00, 25-Oct-2016
1764,Revenue,CAHD,Bed Purchasing - LD S28A- Over 65- South,Permanent Residential,Milestones - Unit 10,4855.28, 25-Oct-2016
1765,Revenue,CAHD,Bed Purchasing - LD S28A- Over 65- South,Permanent Residential,Milestones - Unit 10,4737.08, 25-Oct-2016
1766,Revenue,CAHD,Bed purchasing - S28A Under 65 - South,Permanent Residential,Milestones - Unit 10,6204.36, 25-Oct-2016
1767,Revenue,CAHD,Bed Purchasing - LD S28A- Over 65- South,Permanent Residential,Milestones - Unit 10,4766.88, 25-Oct-2016
1768,Revenue,CAHD,Bed Purchasing - S28A - Over 65- North,Permanent Nursing,Milestones - Unit 10,4852.12, 25-Oct-2016
1769,Revenue,CAHD,South Glos Users in South Glos Homes,Permanent Nursing,Milestones - Unit 10,625.00, 25-Oct-2016
1770,Revenue,CAHD,Bed Purchasing - South,Permanent Nursing,Milestones - Unit 10,3364.96, 25-Oct-2016
1771,Revenue,CAHD,South Glos Users in South Glos Homes,Permanent Nursing,Milestones - Unit 10,625.00, 25-Oct-2016
1772,Revenue,CAHD,Bed Purchasing - S28A - Over 65- North,Permanent Residential,Milestones - Unit 10,4725.40, 25-Oct-2016
1773,Revenue,CAHD,Bed purchasing - S28A Under 65 - South,Permanent Residential,Milestones - Unit 10,4917.44, 25-Oct-2016
1774,Revenue,CAHD,Bed Purchasing - S28A - Over 65- North,Permanent Residential,Milestones - Unit 10,4637.28, 25-Oct-2016
1775,Revenue,CAHD,Bed purchasing -S28A  Under 65 - North,Permanent Residential,Milestones - Unit 10,7237.64, 25-Oct-2016
1776,Revenue,CAHD,Bed purchasing -S28A  Under 65 - North,Permanent Residential,Milestones - Unit 10,3418.40, 25-Oct-2016
1777,Revenue,CAHD,Jointly Funded H&SC Packages,Permanent Residential,Milestones - Unit 10,3717.52, 25-Oct-2016
1778,Revenue,CAHD,Bed Purchasing - North,Permanent Residential,Milestones - Unit 10,2409.36, 25-Oct-2016
1779,Revenue,CAHD,Bed Purchasing - S28A - Over 65- North,Permanent Residential,Milestones - Unit 10,3530.80, 25-Oct-2016
1780,Revenue,CAHD,Bed Purchasing - North,Permanent Residential,Milestones - Unit 10,9790.44, 25-Oct-2016
1781,Revenue,CAHD,Jointly Funded H&SC Packages,Permanent Residential,Milestones - Unit 10,530.36, 25-Oct-2016
1782,Revenue,CAHD,South Glos Users in South Glos Homes,Permanent Nursing,Milestones - Unit 10,625.00, 25-Oct-2016
1783,Revenue,CAHD,Bed Purchasing - North,Permanent Nursing,Milestones - Unit 10,1367.72, 25-Oct-2016
1784,Revenue,CAHD,South Glos Users in South Glos Homes,Permanent Nursing,Milestones - Unit 10,625.00, 25-Oct-2016
1785,Revenue,CAHD,MH Purchasing - Younger,Permanent Nursing,Milestones - Unit 10,985.52, 25-Oct-2016
1786,Revenue,CAHD,South Glos Users in South Glos Homes,Permanent Nursing,Milestones - Unit 10,625.00, 25-Oct-2016
1787,Revenue,CAHD,South Glos Users in South Glos Homes,Permanent Nursing,Milestones - Unit 10,625.00, 25-Oct-2016
1788,Revenue,CAHD,South Glos Users in South Glos Homes,Permanent Nursing,Milestones - Unit 10,625.00, 25-Oct-2016
1789,Revenue,CAHD,Bed Purchasing - South,Permanent Residential,Milestones - Unit 10,3348.12, 25-Oct-2016
1790,Revenue,CAHD,South Glos Users in South Glos Homes,Permanent Nursing,Milestones - Unit 10,625.00, 25-Oct-2016
1791,Revenue,CAHD,Bed purchasing - S28A Under 65 - South,Permanent Residential,Milestones - Unit 10,6069.84, 25-Oct-2016
1792,Revenue,CAHD,Bed purchasing - S28A Under 65 - South,Permanent Residential,Milestones - Unit 10,6142.88, 25-Oct-2016
1793,Revenue,CAHD,Bed Purchasing - Southmead Hospital,Permanent Nursing,Milestones - Unit 10,5920.40, 25-Oct-2016
1794,Revenue,CAHD,Bed Purchasing - LD S28A- Over 65- South,Permanent Residential,Milestones - Unit 10,4482.56, 25-Oct-2016
1795,Revenue,CAHD,Bed Purchasing - South,Permanent Residential,Milestones - Unit 10,6070.28, 25-Oct-2016
1796,Revenue,CAHD,Bed Purchasing - LD S28A- Over 65- South,Permanent Nursing,Milestones - Unit 10,5338.96, 25-Oct-2016
1797,Revenue,CAHD,South Glos Users in South Glos Homes,Permanent Nursing,Milestones - Unit 10,625.00, 25-Oct-2016
1798,Revenue,CAHD,Bed Purchasing - LD S28A- Over 65- South,Permanent Residential,Milestones - Unit 10,3644.04, 25-Oct-2016
1799,Revenue,CAHD,Bed Purchasing - South,Permanent Residential,Milestones - Unit 10,4472.36, 25-Oct-2016
1800,Revenue,CAHD,Bed Purchasing - South,Permanent Residential,Milestones - Unit 10,1286.60, 25-Oct-2016
1801,Revenue,CAHD,Bed purchasing -S28A  Under 65 - North,Permanent Nursing,Milestones - Unit 10,7807.00, 25-Oct-2016
1802,Revenue,CAHD,South Glos Users in South Glos Homes,Permanent Nursing,Milestones - Unit 10,625.00, 25-Oct-2016
1803,Revenue,CAHD,Bed Purchasing - North,Permanent Nursing,Milestones - Unit 10,1513.60, 25-Oct-2016
1804,Revenue,CAHD,Section 117 Placements MH Younger,Permanent Residential,Milestones - Unit 10,1402.44, 25-Oct-2016
1805,Revenue,CAHD,Home Care - Elderly - South,Day Care / Social Activities,Milestones - Unit 10,532.74, 25-Oct-2016
1806,Revenue,CAHD,Bed Purchasing - South,Permanent Nursing,Milestones - Unit 10,3430.56, 25-Oct-2016
1807,Revenue,CAHD,Bed Purchasing - South,Permanent Nursing,Milestones - Unit 10,2835.96, 25-Oct-2016
1808,Revenue,CAHD,Bed Purchasing - South,Respite Planned - Nursing,Milestones - Unit 10,11336.10, 25-Oct-2016
1809,Revenue,CAHD,Home Care - Elderly - South,Other Small Contracts,Milestones Homecare & Dementia Service,1606.25, 05-Oct-2016
1810,Revenue,CAHD,Home Care - Elderly - North,Other Small Contracts,Milestones Homecare & Dementia Service,2906.25, 05-Oct-2016
1811,Revenue,CAHD,Home Care - Elderly - South,Other Small Contracts,Milestones Homecare & Dementia Service,1468.75, 06-Oct-2016
1812,Revenue,CAHD,Home Care - Elderly - North,Other Small Contracts,Milestones Homecare & Dementia Service,2837.50, 06-Oct-2016
1813,Revenue,CAHD,Home Care - Elderly - South,Other Small Contracts,Milestones Homecare & Dementia Service,1425.00, 12-Oct-2016
1814,Revenue,CAHD,Home Care - Elderly - North,Other Small Contracts,Milestones Homecare & Dementia Service,2681.25, 12-Oct-2016
1815,Revenue,CAHD,Home Care - Elderly - South,Other Small Contracts,Milestones Homecare & Dementia Service,1287.50, 26-Oct-2016
1816,Revenue,CAHD,Home Care - Elderly - North,Other Small Contracts,Milestones Homecare & Dementia Service,2550.00, 26-Oct-2016
1817,Revenue,CAHD,Home Care - Elderly - South,Day Care / Social Activities,Milestones Supported Living Services,7638.89, 26-Oct-2016
1818,Revenue,CAHD,Home Care - Elderly - South,Other Small Contracts,Milestones Supported Living Services,2167.57, 26-Oct-2016
1819,Revenue,CAHD,Home Care - Elderly - South,Supported Living,Milestones Supported Living Services,1782.34, 26-Oct-2016
1820,Revenue,CAHD,Home Care - Elderly - North,Day Care / Social Activities,Milestones Supported Living Services,2557.80, 26-Oct-2016
1821,Revenue,CAHD,Home Care - Elderly - North,Other Small Contracts,Milestones Supported Living Services,1717.66, 26-Oct-2016
1822,Revenue,CAHD,Home Care - Elderly - North,Supported Living,Milestones Supported Living Services,178.64, 26-Oct-2016
1823,Revenue,CAHD,Day Care - South,Day Care / Social Activities,Milestones Supported Living Services,101.50, 26-Oct-2016
1824,Revenue,CAHD,Day Care - North,Day Care / Social Activities,Milestones Supported Living Services,121.80, 26-Oct-2016
1825,Revenue,CAHD,Younger MH non-res purchasing,Day Care / Social Activities,Milestones Supported Living Services,28.42, 26-Oct-2016
1826,Revenue,CAHD,Home care - Elderly MH - North,Other Small Contracts,Milestones Supported Living Services,129.92, 26-Oct-2016
1827,Revenue,CAHD,Home Care - Elderly - South,Day Care / Social Activities,Milestones Supported Living Services,7508.97, 26-Oct-2016
1828,Revenue,CAHD,Home Care - Elderly - South,Other Small Contracts,Milestones Supported Living Services,4019.68, 26-Oct-2016
1829,Revenue,CAHD,Home Care - Elderly - North,Day Care / Social Activities,Milestones Supported Living Services,738.92, 26-Oct-2016
1830,Revenue,CAHD,Home Care - Elderly - North,Other Small Contracts,Milestones Supported Living Services,2813.86, 26-Oct-2016
1831,Revenue,CAHD,Home Care - Elderly - North,Supported Living,Milestones Supported Living Services,158.34, 26-Oct-2016
1832,Revenue,CAHD,Day Care - North,Day Care / Social Activities,Milestones Supported Living Services,117.74, 26-Oct-2016
1833,Revenue,CAHD,Younger MH non-res purchasing,Day Care / Social Activities,Milestones Supported Living Services,32.48, 26-Oct-2016
1834,Revenue,CAHD,Home care - Elderly MH - North,Other Small Contracts,Milestones Supported Living Services,129.92, 26-Oct-2016
1835,Revenue,CAHD,Home Care - Elderly - South,Day Care / Social Activities,Milestones Supported Living Services,7224.77, 14-Oct-2016
